Body Name,Date Paid,Transaction Number,Amount,Supplier Name,Supplier Type,Expense Area ,Cost Centre Description ,Expense Type
Cambridgeshire County Council,31-Jul-18,51300175411,"-25,727.88",NOTTINGHAM REHAB SUPPLIES LTD,TRADE SUPPLIER,Integrated Community Equipment Service,ICES (Pool),Specialist Equipment For Service Delivery
Cambridgeshire County Council,27-Jul-18,51300223382,"-19,800.00",RED BALLOON OF THE AIR,CARE ESTABLISHMENT,SEN Placements,Placements - Education,Educational Materials
Cambridgeshire County Council,06-Jul-18,51300001593,"-12,000.00",IDOX SOFTWARE LTD,TRADE SUPPLIER,Control Accounts,Control Accounts - Payables,Migration Only - Marked as Do Not Use
Cambridgeshire County Council,03-Jul-18,51300013168,"-11,994.00",ANGLIAN DEMOLITION & ASBESTOS LTD,COMPANY,Control Accounts,Control Accounts - Payables,Migration Only - Marked as Do Not Use
Cambridgeshire County Council,03-Jul-18,51300116555,"-10,226.47",CBRE GLOBAL INVESTMENT PARTNERS LTD,TRADE SUPPLIER,Corporate Offices,Cambridge Central Library,Service Charges
Cambridgeshire County Council,12-Jul-18,51300180280,"-9,828.61",GLENHOLME HEALTHCARE LTD,CARE ESTABLISHMENT,LD - Young Adults Team,LD - Young Adults - Care,Residential Care
Cambridgeshire County Council,12-Jul-18,51300180256,"-9,828.61",GLENHOLME HEALTHCARE LTD,CARE ESTABLISHMENT,LD - Young Adults Team,LD - Young Adults - Care,Residential Care
Cambridgeshire County Council,12-Jul-18,51300180270,"-9,828.61",GLENHOLME HEALTHCARE LTD,CARE ESTABLISHMENT,LD - Young Adults Team,LD - Young Adults - Care,Residential Care
Cambridgeshire County Council,12-Jul-18,51300180278,"-9,828.61",GLENHOLME HEALTHCARE LTD,CARE ESTABLISHMENT,LD - Young Adults Team,LD - Young Adults - Care,Residential Care
Cambridgeshire County Council,12-Jul-18,51300180257,"-9,828.61",GLENHOLME HEALTHCARE LTD,CARE ESTABLISHMENT,LD - Young Adults Team,LD - Young Adults - Care,Residential Care
Cambridgeshire County Council,12-Jul-18,51300180276,"-9,828.61",GLENHOLME HEALTHCARE LTD,CARE ESTABLISHMENT,LD - Young Adults Team,LD - Young Adults - Care,Residential Care
Cambridgeshire County Council,12-Jul-18,51300180259,"-9,828.61",GLENHOLME HEALTHCARE LTD,CARE ESTABLISHMENT,LD - Young Adults Team,LD - Young Adults - Care,Residential Care
Cambridgeshire County Council,12-Jul-18,51300180274,"-9,828.61",GLENHOLME HEALTHCARE LTD,CARE ESTABLISHMENT,LD - Young Adults Team,LD - Young Adults - Care,Residential Care
Cambridgeshire County Council,12-Jul-18,51300180264,"-9,828.61",GLENHOLME HEALTHCARE LTD,CARE ESTABLISHMENT,LD - Young Adults Team,LD - Young Adults - Care,Residential Care
Cambridgeshire County Council,12-Jul-18,51300180279,"-9,828.61",GLENHOLME HEALTHCARE LTD,CARE ESTABLISHMENT,LD - Young Adults Team,LD - Young Adults - Care,Residential Care
Cambridgeshire County Council,12-Jul-18,51300180273,"-9,828.61",GLENHOLME HEALTHCARE LTD,CARE ESTABLISHMENT,LD - Young Adults Team,LD - Young Adults - Care,Residential Care
Cambridgeshire County Council,12-Jul-18,51300180260,"-7,020.44",GLENHOLME HEALTHCARE LTD,CARE ESTABLISHMENT,LD - Young Adults Team,LD - Young Adults - Care,Residential Care
Cambridgeshire County Council,26-Jul-18,51300273813,"-5,305.17",ALDERWOOD LLA LTD,CARE ESTABLISHMENT,LD - Hunts Locality,LD - Huntigndonshire  - Special Needs,Residential Care
Cambridgeshire County Council,26-Jul-18,51300273833,"-5,305.17",ALDERWOOD LLA LTD,CARE ESTABLISHMENT,LD - Hunts Locality,LD - Huntigndonshire  - Special Needs,Residential Care
Cambridgeshire County Council,26-Jul-18,51300273820,"-5,305.17",ALDERWOOD LLA LTD,CARE ESTABLISHMENT,LD - Hunts Locality,LD - Huntigndonshire  - Special Needs,Residential Care
Cambridgeshire County Council,26-Jul-18,51300273829,"-5,305.17",ALDERWOOD LLA LTD,CARE ESTABLISHMENT,LD - Hunts Locality,LD - Huntigndonshire  - Special Needs,Residential Care
Cambridgeshire County Council,26-Jul-18,51300273812,"-5,305.17",ALDERWOOD LLA LTD,CARE ESTABLISHMENT,LD - Hunts Locality,LD - Huntigndonshire  - Special Needs,Residential Care
Cambridgeshire County Council,26-Jul-18,51300273815,"-5,305.17",ALDERWOOD LLA LTD,CARE ESTABLISHMENT,LD - Hunts Locality,LD - Huntigndonshire  - Special Needs,Residential Care
Cambridgeshire County Council,26-Jul-18,51300273824,"-5,305.17",ALDERWOOD LLA LTD,CARE ESTABLISHMENT,LD - Hunts Locality,LD - Huntigndonshire  - Special Needs,Residential Care
Cambridgeshire County Council,26-Jul-18,51300273802,"-5,305.17",ALDERWOOD LLA LTD,CARE ESTABLISHMENT,LD - Hunts Locality,LD - Huntigndonshire  - Special Needs,Residential Care
Cambridgeshire County Council,05-Jul-18,51300221795,"-4,655.00",BROOKDALE HEALTHCARE LIMITED,CARE ESTABLISHMENT,LD - Hunts Locality,LD - Huntigndonshire  - Special Needs,Rehabilitation And Respite Care
Cambridgeshire County Council,05-Jul-18,51300229732,"-4,655.00",BROOKDALE HEALTHCARE LIMITED,CARE ESTABLISHMENT,LD - Hunts Locality,LD - Huntigndonshire  - Special Needs,Rehabilitation And Respite Care
Cambridgeshire County Council,05-Jul-18,51300221801,"-4,655.00",BROOKDALE HEALTHCARE LIMITED,CARE ESTABLISHMENT,LD - Hunts Locality,LD - Huntigndonshire  - Special Needs,Rehabilitation And Respite Care
Cambridgeshire County Council,05-Jul-18,51300221802,"-4,655.00",BROOKDALE HEALTHCARE LIMITED,CARE ESTABLISHMENT,LD - Hunts Locality,LD - Huntigndonshire  - Special Needs,Rehabilitation And Respite Care
Cambridgeshire County Council,05-Jul-18,51300229733,"-4,655.00",BROOKDALE HEALTHCARE LIMITED,CARE ESTABLISHMENT,LD - Hunts Locality,LD - Huntigndonshire  - Special Needs,Rehabilitation And Respite Care
Cambridgeshire County Council,05-Jul-18,51300221797,"-4,655.00",BROOKDALE HEALTHCARE LIMITED,CARE ESTABLISHMENT,LD - Hunts Locality,LD - Huntigndonshire  - Special Needs,Rehabilitation And Respite Care
Cambridgeshire County Council,05-Jul-18,51300221809,"-4,655.00",BROOKDALE HEALTHCARE LIMITED,CARE ESTABLISHMENT,LD - Hunts Locality,LD - Huntigndonshire  - Special Needs,Rehabilitation And Respite Care
Cambridgeshire County Council,05-Jul-18,51300221794,"-4,655.00",BROOKDALE HEALTHCARE LIMITED,CARE ESTABLISHMENT,LD - Hunts Locality,LD - Huntigndonshire  - Special Needs,Rehabilitation And Respite Care
Cambridgeshire County Council,05-Jul-18,51300221805,"-4,655.00",BROOKDALE HEALTHCARE LIMITED,CARE ESTABLISHMENT,LD - Hunts Locality,LD - Huntigndonshire  - Special Needs,Rehabilitation And Respite Care
Cambridgeshire County Council,05-Jul-18,51300229731,"-4,655.00",BROOKDALE HEALTHCARE LIMITED,CARE ESTABLISHMENT,LD - Hunts Locality,LD - Huntigndonshire  - Care,Rehabilitation And Respite Care
Cambridgeshire County Council,05-Jul-18,51300229734,"-4,655.00",BROOKDALE HEALTHCARE LIMITED,CARE ESTABLISHMENT,LD - Hunts Locality,LD - Huntigndonshire  - Care,Rehabilitation And Respite Care
Cambridgeshire County Council,05-Jul-18,51300229740,"-4,655.00",BROOKDALE HEALTHCARE LIMITED,CARE ESTABLISHMENT,LD - Hunts Locality,LD - Huntigndonshire  - Care,Rehabilitation And Respite Care
Cambridgeshire County Council,05-Jul-18,51300221798,"-4,655.00",BROOKDALE HEALTHCARE LIMITED,CARE ESTABLISHMENT,LD - Hunts Locality,LD - Huntigndonshire  - Care,Rehabilitation And Respite Care
Cambridgeshire County Council,05-Jul-18,51300229744,"-4,655.00",BROOKDALE HEALTHCARE LIMITED,CARE ESTABLISHMENT,LD - Hunts Locality,LD - Huntigndonshire  - Care,Rehabilitation And Respite Care
Cambridgeshire County Council,05-Jul-18,51300229735,"-4,655.00",BROOKDALE HEALTHCARE LIMITED,CARE ESTABLISHMENT,LD - Hunts Locality,LD - Huntigndonshire  - Care,Rehabilitation And Respite Care
Cambridgeshire County Council,05-Jul-18,51300229745,"-4,655.00",BROOKDALE HEALTHCARE LIMITED,CARE ESTABLISHMENT,LD - Hunts Locality,LD - Huntigndonshire  - Care,Rehabilitation And Respite Care
Cambridgeshire County Council,05-Jul-18,51300221792,"-4,655.00",BROOKDALE HEALTHCARE LIMITED,CARE ESTABLISHMENT,LD - Hunts Locality,LD - Huntigndonshire  - Care,Rehabilitation And Respite Care
Cambridgeshire County Council,05-Jul-18,51300229743,"-4,655.00",BROOKDALE HEALTHCARE LIMITED,CARE ESTABLISHMENT,LD - Hunts Locality,LD - Huntigndonshire  - Care,Rehabilitation And Respite Care
Cambridgeshire County Council,20-Jul-18,51300238290,"-4,655.00",BROOKDALE HEALTHCARE LIMITED,CARE ESTABLISHMENT,LD - Hunts Locality,LD - Huntigndonshire  - Special Needs,Rehabilitation And Respite Care
Cambridgeshire County Council,20-Jul-18,51300238293,"-4,655.00",BROOKDALE HEALTHCARE LIMITED,CARE ESTABLISHMENT,LD - Hunts Locality,LD - Huntigndonshire  - Special Needs,Rehabilitation And Respite Care
Cambridgeshire County Council,20-Jul-18,51300238295,"-4,655.00",BROOKDALE HEALTHCARE LIMITED,CARE ESTABLISHMENT,LD - Hunts Locality,LD - Huntigndonshire  - Special Needs,Rehabilitation And Respite Care
Cambridgeshire County Council,20-Jul-18,51300265228,"-4,655.00",BROOKDALE HEALTHCARE LIMITED,CARE ESTABLISHMENT,LD - Hunts Locality,LD - Huntigndonshire  - Special Needs,Rehabilitation And Respite Care
Cambridgeshire County Council,20-Jul-18,51300238284,"-4,655.00",BROOKDALE HEALTHCARE LIMITED,CARE ESTABLISHMENT,LD - Hunts Locality,LD - Huntigndonshire  - Special Needs,Rehabilitation And Respite Care
Cambridgeshire County Council,20-Jul-18,51300265226,"-4,655.00",BROOKDALE HEALTHCARE LIMITED,CARE ESTABLISHMENT,LD - Hunts Locality,LD - Huntigndonshire  - Special Needs,Rehabilitation And Respite Care
Cambridgeshire County Council,20-Jul-18,51300238281,"-4,655.00",BROOKDALE HEALTHCARE LIMITED,CARE ESTABLISHMENT,LD - Hunts Locality,LD - Huntigndonshire  - Special Needs,Rehabilitation And Respite Care
Cambridgeshire County Council,20-Jul-18,51300265263,"-4,655.00",BROOKDALE HEALTHCARE LIMITED,CARE ESTABLISHMENT,LD - Hunts Locality,LD - Huntigndonshire  - Special Needs,Rehabilitation And Respite Care
Cambridgeshire County Council,20-Jul-18,51300265248,"-4,655.00",BROOKDALE HEALTHCARE LIMITED,CARE ESTABLISHMENT,LD - Hunts Locality,LD - Huntigndonshire  - Special Needs,Rehabilitation And Respite Care
Cambridgeshire County Council,20-Jul-18,51300238280,"-4,655.00",BROOKDALE HEALTHCARE LIMITED,CARE ESTABLISHMENT,LD - Hunts Locality,LD - Huntigndonshire  - Care,Rehabilitation And Respite Care
Cambridgeshire County Council,20-Jul-18,51300238277,"-4,655.00",BROOKDALE HEALTHCARE LIMITED,CARE ESTABLISHMENT,LD - Hunts Locality,LD - Huntigndonshire  - Care,Rehabilitation And Respite Care
Cambridgeshire County Council,20-Jul-18,51300238289,"-4,655.00",BROOKDALE HEALTHCARE LIMITED,CARE ESTABLISHMENT,LD - Hunts Locality,LD - Huntigndonshire  - Care,Rehabilitation And Respite Care
Cambridgeshire County Council,20-Jul-18,51300265242,"-4,655.00",BROOKDALE HEALTHCARE LIMITED,CARE ESTABLISHMENT,LD - Hunts Locality,LD - Huntigndonshire  - Care,Rehabilitation And Respite Care
Cambridgeshire County Council,20-Jul-18,51300265233,"-4,655.00",BROOKDALE HEALTHCARE LIMITED,CARE ESTABLISHMENT,LD - Hunts Locality,LD - Huntigndonshire  - Care,Rehabilitation And Respite Care
Cambridgeshire County Council,20-Jul-18,51300265249,"-4,655.00",BROOKDALE HEALTHCARE LIMITED,CARE ESTABLISHMENT,LD - Hunts Locality,LD - Huntigndonshire  - Care,Rehabilitation And Respite Care
Cambridgeshire County Council,20-Jul-18,51300265252,"-4,655.00",BROOKDALE HEALTHCARE LIMITED,CARE ESTABLISHMENT,LD - Hunts Locality,LD - Huntigndonshire  - Care,Rehabilitation And Respite Care
Cambridgeshire County Council,20-Jul-18,51300238287,"-4,655.00",BROOKDALE HEALTHCARE LIMITED,CARE ESTABLISHMENT,LD - Hunts Locality,LD - Huntigndonshire  - Care,Rehabilitation And Respite Care
Cambridgeshire County Council,20-Jul-18,51300265264,"-4,655.00",BROOKDALE HEALTHCARE LIMITED,CARE ESTABLISHMENT,LD - Hunts Locality,LD - Huntigndonshire  - Care,Rehabilitation And Respite Care
Cambridgeshire County Council,26-Jul-18,51300275788,"-4,263.86",Redacted Personal Data ,SERVICE USER,LD - South Locality,LD - South Cambs - Special Needs,Direct Payments
Cambridgeshire County Council,26-Jul-18,51300275819,"-4,263.86",Redacted Personal Data ,SERVICE USER,LD - South Locality,LD - South Cambs - Special Needs,Direct Payments
Cambridgeshire County Council,26-Jul-18,51300275775,"-4,263.86",Redacted Personal Data ,SERVICE USER,LD - South Locality,LD - South Cambs - Special Needs,Direct Payments
Cambridgeshire County Council,26-Jul-18,51300275781,"-4,263.86",Redacted Personal Data ,SERVICE USER,LD - South Locality,LD - South Cambs - Special Needs,Direct Payments
Cambridgeshire County Council,26-Jul-18,51300275786,"-4,263.86",Redacted Personal Data ,SERVICE USER,LD - South Locality,LD - South Cambs - Special Needs,Direct Payments
Cambridgeshire County Council,26-Jul-18,51300275706,"-4,263.86",Redacted Personal Data ,SERVICE USER,LD - South Locality,LD - South Cambs - Special Needs,Direct Payments
Cambridgeshire County Council,26-Jul-18,51300275719,"-4,263.86",Redacted Personal Data ,SERVICE USER,LD - South Locality,LD - South Cambs - Special Needs,Direct Payments
Cambridgeshire County Council,26-Jul-18,51300275723,"-4,263.86",Redacted Personal Data ,SERVICE USER,LD - South Locality,LD - South Cambs - Special Needs,Direct Payments
Cambridgeshire County Council,26-Jul-18,51300275732,"-4,263.86",Redacted Personal Data ,SERVICE USER,LD - South Locality,LD - South Cambs - Special Needs,Direct Payments
Cambridgeshire County Council,26-Jul-18,51300275737,"-4,263.86",Redacted Personal Data ,SERVICE USER,LD - South Locality,LD - South Cambs - Special Needs,Direct Payments
Cambridgeshire County Council,26-Jul-18,51300275697,"-4,263.86",Redacted Personal Data ,SERVICE USER,LD - South Locality,LD - South Cambs - Special Needs,Direct Payments
Cambridgeshire County Council,26-Jul-18,51300275703,"-4,263.86",Redacted Personal Data ,SERVICE USER,LD - South Locality,LD - South Cambs - Special Needs,Direct Payments
Cambridgeshire County Council,26-Jul-18,51300275690,"-4,263.86",Redacted Personal Data ,SERVICE USER,LD - South Locality,LD - South Cambs - Special Needs,Direct Payments
Cambridgeshire County Council,26-Jul-18,51300275776,"-4,263.86",Redacted Personal Data ,SERVICE USER,LD - South Locality,LD - South Cambs - Special Needs,Direct Payments
Cambridgeshire County Council,26-Jul-18,51300275813,"-4,263.86",Redacted Personal Data ,SERVICE USER,LD - South Locality,LD - South Cambs - Special Needs,Direct Payments
Cambridgeshire County Council,26-Jul-18,51300275758,"-4,263.86",Redacted Personal Data ,SERVICE USER,LD - South Locality,LD - South Cambs - Special Needs,Direct Payments
Cambridgeshire County Council,26-Jul-18,51300275692,"-4,263.86",Redacted Personal Data ,SERVICE USER,LD - South Locality,LD - South Cambs - Special Needs,Direct Payments
Cambridgeshire County Council,26-Jul-18,51300275725,"-4,263.86",Redacted Personal Data ,SERVICE USER,LD - South Locality,LD - South Cambs - Special Needs,Direct Payments
Cambridgeshire County Council,02-Jul-18,51300210440,"-3,729.52",Redacted Personal Data ,SERVICE USER,LD - South Locality,LD - South Cambs - Care,Direct Payments
Cambridgeshire County Council,05-Jul-18,51300229730,"-3,325.00",BROOKDALE HEALTHCARE LIMITED,CARE ESTABLISHMENT,LD - Hunts Locality,LD - Huntigndonshire  - Special Needs,Rehabilitation And Respite Care
Cambridgeshire County Council,05-Jul-18,51300221807,"-3,325.00",BROOKDALE HEALTHCARE LIMITED,CARE ESTABLISHMENT,LD - Hunts Locality,LD - Huntigndonshire  - Special Needs,Rehabilitation And Respite Care
Cambridgeshire County Council,20-Jul-18,51300238291,"-3,325.00",BROOKDALE HEALTHCARE LIMITED,CARE ESTABLISHMENT,LD - Hunts Locality,LD - Huntigndonshire  - Special Needs,Rehabilitation And Respite Care
Cambridgeshire County Council,20-Jul-18,51300265223,"-3,325.00",BROOKDALE HEALTHCARE LIMITED,CARE ESTABLISHMENT,LD - Hunts Locality,LD - Huntigndonshire  - Care,Rehabilitation And Respite Care
Cambridgeshire County Council,25-Jul-18,51300230926,"-3,125.82",CARTER CABIN HIRE LIMITED,COMPANY,Temporary Accommodation,Temporary Accommodation,Mobile - Buildings
Cambridgeshire County Council,26-Jul-18,51300273831,"-3,031.53",ALDERWOOD LLA LTD,CARE ESTABLISHMENT,LD - Hunts Locality,LD - Huntigndonshire  - Special Needs,Residential Care
Cambridgeshire County Council,25-Jul-18,51300230927,"-2,983.69",CARTER CABIN HIRE LIMITED,COMPANY,Temporary Accommodation,Temporary Accommodation,Mobile - Buildings
Cambridgeshire County Council,05-Jul-18,51300179487,"-2,977.44",DECOY FARM,CARE ESTABLISHMENT,LD - East Locality,LD - East Cambs - Special Needs,Residential Care
Cambridgeshire County Council,05-Jul-18,51300207758,"-2,977.44",DECOY FARM,CARE ESTABLISHMENT,LD - East Locality,LD - East Cambs - Special Needs,Residential Care
Cambridgeshire County Council,05-Jul-18,51300207764,"-2,977.44",DECOY FARM,CARE ESTABLISHMENT,LD - East Locality,LD - East Cambs - Special Needs,Residential Care
Cambridgeshire County Council,05-Jul-18,51300224452,"-2,977.44",DECOY FARM,CARE ESTABLISHMENT,LD - East Locality,LD - East Cambs - Special Needs,Residential Care
Cambridgeshire County Council,05-Jul-18,51300224397,"-2,977.44",DECOY FARM,CARE ESTABLISHMENT,LD - East Locality,LD - East Cambs - Special Needs,Residential Care
Cambridgeshire County Council,05-Jul-18,51300179497,"-2,977.44",DECOY FARM,CARE ESTABLISHMENT,LD - East Locality,LD - East Cambs - Special Needs,Residential Care
Cambridgeshire County Council,05-Jul-18,51300207725,"-2,977.44",DECOY FARM,CARE ESTABLISHMENT,LD - East Locality,LD - East Cambs - Special Needs,Residential Care
Cambridgeshire County Council,05-Jul-18,51300207715,"-2,977.44",DECOY FARM,CARE ESTABLISHMENT,LD - East Locality,LD - East Cambs - Special Needs,Residential Care
Cambridgeshire County Council,05-Jul-18,51300207744,"-2,977.44",DECOY FARM,CARE ESTABLISHMENT,LD - East Locality,LD - East Cambs - Special Needs,Residential Care
Cambridgeshire County Council,05-Jul-18,51300207806,"-2,977.44",DECOY FARM,CARE ESTABLISHMENT,LD - East Locality,LD - East Cambs - Special Needs,Residential Care
Cambridgeshire County Council,05-Jul-18,51300224379,"-2,977.44",DECOY FARM,CARE ESTABLISHMENT,LD - East Locality,LD - East Cambs - Special Needs,Residential Care
Cambridgeshire County Council,05-Jul-18,51300207759,"-2,977.44",DECOY FARM,CARE ESTABLISHMENT,LD - East Locality,LD - East Cambs - Special Needs,Residential Care
Cambridgeshire County Council,05-Jul-18,51300207726,"-2,977.44",DECOY FARM,CARE ESTABLISHMENT,LD - East Locality,LD - East Cambs - Special Needs,Residential Care
Cambridgeshire County Council,05-Jul-18,51300224404,"-2,977.44",DECOY FARM,CARE ESTABLISHMENT,LD - East Locality,LD - East Cambs - Special Needs,Residential Care
Cambridgeshire County Council,05-Jul-18,51300179505,"-2,977.44",DECOY FARM,CARE ESTABLISHMENT,LD - East Locality,LD - East Cambs - Special Needs,Residential Care
Cambridgeshire County Council,05-Jul-18,51300179393,"-2,977.44",DECOY FARM,CARE ESTABLISHMENT,LD - East Locality,LD - East Cambs - Special Needs,Residential Care
Cambridgeshire County Council,05-Jul-18,51300224434,"-2,977.44",DECOY FARM,CARE ESTABLISHMENT,LD - East Locality,LD - East Cambs - Special Needs,Residential Care
Cambridgeshire County Council,05-Jul-18,51300179457,"-2,977.44",DECOY FARM,CARE ESTABLISHMENT,LD - East Locality,LD - East Cambs - Special Needs,Residential Care
Cambridgeshire County Council,05-Jul-18,51300224429,"-2,977.44",DECOY FARM,CARE ESTABLISHMENT,LD - East Locality,LD - East Cambs - Special Needs,Residential Care
Cambridgeshire County Council,05-Jul-18,51300224346,"-2,977.44",DECOY FARM,CARE ESTABLISHMENT,LD - East Locality,LD - East Cambs - Special Needs,Residential Care
Cambridgeshire County Council,05-Jul-18,51300179486,"-2,977.44",DECOY FARM,CARE ESTABLISHMENT,LD - East Locality,LD - East Cambs - Special Needs,Residential Care
Cambridgeshire County Council,05-Jul-18,51300224387,"-2,977.44",DECOY FARM,CARE ESTABLISHMENT,LD - East Locality,LD - East Cambs - Special Needs,Residential Care
Cambridgeshire County Council,05-Jul-18,51300179385,"-2,977.44",DECOY FARM,CARE ESTABLISHMENT,LD - East Locality,LD - East Cambs - Special Needs,Residential Care
Cambridgeshire County Council,05-Jul-18,51300179355,"-2,977.44",DECOY FARM,CARE ESTABLISHMENT,LD - East Locality,LD - East Cambs - Special Needs,Residential Care
Cambridgeshire County Council,05-Jul-18,51300179388,"-2,977.44",DECOY FARM,CARE ESTABLISHMENT,LD - East Locality,LD - East Cambs - Special Needs,Residential Care
Cambridgeshire County Council,05-Jul-18,51300179450,"-2,977.44",DECOY FARM,CARE ESTABLISHMENT,LD - East Locality,LD - East Cambs - Special Needs,Residential Care
Cambridgeshire County Council,05-Jul-18,51300224351,"-2,977.44",DECOY FARM,CARE ESTABLISHMENT,LD - East Locality,LD - East Cambs - Special Needs,Residential Care
Cambridgeshire County Council,05-Jul-18,51300224484,"-2,977.44",DECOY FARM,CARE ESTABLISHMENT,LD - East Locality,LD - East Cambs - Special Needs,Residential Care
Cambridgeshire County Council,05-Jul-18,51300207695,"-2,977.44",DECOY FARM,CARE ESTABLISHMENT,LD - East Locality,LD - East Cambs - Special Needs,Residential Care
Cambridgeshire County Council,05-Jul-18,51300207705,"-2,977.44",DECOY FARM,CARE ESTABLISHMENT,LD - East Locality,LD - East Cambs - Special Needs,Residential Care
Cambridgeshire County Council,05-Jul-18,51300224395,"-2,977.44",DECOY FARM,CARE ESTABLISHMENT,LD - East Locality,LD - East Cambs - Special Needs,Residential Care
Cambridgeshire County Council,05-Jul-18,51300179518,"-2,977.44",DECOY FARM,CARE ESTABLISHMENT,LD - East Locality,LD - East Cambs - Special Needs,Residential Care
Cambridgeshire County Council,05-Jul-18,51300224403,"-2,977.44",DECOY FARM,CARE ESTABLISHMENT,LD - East Locality,LD - East Cambs - Special Needs,Residential Care
Cambridgeshire County Council,05-Jul-18,51300224493,"-2,977.44",DECOY FARM,CARE ESTABLISHMENT,LD - East Locality,LD - East Cambs - Special Needs,Residential Care
Cambridgeshire County Council,05-Jul-18,51300224454,"-2,977.44",DECOY FARM,CARE ESTABLISHMENT,LD - East Locality,LD - East Cambs - Special Needs,Residential Care
Cambridgeshire County Council,05-Jul-18,51300207703,"-2,977.44",DECOY FARM,CARE ESTABLISHMENT,LD - East Locality,LD - East Cambs - Special Needs,Residential Care
Cambridgeshire County Council,05-Jul-18,51300207748,"-2,977.44",DECOY FARM,CARE ESTABLISHMENT,LD - East Locality,LD - East Cambs - Special Needs,Residential Care
Cambridgeshire County Council,05-Jul-18,51300179443,"-2,977.44",DECOY FARM,CARE ESTABLISHMENT,LD - East Locality,LD - East Cambs - Special Needs,Residential Care
Cambridgeshire County Council,05-Jul-18,51300179375,"-2,977.44",DECOY FARM,CARE ESTABLISHMENT,LD - East Locality,LD - East Cambs - Special Needs,Residential Care
Cambridgeshire County Council,05-Jul-18,51300207672,"-2,977.44",DECOY FARM,CARE ESTABLISHMENT,LD - East Locality,LD - East Cambs - Special Needs,Residential Care
Cambridgeshire County Council,05-Jul-18,51300224381,"-2,977.44",DECOY FARM,CARE ESTABLISHMENT,LD - East Locality,LD - East Cambs - Special Needs,Residential Care
Cambridgeshire County Council,05-Jul-18,51300224359,"-2,977.44",DECOY FARM,CARE ESTABLISHMENT,LD - East Locality,LD - East Cambs - Special Needs,Residential Care
Cambridgeshire County Council,05-Jul-18,51300179470,"-2,977.44",DECOY FARM,CARE ESTABLISHMENT,LD - East Locality,LD - East Cambs - Special Needs,Residential Care
Cambridgeshire County Council,05-Jul-18,51300179483,"-2,977.44",DECOY FARM,CARE ESTABLISHMENT,LD - East Locality,LD - East Cambs - Special Needs,Residential Care
Cambridgeshire County Council,05-Jul-18,51300179379,"-2,977.44",DECOY FARM,CARE ESTABLISHMENT,LD - East Locality,LD - East Cambs - Special Needs,Residential Care
Cambridgeshire County Council,05-Jul-18,51300207683,"-2,977.44",DECOY FARM,CARE ESTABLISHMENT,LD - East Locality,LD - East Cambs - Special Needs,Residential Care
Cambridgeshire County Council,05-Jul-18,51300207698,"-2,977.44",DECOY FARM,CARE ESTABLISHMENT,LD - East Locality,LD - East Cambs - Special Needs,Residential Care
Cambridgeshire County Council,05-Jul-18,51300207704,"-2,977.44",DECOY FARM,CARE ESTABLISHMENT,LD - East Locality,LD - East Cambs - Special Needs,Residential Care
Cambridgeshire County Council,05-Jul-18,51300207731,"-2,977.44",DECOY FARM,CARE ESTABLISHMENT,LD - East Locality,LD - East Cambs - Special Needs,Residential Care
Cambridgeshire County Council,05-Jul-18,51300224422,"-2,977.44",DECOY FARM,CARE ESTABLISHMENT,LD - East Locality,LD - East Cambs - Special Needs,Residential Care
Cambridgeshire County Council,05-Jul-18,51300224455,"-2,977.44",DECOY FARM,CARE ESTABLISHMENT,LD - East Locality,LD - East Cambs - Special Needs,Residential Care
Cambridgeshire County Council,05-Jul-18,51300207782,"-2,977.44",DECOY FARM,CARE ESTABLISHMENT,LD - East Locality,LD - East Cambs - Special Needs,Residential Care
Cambridgeshire County Council,05-Jul-18,51300207781,"-2,977.44",DECOY FARM,CARE ESTABLISHMENT,LD - East Locality,LD - East Cambs - Special Needs,Residential Care
Cambridgeshire County Council,05-Jul-18,51300179438,"-2,977.44",DECOY FARM,CARE ESTABLISHMENT,LD - East Locality,LD - East Cambs - Special Needs,Residential Care
Cambridgeshire County Council,05-Jul-18,51300224345,"-2,977.44",DECOY FARM,CARE ESTABLISHMENT,LD - East Locality,LD - East Cambs - Special Needs,Residential Care
Cambridgeshire County Council,05-Jul-18,51300224354,"-2,977.44",DECOY FARM,CARE ESTABLISHMENT,LD - East Locality,LD - East Cambs - Special Needs,Residential Care
Cambridgeshire County Council,05-Jul-18,51300224357,"-2,977.44",DECOY FARM,CARE ESTABLISHMENT,LD - East Locality,LD - East Cambs - Special Needs,Residential Care
Cambridgeshire County Council,05-Jul-18,51300224371,"-2,977.44",DECOY FARM,CARE ESTABLISHMENT,LD - East Locality,LD - East Cambs - Special Needs,Residential Care
Cambridgeshire County Council,05-Jul-18,51300224372,"-2,977.44",DECOY FARM,CARE ESTABLISHMENT,LD - East Locality,LD - East Cambs - Special Needs,Residential Care
Cambridgeshire County Council,05-Jul-18,51300224384,"-2,977.44",DECOY FARM,CARE ESTABLISHMENT,LD - East Locality,LD - East Cambs - Special Needs,Residential Care
Cambridgeshire County Council,05-Jul-18,51300224392,"-2,977.44",DECOY FARM,CARE ESTABLISHMENT,LD - East Locality,LD - East Cambs - Special Needs,Residential Care
Cambridgeshire County Council,05-Jul-18,51300224475,"-2,977.44",DECOY FARM,CARE ESTABLISHMENT,LD - East Locality,LD - East Cambs - Special Needs,Residential Care
Cambridgeshire County Council,05-Jul-18,51300224502,"-2,977.44",DECOY FARM,CARE ESTABLISHMENT,LD - East Locality,LD - East Cambs - Special Needs,Residential Care
Cambridgeshire County Council,05-Jul-18,51300224494,"-2,977.44",DECOY FARM,CARE ESTABLISHMENT,LD - East Locality,LD - East Cambs - Special Needs,Residential Care
Cambridgeshire County Council,05-Jul-18,51300224415,"-2,977.44",DECOY FARM,CARE ESTABLISHMENT,LD - East Locality,LD - East Cambs - Special Needs,Residential Care
Cambridgeshire County Council,05-Jul-18,51300224419,"-2,977.44",DECOY FARM,CARE ESTABLISHMENT,LD - East Locality,LD - East Cambs - Special Needs,Residential Care
Cambridgeshire County Council,05-Jul-18,51300224425,"-2,977.44",DECOY FARM,CARE ESTABLISHMENT,LD - East Locality,LD - East Cambs - Special Needs,Residential Care
Cambridgeshire County Council,05-Jul-18,51300224428,"-2,977.44",DECOY FARM,CARE ESTABLISHMENT,LD - East Locality,LD - East Cambs - Special Needs,Residential Care
Cambridgeshire County Council,05-Jul-18,51300224448,"-2,977.44",DECOY FARM,CARE ESTABLISHMENT,LD - East Locality,LD - East Cambs - Special Needs,Residential Care
Cambridgeshire County Council,05-Jul-18,51300224473,"-2,977.44",DECOY FARM,CARE ESTABLISHMENT,LD - East Locality,LD - East Cambs - Special Needs,Residential Care
Cambridgeshire County Council,05-Jul-18,51300224487,"-2,977.44",DECOY FARM,CARE ESTABLISHMENT,LD - East Locality,LD - East Cambs - Special Needs,Residential Care
Cambridgeshire County Council,05-Jul-18,51300224418,"-2,977.44",DECOY FARM,CARE ESTABLISHMENT,LD - East Locality,LD - East Cambs - Special Needs,Residential Care
Cambridgeshire County Council,05-Jul-18,51300207679,"-2,977.44",DECOY FARM,CARE ESTABLISHMENT,LD - East Locality,LD - East Cambs - Special Needs,Residential Care
Cambridgeshire County Council,05-Jul-18,51300207681,"-2,977.44",DECOY FARM,CARE ESTABLISHMENT,LD - East Locality,LD - East Cambs - Special Needs,Residential Care
Cambridgeshire County Council,05-Jul-18,51300207689,"-2,977.44",DECOY FARM,CARE ESTABLISHMENT,LD - East Locality,LD - East Cambs - Special Needs,Residential Care
Cambridgeshire County Council,05-Jul-18,51300207690,"-2,977.44",DECOY FARM,CARE ESTABLISHMENT,LD - East Locality,LD - East Cambs - Special Needs,Residential Care
Cambridgeshire County Council,05-Jul-18,51300207718,"-2,977.44",DECOY FARM,CARE ESTABLISHMENT,LD - East Locality,LD - East Cambs - Special Needs,Residential Care
Cambridgeshire County Council,05-Jul-18,51300207724,"-2,977.44",DECOY FARM,CARE ESTABLISHMENT,LD - East Locality,LD - East Cambs - Special Needs,Residential Care
Cambridgeshire County Council,05-Jul-18,51300224444,"-2,977.44",DECOY FARM,CARE ESTABLISHMENT,LD - East Locality,LD - East Cambs - Special Needs,Residential Care
Cambridgeshire County Council,05-Jul-18,51300224449,"-2,977.44",DECOY FARM,CARE ESTABLISHMENT,LD - East Locality,LD - East Cambs - Special Needs,Residential Care
Cambridgeshire County Council,05-Jul-18,51300224451,"-2,977.44",DECOY FARM,CARE ESTABLISHMENT,LD - East Locality,LD - East Cambs - Special Needs,Residential Care
Cambridgeshire County Council,05-Jul-18,51300224461,"-2,977.44",DECOY FARM,CARE ESTABLISHMENT,LD - East Locality,LD - East Cambs - Special Needs,Residential Care
Cambridgeshire County Council,05-Jul-18,51300224464,"-2,977.44",DECOY FARM,CARE ESTABLISHMENT,LD - East Locality,LD - East Cambs - Special Needs,Residential Care
Cambridgeshire County Council,05-Jul-18,51300224467,"-2,977.44",DECOY FARM,CARE ESTABLISHMENT,LD - East Locality,LD - East Cambs - Special Needs,Residential Care
Cambridgeshire County Council,05-Jul-18,51300224478,"-2,977.44",DECOY FARM,CARE ESTABLISHMENT,LD - East Locality,LD - East Cambs - Special Needs,Residential Care
Cambridgeshire County Council,05-Jul-18,51300224480,"-2,977.44",DECOY FARM,CARE ESTABLISHMENT,LD - East Locality,LD - East Cambs - Special Needs,Residential Care
Cambridgeshire County Council,05-Jul-18,51300179358,"-2,977.44",DECOY FARM,CARE ESTABLISHMENT,LD - East Locality,LD - East Cambs - Special Needs,Residential Care
Cambridgeshire County Council,05-Jul-18,51300179368,"-2,977.44",DECOY FARM,CARE ESTABLISHMENT,LD - East Locality,LD - East Cambs - Special Needs,Residential Care
Cambridgeshire County Council,05-Jul-18,51300179386,"-2,977.44",DECOY FARM,CARE ESTABLISHMENT,LD - East Locality,LD - East Cambs - Special Needs,Residential Care
Cambridgeshire County Council,05-Jul-18,51300179406,"-2,977.44",DECOY FARM,CARE ESTABLISHMENT,LD - East Locality,LD - East Cambs - Special Needs,Residential Care
Cambridgeshire County Council,05-Jul-18,51300179409,"-2,977.44",DECOY FARM,CARE ESTABLISHMENT,LD - East Locality,LD - East Cambs - Special Needs,Residential Care
Cambridgeshire County Council,05-Jul-18,51300179411,"-2,977.44",DECOY FARM,CARE ESTABLISHMENT,LD - East Locality,LD - East Cambs - Special Needs,Residential Care
Cambridgeshire County Council,05-Jul-18,51300179416,"-2,977.44",DECOY FARM,CARE ESTABLISHMENT,LD - East Locality,LD - East Cambs - Special Needs,Residential Care
Cambridgeshire County Council,05-Jul-18,51300179347,"-2,977.44",DECOY FARM,CARE ESTABLISHMENT,LD - East Locality,LD - East Cambs - Special Needs,Residential Care
Cambridgeshire County Council,05-Jul-18,51300179356,"-2,977.44",DECOY FARM,CARE ESTABLISHMENT,LD - East Locality,LD - East Cambs - Special Needs,Residential Care
Cambridgeshire County Council,05-Jul-18,51300179359,"-2,977.44",DECOY FARM,CARE ESTABLISHMENT,LD - East Locality,LD - East Cambs - Special Needs,Residential Care
Cambridgeshire County Council,05-Jul-18,51300179357,"-2,977.44",DECOY FARM,CARE ESTABLISHMENT,LD - East Locality,LD - East Cambs - Special Needs,Residential Care
Cambridgeshire County Council,05-Jul-18,51300179395,"-2,977.44",DECOY FARM,CARE ESTABLISHMENT,LD - East Locality,LD - East Cambs - Special Needs,Residential Care
Cambridgeshire County Council,05-Jul-18,51300179413,"-2,977.44",DECOY FARM,CARE ESTABLISHMENT,LD - East Locality,LD - East Cambs - Special Needs,Residential Care
Cambridgeshire County Council,05-Jul-18,51300179415,"-2,977.44",DECOY FARM,CARE ESTABLISHMENT,LD - East Locality,LD - East Cambs - Special Needs,Residential Care
Cambridgeshire County Council,05-Jul-18,51300179421,"-2,977.44",DECOY FARM,CARE ESTABLISHMENT,LD - East Locality,LD - East Cambs - Special Needs,Residential Care
Cambridgeshire County Council,05-Jul-18,51300179439,"-2,977.44",DECOY FARM,CARE ESTABLISHMENT,LD - East Locality,LD - East Cambs - Special Needs,Residential Care
Cambridgeshire County Council,05-Jul-18,51300179441,"-2,977.44",DECOY FARM,CARE ESTABLISHMENT,LD - East Locality,LD - East Cambs - Special Needs,Residential Care
Cambridgeshire County Council,05-Jul-18,51300179455,"-2,977.44",DECOY FARM,CARE ESTABLISHMENT,LD - East Locality,LD - East Cambs - Special Needs,Residential Care
Cambridgeshire County Council,05-Jul-18,51300179459,"-2,977.44",DECOY FARM,CARE ESTABLISHMENT,LD - East Locality,LD - East Cambs - Special Needs,Residential Care
Cambridgeshire County Council,05-Jul-18,51300179491,"-2,977.44",DECOY FARM,CARE ESTABLISHMENT,LD - East Locality,LD - East Cambs - Special Needs,Residential Care
Cambridgeshire County Council,05-Jul-18,51300179493,"-2,977.44",DECOY FARM,CARE ESTABLISHMENT,LD - East Locality,LD - East Cambs - Special Needs,Residential Care
Cambridgeshire County Council,05-Jul-18,51300179501,"-2,977.44",DECOY FARM,CARE ESTABLISHMENT,LD - East Locality,LD - East Cambs - Special Needs,Residential Care
Cambridgeshire County Council,05-Jul-18,51300179510,"-2,977.44",DECOY FARM,CARE ESTABLISHMENT,LD - East Locality,LD - East Cambs - Special Needs,Residential Care
Cambridgeshire County Council,05-Jul-18,51300179515,"-2,977.44",DECOY FARM,CARE ESTABLISHMENT,LD - East Locality,LD - East Cambs - Special Needs,Residential Care
Cambridgeshire County Council,05-Jul-18,51300224350,"-2,977.44",DECOY FARM,CARE ESTABLISHMENT,LD - East Locality,LD - East Cambs - Special Needs,Residential Care
Cambridgeshire County Council,05-Jul-18,51300224364,"-2,977.44",DECOY FARM,CARE ESTABLISHMENT,LD - East Locality,LD - East Cambs - Special Needs,Residential Care
Cambridgeshire County Council,05-Jul-18,51300224374,"-2,977.44",DECOY FARM,CARE ESTABLISHMENT,LD - East Locality,LD - East Cambs - Special Needs,Residential Care
Cambridgeshire County Council,05-Jul-18,51300224378,"-2,977.44",DECOY FARM,CARE ESTABLISHMENT,LD - East Locality,LD - East Cambs - Special Needs,Residential Care
Cambridgeshire County Council,05-Jul-18,51300224380,"-2,977.44",DECOY FARM,CARE ESTABLISHMENT,LD - East Locality,LD - East Cambs - Special Needs,Residential Care
Cambridgeshire County Council,05-Jul-18,51300224382,"-2,977.44",DECOY FARM,CARE ESTABLISHMENT,LD - East Locality,LD - East Cambs - Special Needs,Residential Care
Cambridgeshire County Council,05-Jul-18,51300224412,"-2,977.44",DECOY FARM,CARE ESTABLISHMENT,LD - East Locality,LD - East Cambs - Special Needs,Residential Care
Cambridgeshire County Council,05-Jul-18,51300224417,"-2,977.44",DECOY FARM,CARE ESTABLISHMENT,LD - East Locality,LD - East Cambs - Special Needs,Residential Care
Cambridgeshire County Council,05-Jul-18,51300224420,"-2,977.44",DECOY FARM,CARE ESTABLISHMENT,LD - East Locality,LD - East Cambs - Special Needs,Residential Care
Cambridgeshire County Council,05-Jul-18,51300224421,"-2,977.44",DECOY FARM,CARE ESTABLISHMENT,LD - East Locality,LD - East Cambs - Special Needs,Residential Care
Cambridgeshire County Council,05-Jul-18,51300224424,"-2,977.44",DECOY FARM,CARE ESTABLISHMENT,LD - East Locality,LD - East Cambs - Special Needs,Residential Care
Cambridgeshire County Council,05-Jul-18,51300224427,"-2,977.44",DECOY FARM,CARE ESTABLISHMENT,LD - East Locality,LD - East Cambs - Special Needs,Residential Care
Cambridgeshire County Council,05-Jul-18,51300224432,"-2,977.44",DECOY FARM,CARE ESTABLISHMENT,LD - East Locality,LD - East Cambs - Special Needs,Residential Care
Cambridgeshire County Council,05-Jul-18,51300207761,"-2,977.44",DECOY FARM,CARE ESTABLISHMENT,LD - East Locality,LD - East Cambs - Special Needs,Residential Care
Cambridgeshire County Council,05-Jul-18,51300207767,"-2,977.44",DECOY FARM,CARE ESTABLISHMENT,LD - East Locality,LD - East Cambs - Special Needs,Residential Care
Cambridgeshire County Council,05-Jul-18,51300207771,"-2,977.44",DECOY FARM,CARE ESTABLISHMENT,LD - East Locality,LD - East Cambs - Special Needs,Residential Care
Cambridgeshire County Council,05-Jul-18,51300207736,"-2,977.44",DECOY FARM,CARE ESTABLISHMENT,LD - East Locality,LD - East Cambs - Special Needs,Residential Care
Cambridgeshire County Council,05-Jul-18,51300207746,"-2,977.44",DECOY FARM,CARE ESTABLISHMENT,LD - East Locality,LD - East Cambs - Special Needs,Residential Care
Cambridgeshire County Council,05-Jul-18,51300207752,"-2,977.44",DECOY FARM,CARE ESTABLISHMENT,LD - East Locality,LD - East Cambs - Special Needs,Residential Care
Cambridgeshire County Council,05-Jul-18,51300207768,"-2,977.44",DECOY FARM,CARE ESTABLISHMENT,LD - East Locality,LD - East Cambs - Special Needs,Residential Care
Cambridgeshire County Council,05-Jul-18,51300207779,"-2,977.44",DECOY FARM,CARE ESTABLISHMENT,LD - East Locality,LD - East Cambs - Special Needs,Residential Care
Cambridgeshire County Council,05-Jul-18,51300207783,"-2,977.44",DECOY FARM,CARE ESTABLISHMENT,LD - East Locality,LD - East Cambs - Special Needs,Residential Care
Cambridgeshire County Council,05-Jul-18,51300207793,"-2,977.44",DECOY FARM,CARE ESTABLISHMENT,LD - East Locality,LD - East Cambs - Special Needs,Residential Care
Cambridgeshire County Council,05-Jul-18,51300207805,"-2,977.44",DECOY FARM,CARE ESTABLISHMENT,LD - East Locality,LD - East Cambs - Special Needs,Residential Care
Cambridgeshire County Council,05-Jul-18,51300224367,"-2,977.44",DECOY FARM,CARE ESTABLISHMENT,LD - East Locality,LD - East Cambs - Special Needs,Residential Care
Cambridgeshire County Council,05-Jul-18,51300224369,"-2,977.44",DECOY FARM,CARE ESTABLISHMENT,LD - East Locality,LD - East Cambs - Special Needs,Residential Care
Cambridgeshire County Council,05-Jul-18,51300224411,"-2,977.44",DECOY FARM,CARE ESTABLISHMENT,LD - East Locality,LD - East Cambs - Special Needs,Residential Care
Cambridgeshire County Council,05-Jul-18,51300224440,"-2,977.44",DECOY FARM,CARE ESTABLISHMENT,LD - East Locality,LD - East Cambs - Special Needs,Residential Care
Cambridgeshire County Council,05-Jul-18,51300224443,"-2,977.44",DECOY FARM,CARE ESTABLISHMENT,LD - East Locality,LD - East Cambs - Special Needs,Residential Care
Cambridgeshire County Council,05-Jul-18,51300224457,"-2,977.44",DECOY FARM,CARE ESTABLISHMENT,LD - East Locality,LD - East Cambs - Special Needs,Residential Care
Cambridgeshire County Council,05-Jul-18,51300224465,"-2,977.44",DECOY FARM,CARE ESTABLISHMENT,LD - East Locality,LD - East Cambs - Special Needs,Residential Care
Cambridgeshire County Council,05-Jul-18,51300224466,"-2,977.44",DECOY FARM,CARE ESTABLISHMENT,LD - East Locality,LD - East Cambs - Special Needs,Residential Care
Cambridgeshire County Council,05-Jul-18,51300224470,"-2,977.44",DECOY FARM,CARE ESTABLISHMENT,LD - East Locality,LD - East Cambs - Special Needs,Residential Care
Cambridgeshire County Council,05-Jul-18,51300224439,"-2,977.44",DECOY FARM,CARE ESTABLISHMENT,LD - East Locality,LD - East Cambs - Special Needs,Residential Care
Cambridgeshire County Council,05-Jul-18,51300224458,"-2,977.44",DECOY FARM,CARE ESTABLISHMENT,LD - East Locality,LD - East Cambs - Special Needs,Residential Care
Cambridgeshire County Council,05-Jul-18,51300224469,"-2,977.44",DECOY FARM,CARE ESTABLISHMENT,LD - East Locality,LD - East Cambs - Special Needs,Residential Care
Cambridgeshire County Council,05-Jul-18,51300224501,"-2,977.44",DECOY FARM,CARE ESTABLISHMENT,LD - East Locality,LD - East Cambs - Special Needs,Residential Care
Cambridgeshire County Council,05-Jul-18,51300179350,"-2,977.44",DECOY FARM,CARE ESTABLISHMENT,LD - East Locality,LD - East Cambs - Special Needs,Residential Care
Cambridgeshire County Council,05-Jul-18,51300179364,"-2,977.44",DECOY FARM,CARE ESTABLISHMENT,LD - East Locality,LD - East Cambs - Special Needs,Residential Care
Cambridgeshire County Council,05-Jul-18,51300179387,"-2,977.44",DECOY FARM,CARE ESTABLISHMENT,LD - East Locality,LD - East Cambs - Special Needs,Residential Care
Cambridgeshire County Council,05-Jul-18,51300179396,"-2,977.44",DECOY FARM,CARE ESTABLISHMENT,LD - East Locality,LD - East Cambs - Special Needs,Residential Care
Cambridgeshire County Council,05-Jul-18,51300179400,"-2,977.44",DECOY FARM,CARE ESTABLISHMENT,LD - East Locality,LD - East Cambs - Special Needs,Residential Care
Cambridgeshire County Council,05-Jul-18,51300179370,"-2,977.44",DECOY FARM,CARE ESTABLISHMENT,LD - East Locality,LD - East Cambs - Special Needs,Residential Care
Cambridgeshire County Council,05-Jul-18,51300179374,"-2,977.44",DECOY FARM,CARE ESTABLISHMENT,LD - East Locality,LD - East Cambs - Special Needs,Residential Care
Cambridgeshire County Council,05-Jul-18,51300179381,"-2,977.44",DECOY FARM,CARE ESTABLISHMENT,LD - East Locality,LD - East Cambs - Special Needs,Residential Care
Cambridgeshire County Council,05-Jul-18,51300179383,"-2,977.44",DECOY FARM,CARE ESTABLISHMENT,LD - East Locality,LD - East Cambs - Special Needs,Residential Care
Cambridgeshire County Council,05-Jul-18,51300179384,"-2,977.44",DECOY FARM,CARE ESTABLISHMENT,LD - East Locality,LD - East Cambs - Special Needs,Residential Care
Cambridgeshire County Council,05-Jul-18,51300179402,"-2,977.44",DECOY FARM,CARE ESTABLISHMENT,LD - East Locality,LD - East Cambs - Special Needs,Residential Care
Cambridgeshire County Council,05-Jul-18,51300179403,"-2,977.44",DECOY FARM,CARE ESTABLISHMENT,LD - East Locality,LD - East Cambs - Special Needs,Residential Care
Cambridgeshire County Council,05-Jul-18,51300179404,"-2,977.44",DECOY FARM,CARE ESTABLISHMENT,LD - East Locality,LD - East Cambs - Special Needs,Residential Care
Cambridgeshire County Council,05-Jul-18,51300179467,"-2,977.44",DECOY FARM,CARE ESTABLISHMENT,LD - East Locality,LD - East Cambs - Special Needs,Residential Care
Cambridgeshire County Council,05-Jul-18,51300179472,"-2,977.44",DECOY FARM,CARE ESTABLISHMENT,LD - East Locality,LD - East Cambs - Special Needs,Residential Care
Cambridgeshire County Council,05-Jul-18,51300179496,"-2,977.44",DECOY FARM,CARE ESTABLISHMENT,LD - East Locality,LD - East Cambs - Special Needs,Residential Care
Cambridgeshire County Council,05-Jul-18,51300179498,"-2,977.44",DECOY FARM,CARE ESTABLISHMENT,LD - East Locality,LD - East Cambs - Special Needs,Residential Care
Cambridgeshire County Council,05-Jul-18,51300179520,"-2,977.44",DECOY FARM,CARE ESTABLISHMENT,LD - East Locality,LD - East Cambs - Special Needs,Residential Care
Cambridgeshire County Council,05-Jul-18,51300207667,"-2,977.44",DECOY FARM,CARE ESTABLISHMENT,LD - East Locality,LD - East Cambs - Special Needs,Residential Care
Cambridgeshire County Council,05-Jul-18,51300207673,"-2,977.44",DECOY FARM,CARE ESTABLISHMENT,LD - East Locality,LD - East Cambs - Special Needs,Residential Care
Cambridgeshire County Council,05-Jul-18,51300207686,"-2,977.44",DECOY FARM,CARE ESTABLISHMENT,LD - East Locality,LD - East Cambs - Special Needs,Residential Care
Cambridgeshire County Council,05-Jul-18,51300207716,"-2,977.44",DECOY FARM,CARE ESTABLISHMENT,LD - East Locality,LD - East Cambs - Special Needs,Residential Care
Cambridgeshire County Council,05-Jul-18,51300207717,"-2,977.44",DECOY FARM,CARE ESTABLISHMENT,LD - East Locality,LD - East Cambs - Special Needs,Residential Care
Cambridgeshire County Council,05-Jul-18,51300207721,"-2,977.44",DECOY FARM,CARE ESTABLISHMENT,LD - East Locality,LD - East Cambs - Special Needs,Residential Care
Cambridgeshire County Council,05-Jul-18,51300207739,"-2,977.44",DECOY FARM,CARE ESTABLISHMENT,LD - East Locality,LD - East Cambs - Special Needs,Residential Care
Cambridgeshire County Council,05-Jul-18,51300179422,"-2,977.44",DECOY FARM,CARE ESTABLISHMENT,LD - East Locality,LD - East Cambs - Special Needs,Residential Care
Cambridgeshire County Council,05-Jul-18,51300179464,"-2,977.44",DECOY FARM,CARE ESTABLISHMENT,LD - East Locality,LD - East Cambs - Special Needs,Residential Care
Cambridgeshire County Council,05-Jul-18,51300179468,"-2,977.44",DECOY FARM,CARE ESTABLISHMENT,LD - East Locality,LD - East Cambs - Special Needs,Residential Care
Cambridgeshire County Council,05-Jul-18,51300179482,"-2,977.44",DECOY FARM,CARE ESTABLISHMENT,LD - East Locality,LD - East Cambs - Special Needs,Residential Care
Cambridgeshire County Council,05-Jul-18,51300179488,"-2,977.44",DECOY FARM,CARE ESTABLISHMENT,LD - East Locality,LD - East Cambs - Special Needs,Residential Care
Cambridgeshire County Council,05-Jul-18,51300207668,"-2,977.44",DECOY FARM,CARE ESTABLISHMENT,LD - East Locality,LD - East Cambs - Special Needs,Residential Care
Cambridgeshire County Council,05-Jul-18,51300207688,"-2,977.44",DECOY FARM,CARE ESTABLISHMENT,LD - East Locality,LD - East Cambs - Special Needs,Residential Care
Cambridgeshire County Council,05-Jul-18,51300207709,"-2,977.44",DECOY FARM,CARE ESTABLISHMENT,LD - East Locality,LD - East Cambs - Special Needs,Residential Care
Cambridgeshire County Council,05-Jul-18,51300179430,"-2,977.44",DECOY FARM,CARE ESTABLISHMENT,LD - East Locality,LD - East Cambs - Special Needs,Residential Care
Cambridgeshire County Council,05-Jul-18,51300207737,"-2,977.44",DECOY FARM,CARE ESTABLISHMENT,LD - East Locality,LD - East Cambs - Special Needs,Residential Care
Cambridgeshire County Council,05-Jul-18,51300207749,"-2,977.44",DECOY FARM,CARE ESTABLISHMENT,LD - East Locality,LD - East Cambs - Special Needs,Residential Care
Cambridgeshire County Council,05-Jul-18,51300207751,"-2,977.44",DECOY FARM,CARE ESTABLISHMENT,LD - East Locality,LD - East Cambs - Special Needs,Residential Care
Cambridgeshire County Council,05-Jul-18,51300207747,"-2,977.44",DECOY FARM,CARE ESTABLISHMENT,LD - East Locality,LD - East Cambs - Special Needs,Residential Care
Cambridgeshire County Council,05-Jul-18,51300207753,"-2,977.44",DECOY FARM,CARE ESTABLISHMENT,LD - East Locality,LD - East Cambs - Special Needs,Residential Care
Cambridgeshire County Council,05-Jul-18,51300207777,"-2,977.44",DECOY FARM,CARE ESTABLISHMENT,LD - East Locality,LD - East Cambs - Special Needs,Residential Care
Cambridgeshire County Council,05-Jul-18,51300207795,"-2,977.44",DECOY FARM,CARE ESTABLISHMENT,LD - East Locality,LD - East Cambs - Special Needs,Residential Care
Cambridgeshire County Council,05-Jul-18,51300207800,"-2,977.44",DECOY FARM,CARE ESTABLISHMENT,LD - East Locality,LD - East Cambs - Special Needs,Residential Care
Cambridgeshire County Council,05-Jul-18,51300207804,"-2,977.44",DECOY FARM,CARE ESTABLISHMENT,LD - East Locality,LD - East Cambs - Special Needs,Residential Care
Cambridgeshire County Council,05-Jul-18,51300179490,"-2,977.44",DECOY FARM,CARE ESTABLISHMENT,LD - East Locality,LD - East Cambs - Special Needs,Residential Care
Cambridgeshire County Council,05-Jul-18,51300207680,"-2,977.44",DECOY FARM,CARE ESTABLISHMENT,LD - East Locality,LD - East Cambs - Special Needs,Residential Care
Cambridgeshire County Council,05-Jul-18,51300207687,"-2,977.44",DECOY FARM,CARE ESTABLISHMENT,LD - East Locality,LD - East Cambs - Special Needs,Residential Care
Cambridgeshire County Council,05-Jul-18,51300207691,"-2,977.44",DECOY FARM,CARE ESTABLISHMENT,LD - East Locality,LD - East Cambs - Special Needs,Residential Care
Cambridgeshire County Council,05-Jul-18,51300207694,"-2,977.44",DECOY FARM,CARE ESTABLISHMENT,LD - East Locality,LD - East Cambs - Special Needs,Residential Care
Cambridgeshire County Council,05-Jul-18,51300179428,"-2,977.44",DECOY FARM,CARE ESTABLISHMENT,LD - East Locality,LD - East Cambs - Special Needs,Residential Care
Cambridgeshire County Council,05-Jul-18,51300179517,"-2,977.44",DECOY FARM,CARE ESTABLISHMENT,LD - East Locality,LD - East Cambs - Special Needs,Residential Care
Cambridgeshire County Council,05-Jul-18,51300207664,"-2,977.44",DECOY FARM,CARE ESTABLISHMENT,LD - East Locality,LD - East Cambs - Special Needs,Residential Care
Cambridgeshire County Council,05-Jul-18,51300207665,"-2,977.44",DECOY FARM,CARE ESTABLISHMENT,LD - East Locality,LD - East Cambs - Special Needs,Residential Care
Cambridgeshire County Council,05-Jul-18,51300207670,"-2,977.44",DECOY FARM,CARE ESTABLISHMENT,LD - East Locality,LD - East Cambs - Special Needs,Residential Care
Cambridgeshire County Council,05-Jul-18,51300179458,"-2,977.44",DECOY FARM,CARE ESTABLISHMENT,LD - East Locality,LD - East Cambs - Special Needs,Residential Care
Cambridgeshire County Council,05-Jul-18,51300179479,"-2,977.44",DECOY FARM,CARE ESTABLISHMENT,LD - East Locality,LD - East Cambs - Special Needs,Residential Care
Cambridgeshire County Council,05-Jul-18,51300179484,"-2,977.44",DECOY FARM,CARE ESTABLISHMENT,LD - East Locality,LD - East Cambs - Special Needs,Residential Care
Cambridgeshire County Council,05-Jul-18,51300179502,"-2,977.44",DECOY FARM,CARE ESTABLISHMENT,LD - East Locality,LD - East Cambs - Special Needs,Residential Care
Cambridgeshire County Council,05-Jul-18,51300179509,"-2,977.44",DECOY FARM,CARE ESTABLISHMENT,LD - East Locality,LD - East Cambs - Special Needs,Residential Care
Cambridgeshire County Council,05-Jul-18,51300207757,"-2,977.44",DECOY FARM,CARE ESTABLISHMENT,LD - East Locality,LD - East Cambs - Special Needs,Residential Care
Cambridgeshire County Council,05-Jul-18,51300207797,"-2,977.44",DECOY FARM,CARE ESTABLISHMENT,LD - East Locality,LD - East Cambs - Special Needs,Residential Care
Cambridgeshire County Council,05-Jul-18,51300207774,"-2,977.44",DECOY FARM,CARE ESTABLISHMENT,LD - East Locality,LD - East Cambs - Special Needs,Residential Care
Cambridgeshire County Council,05-Jul-18,51300207785,"-2,977.44",DECOY FARM,CARE ESTABLISHMENT,LD - East Locality,LD - East Cambs - Special Needs,Residential Care
Cambridgeshire County Council,05-Jul-18,51300207696,"-2,977.44",DECOY FARM,CARE ESTABLISHMENT,LD - East Locality,LD - East Cambs - Special Needs,Residential Care
Cambridgeshire County Council,05-Jul-18,51300207707,"-2,977.44",DECOY FARM,CARE ESTABLISHMENT,LD - East Locality,LD - East Cambs - Special Needs,Residential Care
Cambridgeshire County Council,05-Jul-18,51300207708,"-2,977.44",DECOY FARM,CARE ESTABLISHMENT,LD - East Locality,LD - East Cambs - Special Needs,Residential Care
Cambridgeshire County Council,05-Jul-18,51300207713,"-2,977.44",DECOY FARM,CARE ESTABLISHMENT,LD - East Locality,LD - East Cambs - Special Needs,Residential Care
Cambridgeshire County Council,05-Jul-18,51300207722,"-2,977.44",DECOY FARM,CARE ESTABLISHMENT,LD - East Locality,LD - East Cambs - Special Needs,Residential Care
Cambridgeshire County Council,05-Jul-18,51300207723,"-2,977.44",DECOY FARM,CARE ESTABLISHMENT,LD - East Locality,LD - East Cambs - Special Needs,Residential Care
Cambridgeshire County Council,05-Jul-18,51300224365,"-2,977.44",DECOY FARM,CARE ESTABLISHMENT,LD - East Locality,LD - East Cambs - Special Needs,Residential Care
Cambridgeshire County Council,05-Jul-18,51300224370,"-2,977.44",DECOY FARM,CARE ESTABLISHMENT,LD - East Locality,LD - East Cambs - Special Needs,Residential Care
Cambridgeshire County Council,05-Jul-18,51300224393,"-2,977.44",DECOY FARM,CARE ESTABLISHMENT,LD - East Locality,LD - East Cambs - Special Needs,Residential Care
Cambridgeshire County Council,05-Jul-18,51300207738,"-2,977.44",DECOY FARM,CARE ESTABLISHMENT,LD - East Locality,LD - East Cambs - Special Needs,Residential Care
Cambridgeshire County Council,12-Jul-18,51300233432,"-2,977.44",DECOY FARM,CARE ESTABLISHMENT,LD - East Locality,LD - East Cambs - Special Needs,Residential Care
Cambridgeshire County Council,12-Jul-18,51300233465,"-2,977.44",DECOY FARM,CARE ESTABLISHMENT,LD - East Locality,LD - East Cambs - Special Needs,Residential Care
Cambridgeshire County Council,12-Jul-18,51300233519,"-2,977.44",DECOY FARM,CARE ESTABLISHMENT,LD - East Locality,LD - East Cambs - Special Needs,Residential Care
Cambridgeshire County Council,12-Jul-18,51300233520,"-2,977.44",DECOY FARM,CARE ESTABLISHMENT,LD - East Locality,LD - East Cambs - Special Needs,Residential Care
Cambridgeshire County Council,12-Jul-18,51300233411,"-2,977.44",DECOY FARM,CARE ESTABLISHMENT,LD - East Locality,LD - East Cambs - Special Needs,Residential Care
Cambridgeshire County Council,12-Jul-18,51300233511,"-2,977.44",DECOY FARM,CARE ESTABLISHMENT,LD - East Locality,LD - East Cambs - Special Needs,Residential Care
Cambridgeshire County Council,12-Jul-18,51300233397,"-2,977.44",DECOY FARM,CARE ESTABLISHMENT,LD - East Locality,LD - East Cambs - Special Needs,Residential Care
Cambridgeshire County Council,12-Jul-18,51300233402,"-2,977.44",DECOY FARM,CARE ESTABLISHMENT,LD - East Locality,LD - East Cambs - Special Needs,Residential Care
Cambridgeshire County Council,12-Jul-18,51300233455,"-2,977.44",DECOY FARM,CARE ESTABLISHMENT,LD - East Locality,LD - East Cambs - Special Needs,Residential Care
Cambridgeshire County Council,12-Jul-18,51300233509,"-2,977.44",DECOY FARM,CARE ESTABLISHMENT,LD - East Locality,LD - East Cambs - Special Needs,Residential Care
Cambridgeshire County Council,12-Jul-18,51300233454,"-2,977.44",DECOY FARM,CARE ESTABLISHMENT,LD - East Locality,LD - East Cambs - Special Needs,Residential Care
Cambridgeshire County Council,12-Jul-18,51300233466,"-2,977.44",DECOY FARM,CARE ESTABLISHMENT,LD - East Locality,LD - East Cambs - Special Needs,Residential Care
Cambridgeshire County Council,12-Jul-18,51300233542,"-2,977.44",DECOY FARM,CARE ESTABLISHMENT,LD - East Locality,LD - East Cambs - Special Needs,Residential Care
Cambridgeshire County Council,12-Jul-18,51300233450,"-2,977.44",DECOY FARM,CARE ESTABLISHMENT,LD - East Locality,LD - East Cambs - Special Needs,Residential Care
Cambridgeshire County Council,12-Jul-18,51300233487,"-2,977.44",DECOY FARM,CARE ESTABLISHMENT,LD - East Locality,LD - East Cambs - Special Needs,Residential Care
Cambridgeshire County Council,12-Jul-18,51300233425,"-2,977.44",DECOY FARM,CARE ESTABLISHMENT,LD - East Locality,LD - East Cambs - Special Needs,Residential Care
Cambridgeshire County Council,12-Jul-18,51300233438,"-2,977.44",DECOY FARM,CARE ESTABLISHMENT,LD - East Locality,LD - East Cambs - Special Needs,Residential Care
Cambridgeshire County Council,12-Jul-18,51300233407,"-2,977.44",DECOY FARM,CARE ESTABLISHMENT,LD - East Locality,LD - East Cambs - Special Needs,Residential Care
Cambridgeshire County Council,12-Jul-18,51300233532,"-2,977.44",DECOY FARM,CARE ESTABLISHMENT,LD - East Locality,LD - East Cambs - Special Needs,Residential Care
Cambridgeshire County Council,12-Jul-18,51300233545,"-2,977.44",DECOY FARM,CARE ESTABLISHMENT,LD - East Locality,LD - East Cambs - Special Needs,Residential Care
Cambridgeshire County Council,12-Jul-18,51300233521,"-2,977.44",DECOY FARM,CARE ESTABLISHMENT,LD - East Locality,LD - East Cambs - Special Needs,Residential Care
Cambridgeshire County Council,12-Jul-18,51300233529,"-2,977.44",DECOY FARM,CARE ESTABLISHMENT,LD - East Locality,LD - East Cambs - Special Needs,Residential Care
Cambridgeshire County Council,12-Jul-18,51300233396,"-2,977.44",DECOY FARM,CARE ESTABLISHMENT,LD - East Locality,LD - East Cambs - Special Needs,Residential Care
Cambridgeshire County Council,12-Jul-18,51300233398,"-2,977.44",DECOY FARM,CARE ESTABLISHMENT,LD - East Locality,LD - East Cambs - Special Needs,Residential Care
Cambridgeshire County Council,12-Jul-18,51300233419,"-2,977.44",DECOY FARM,CARE ESTABLISHMENT,LD - East Locality,LD - East Cambs - Special Needs,Residential Care
Cambridgeshire County Council,12-Jul-18,51300233427,"-2,977.44",DECOY FARM,CARE ESTABLISHMENT,LD - East Locality,LD - East Cambs - Special Needs,Residential Care
Cambridgeshire County Council,12-Jul-18,51300233435,"-2,977.44",DECOY FARM,CARE ESTABLISHMENT,LD - East Locality,LD - East Cambs - Special Needs,Residential Care
Cambridgeshire County Council,12-Jul-18,51300233440,"-2,977.44",DECOY FARM,CARE ESTABLISHMENT,LD - East Locality,LD - East Cambs - Special Needs,Residential Care
Cambridgeshire County Council,12-Jul-18,51300233449,"-2,977.44",DECOY FARM,CARE ESTABLISHMENT,LD - East Locality,LD - East Cambs - Special Needs,Residential Care
Cambridgeshire County Council,12-Jul-18,51300233451,"-2,977.44",DECOY FARM,CARE ESTABLISHMENT,LD - East Locality,LD - East Cambs - Special Needs,Residential Care
Cambridgeshire County Council,12-Jul-18,51300233508,"-2,977.44",DECOY FARM,CARE ESTABLISHMENT,LD - East Locality,LD - East Cambs - Special Needs,Residential Care
Cambridgeshire County Council,12-Jul-18,51300233510,"-2,977.44",DECOY FARM,CARE ESTABLISHMENT,LD - East Locality,LD - East Cambs - Special Needs,Residential Care
Cambridgeshire County Council,12-Jul-18,51300233517,"-2,977.44",DECOY FARM,CARE ESTABLISHMENT,LD - East Locality,LD - East Cambs - Special Needs,Residential Care
Cambridgeshire County Council,12-Jul-18,51300233524,"-2,977.44",DECOY FARM,CARE ESTABLISHMENT,LD - East Locality,LD - East Cambs - Special Needs,Residential Care
Cambridgeshire County Council,12-Jul-18,51300233525,"-2,977.44",DECOY FARM,CARE ESTABLISHMENT,LD - East Locality,LD - East Cambs - Special Needs,Residential Care
Cambridgeshire County Council,12-Jul-18,51300233527,"-2,977.44",DECOY FARM,CARE ESTABLISHMENT,LD - East Locality,LD - East Cambs - Special Needs,Residential Care
Cambridgeshire County Council,12-Jul-18,51300233528,"-2,977.44",DECOY FARM,CARE ESTABLISHMENT,LD - East Locality,LD - East Cambs - Special Needs,Residential Care
Cambridgeshire County Council,12-Jul-18,51300233462,"-2,977.44",DECOY FARM,CARE ESTABLISHMENT,LD - East Locality,LD - East Cambs - Special Needs,Residential Care
Cambridgeshire County Council,12-Jul-18,51300233477,"-2,977.44",DECOY FARM,CARE ESTABLISHMENT,LD - East Locality,LD - East Cambs - Special Needs,Residential Care
Cambridgeshire County Council,12-Jul-18,51300233401,"-2,977.44",DECOY FARM,CARE ESTABLISHMENT,LD - East Locality,LD - East Cambs - Special Needs,Residential Care
Cambridgeshire County Council,12-Jul-18,51300233414,"-2,977.44",DECOY FARM,CARE ESTABLISHMENT,LD - East Locality,LD - East Cambs - Special Needs,Residential Care
Cambridgeshire County Council,12-Jul-18,51300233436,"-2,977.44",DECOY FARM,CARE ESTABLISHMENT,LD - East Locality,LD - East Cambs - Special Needs,Residential Care
Cambridgeshire County Council,12-Jul-18,51300233441,"-2,977.44",DECOY FARM,CARE ESTABLISHMENT,LD - East Locality,LD - East Cambs - Special Needs,Residential Care
Cambridgeshire County Council,12-Jul-18,51300233442,"-2,977.44",DECOY FARM,CARE ESTABLISHMENT,LD - East Locality,LD - East Cambs - Special Needs,Residential Care
Cambridgeshire County Council,12-Jul-18,51300233456,"-2,977.44",DECOY FARM,CARE ESTABLISHMENT,LD - East Locality,LD - East Cambs - Special Needs,Residential Care
Cambridgeshire County Council,12-Jul-18,51300233457,"-2,977.44",DECOY FARM,CARE ESTABLISHMENT,LD - East Locality,LD - East Cambs - Special Needs,Residential Care
Cambridgeshire County Council,12-Jul-18,51300233459,"-2,977.44",DECOY FARM,CARE ESTABLISHMENT,LD - East Locality,LD - East Cambs - Special Needs,Residential Care
Cambridgeshire County Council,12-Jul-18,51300233405,"-2,977.44",DECOY FARM,CARE ESTABLISHMENT,LD - East Locality,LD - East Cambs - Special Needs,Residential Care
Cambridgeshire County Council,12-Jul-18,51300233410,"-2,977.44",DECOY FARM,CARE ESTABLISHMENT,LD - East Locality,LD - East Cambs - Special Needs,Residential Care
Cambridgeshire County Council,12-Jul-18,51300233412,"-2,977.44",DECOY FARM,CARE ESTABLISHMENT,LD - East Locality,LD - East Cambs - Special Needs,Residential Care
Cambridgeshire County Council,12-Jul-18,51300233484,"-2,977.44",DECOY FARM,CARE ESTABLISHMENT,LD - East Locality,LD - East Cambs - Special Needs,Residential Care
Cambridgeshire County Council,12-Jul-18,51300233485,"-2,977.44",DECOY FARM,CARE ESTABLISHMENT,LD - East Locality,LD - East Cambs - Special Needs,Residential Care
Cambridgeshire County Council,12-Jul-18,51300233499,"-2,977.44",DECOY FARM,CARE ESTABLISHMENT,LD - East Locality,LD - East Cambs - Special Needs,Residential Care
Cambridgeshire County Council,12-Jul-18,51300233429,"-2,977.44",DECOY FARM,CARE ESTABLISHMENT,LD - East Locality,LD - East Cambs - Special Needs,Residential Care
Cambridgeshire County Council,12-Jul-18,51300233453,"-2,977.44",DECOY FARM,CARE ESTABLISHMENT,LD - East Locality,LD - East Cambs - Special Needs,Residential Care
Cambridgeshire County Council,12-Jul-18,51300233458,"-2,977.44",DECOY FARM,CARE ESTABLISHMENT,LD - East Locality,LD - East Cambs - Special Needs,Residential Care
Cambridgeshire County Council,12-Jul-18,51300233461,"-2,977.44",DECOY FARM,CARE ESTABLISHMENT,LD - East Locality,LD - East Cambs - Special Needs,Residential Care
Cambridgeshire County Council,12-Jul-18,51300233481,"-2,977.44",DECOY FARM,CARE ESTABLISHMENT,LD - East Locality,LD - East Cambs - Special Needs,Residential Care
Cambridgeshire County Council,12-Jul-18,51300233469,"-2,977.44",DECOY FARM,CARE ESTABLISHMENT,LD - East Locality,LD - East Cambs - Special Needs,Residential Care
Cambridgeshire County Council,12-Jul-18,51300233476,"-2,977.44",DECOY FARM,CARE ESTABLISHMENT,LD - East Locality,LD - East Cambs - Special Needs,Residential Care
Cambridgeshire County Council,12-Jul-18,51300233486,"-2,977.44",DECOY FARM,CARE ESTABLISHMENT,LD - East Locality,LD - East Cambs - Special Needs,Residential Care
Cambridgeshire County Council,12-Jul-18,51300233489,"-2,977.44",DECOY FARM,CARE ESTABLISHMENT,LD - East Locality,LD - East Cambs - Special Needs,Residential Care
Cambridgeshire County Council,12-Jul-18,51300233492,"-2,977.44",DECOY FARM,CARE ESTABLISHMENT,LD - East Locality,LD - East Cambs - Special Needs,Residential Care
Cambridgeshire County Council,12-Jul-18,51300233496,"-2,977.44",DECOY FARM,CARE ESTABLISHMENT,LD - East Locality,LD - East Cambs - Special Needs,Residential Care
Cambridgeshire County Council,12-Jul-18,51300233506,"-2,977.44",DECOY FARM,CARE ESTABLISHMENT,LD - East Locality,LD - East Cambs - Special Needs,Residential Care
Cambridgeshire County Council,12-Jul-18,51300233507,"-2,977.44",DECOY FARM,CARE ESTABLISHMENT,LD - East Locality,LD - East Cambs - Special Needs,Residential Care
Cambridgeshire County Council,12-Jul-18,51300233518,"-2,977.44",DECOY FARM,CARE ESTABLISHMENT,LD - East Locality,LD - East Cambs - Special Needs,Residential Care
Cambridgeshire County Council,12-Jul-18,51300233422,"-2,977.44",DECOY FARM,CARE ESTABLISHMENT,LD - East Locality,LD - East Cambs - Special Needs,Residential Care
Cambridgeshire County Council,12-Jul-18,51300233399,"-2,977.44",DECOY FARM,CARE ESTABLISHMENT,LD - East Locality,LD - East Cambs - Special Needs,Residential Care
Cambridgeshire County Council,12-Jul-18,51300233409,"-2,977.44",DECOY FARM,CARE ESTABLISHMENT,LD - East Locality,LD - East Cambs - Special Needs,Residential Care
Cambridgeshire County Council,12-Jul-18,51300233473,"-2,977.44",DECOY FARM,CARE ESTABLISHMENT,LD - East Locality,LD - East Cambs - Special Needs,Residential Care
Cambridgeshire County Council,12-Jul-18,51300233497,"-2,977.44",DECOY FARM,CARE ESTABLISHMENT,LD - East Locality,LD - East Cambs - Special Needs,Residential Care
Cambridgeshire County Council,12-Jul-18,51300233523,"-2,977.44",DECOY FARM,CARE ESTABLISHMENT,LD - East Locality,LD - East Cambs - Special Needs,Residential Care
Cambridgeshire County Council,25-Jul-18,51300230924,"-2,841.61",CARTER CABIN HIRE LIMITED,COMPANY,Buildings and Capital,Education Property Strategy Manager,Capital - Assets Under Construction
Cambridgeshire County Council,02-Jul-18,51300215255,"-2,665.85",EAGLE WOOD NEUROLOGICAL CARE,CARE ESTABLISHMENT,OPMH - City & South,Older People Mental Health City & South,Nursing Care
Cambridgeshire County Council,02-Jul-18,51300215267,"-2,665.85",EAGLE WOOD NEUROLOGICAL CARE,CARE ESTABLISHMENT,OPMH - City & South,Older People Mental Health City & South,Nursing Care
Cambridgeshire County Council,02-Jul-18,51300215254,"-2,665.85",EAGLE WOOD NEUROLOGICAL CARE,CARE ESTABLISHMENT,OPMH - City & South,Older People Mental Health City & South,Nursing Care
Cambridgeshire County Council,02-Jul-18,51300215251,"-2,665.85",EAGLE WOOD NEUROLOGICAL CARE,CARE ESTABLISHMENT,OPMH - City & South,Older People Mental Health City & South,Nursing Care
Cambridgeshire County Council,02-Jul-18,51300215257,"-2,665.85",EAGLE WOOD NEUROLOGICAL CARE,CARE ESTABLISHMENT,OPMH - City & South,Older People Mental Health City & South,Nursing Care
Cambridgeshire County Council,02-Jul-18,51300215250,"-2,665.85",EAGLE WOOD NEUROLOGICAL CARE,CARE ESTABLISHMENT,OPMH - City & South,Older People Mental Health City & South,Nursing Care
Cambridgeshire County Council,02-Jul-18,51300215259,"-2,665.85",EAGLE WOOD NEUROLOGICAL CARE,CARE ESTABLISHMENT,OPMH - City & South,Older People Mental Health City & South,Nursing Care
Cambridgeshire County Council,02-Jul-18,51300215263,"-2,665.85",EAGLE WOOD NEUROLOGICAL CARE,CARE ESTABLISHMENT,OPMH - City & South,Older People Mental Health City & South,Nursing Care
Cambridgeshire County Council,02-Jul-18,51300215260,"-2,665.85",EAGLE WOOD NEUROLOGICAL CARE,CARE ESTABLISHMENT,OPMH - City & South,Older People Mental Health City & South,Nursing Care
Cambridgeshire County Council,02-Jul-18,51300215264,"-2,665.85",EAGLE WOOD NEUROLOGICAL CARE,CARE ESTABLISHMENT,OPMH - City & South,Older People Mental Health City & South,Nursing Care
Cambridgeshire County Council,02-Jul-18,51300215268,"-2,665.85",EAGLE WOOD NEUROLOGICAL CARE,CARE ESTABLISHMENT,OPMH - City & South,Older People Mental Health City & South,Nursing Care
Cambridgeshire County Council,02-Jul-18,51300215269,"-2,665.85",EAGLE WOOD NEUROLOGICAL CARE,CARE ESTABLISHMENT,OPMH - City & South,Older People Mental Health City & South,Nursing Care
Cambridgeshire County Council,05-Jul-18,51300179391,"-2,552.09",DECOY FARM,CARE ESTABLISHMENT,LD - East Locality,LD - East Cambs - Special Needs,Residential Care
Cambridgeshire County Council,05-Jul-18,51300207685,"-2,552.09",DECOY FARM,CARE ESTABLISHMENT,LD - East Locality,LD - East Cambs - Special Needs,Residential Care
Cambridgeshire County Council,05-Jul-18,51300224437,"-2,552.09",DECOY FARM,CARE ESTABLISHMENT,LD - East Locality,LD - East Cambs - Special Needs,Residential Care
Cambridgeshire County Council,12-Jul-18,51300233452,"-2,552.09",DECOY FARM,CARE ESTABLISHMENT,LD - East Locality,LD - East Cambs - Special Needs,Residential Care
Cambridgeshire County Council,02-Jul-18,51300213043,"-2,500.00",SOHAM LODGE,CARE ESTABLISHMENT,Physical Disablity,Countywide PD Service - Care,Nursing Care
Cambridgeshire County Council,12-Jul-18,51300219967,"-2,360.52",GLENHOLME HEALTHCARE LTD,CARE ESTABLISHMENT,LD - Hunts Locality,LD - Huntigndonshire  - Care,Supported Living
Cambridgeshire County Council,12-Jul-18,51300219973,"-2,360.52",GLENHOLME HEALTHCARE LTD,CARE ESTABLISHMENT,LD - Hunts Locality,LD - Huntigndonshire  - Care,Supported Living
Cambridgeshire County Council,12-Jul-18,51300219975,"-2,360.52",GLENHOLME HEALTHCARE LTD,CARE ESTABLISHMENT,LD - Hunts Locality,LD - Huntigndonshire  - Care,Supported Living
Cambridgeshire County Council,12-Jul-18,51300219965,"-2,360.52",GLENHOLME HEALTHCARE LTD,CARE ESTABLISHMENT,LD - Hunts Locality,LD - Huntigndonshire  - Care,Supported Living
Cambridgeshire County Council,12-Jul-18,51300219969,"-2,360.52",GLENHOLME HEALTHCARE LTD,CARE ESTABLISHMENT,LD - Hunts Locality,LD - Huntigndonshire  - Care,Supported Living
Cambridgeshire County Council,05-Jul-18,51300227858,"-2,337.29",DIMENSIONS (UK) LTD,CARE ESTABLISHMENT,LD - City Locality,LD - City - Special Needs,Supported Living
Cambridgeshire County Council,05-Jul-18,51300227863,"-2,337.29",DIMENSIONS (UK) LTD,CARE ESTABLISHMENT,LD - City Locality,LD - City - Special Needs,Supported Living
Cambridgeshire County Council,05-Jul-18,51300216969,"-2,337.29",DIMENSIONS (UK) LTD,CARE ESTABLISHMENT,LD - City Locality,LD - City - Special Needs,Supported Living
Cambridgeshire County Council,05-Jul-18,51300216957,"-2,337.29",DIMENSIONS (UK) LTD,CARE ESTABLISHMENT,LD - City Locality,LD - City - Special Needs,Supported Living
Cambridgeshire County Council,05-Jul-18,51300216978,"-2,337.29",DIMENSIONS (UK) LTD,CARE ESTABLISHMENT,LD - City Locality,LD - City - Special Needs,Supported Living
Cambridgeshire County Council,05-Jul-18,51300227866,"-2,337.29",DIMENSIONS (UK) LTD,CARE ESTABLISHMENT,LD - City Locality,LD - City - Special Needs,Supported Living
Cambridgeshire County Council,05-Jul-18,51300227867,"-2,337.29",DIMENSIONS (UK) LTD,CARE ESTABLISHMENT,LD - City Locality,LD - City - Special Needs,Supported Living
Cambridgeshire County Council,05-Jul-18,51300227862,"-2,337.29",DIMENSIONS (UK) LTD,CARE ESTABLISHMENT,LD - City Locality,LD - City - Special Needs,Supported Living
Cambridgeshire County Council,05-Jul-18,51300227871,"-2,337.29",DIMENSIONS (UK) LTD,CARE ESTABLISHMENT,LD - South Locality,LD - South Cambs - Special Needs,Supported Living
Cambridgeshire County Council,05-Jul-18,51300227872,"-2,337.29",DIMENSIONS (UK) LTD,CARE ESTABLISHMENT,LD - South Locality,LD - South Cambs - Special Needs,Supported Living
Cambridgeshire County Council,05-Jul-18,51300216954,"-2,337.29",DIMENSIONS (UK) LTD,CARE ESTABLISHMENT,LD - South Locality,LD - South Cambs - Special Needs,Supported Living
Cambridgeshire County Council,05-Jul-18,51300216948,"-2,337.29",DIMENSIONS (UK) LTD,CARE ESTABLISHMENT,LD - South Locality,LD - South Cambs - Special Needs,Supported Living
Cambridgeshire County Council,05-Jul-18,51300216959,"-2,337.29",DIMENSIONS (UK) LTD,CARE ESTABLISHMENT,LD - South Locality,LD - South Cambs - Special Needs,Supported Living
Cambridgeshire County Council,05-Jul-18,51300227859,"-2,337.29",DIMENSIONS (UK) LTD,CARE ESTABLISHMENT,LD - South Locality,LD - South Cambs - Special Needs,Supported Living
Cambridgeshire County Council,05-Jul-18,51300216968,"-2,337.29",DIMENSIONS (UK) LTD,CARE ESTABLISHMENT,LD - South Locality,LD - South Cambs - Special Needs,Supported Living
Cambridgeshire County Council,05-Jul-18,51300216972,"-2,337.29",DIMENSIONS (UK) LTD,CARE ESTABLISHMENT,LD - South Locality,LD - South Cambs - Special Needs,Supported Living
Cambridgeshire County Council,20-Jul-18,51300237060,"-2,337.29",DIMENSIONS (UK) LTD,CARE ESTABLISHMENT,LD - City Locality,LD - City - Special Needs,Supported Living
Cambridgeshire County Council,20-Jul-18,51300258180,"-2,337.29",DIMENSIONS (UK) LTD,CARE ESTABLISHMENT,LD - City Locality,LD - City - Special Needs,Supported Living
Cambridgeshire County Council,20-Jul-18,51300258185,"-2,337.29",DIMENSIONS (UK) LTD,CARE ESTABLISHMENT,LD - City Locality,LD - City - Special Needs,Supported Living
Cambridgeshire County Council,20-Jul-18,51300258187,"-2,337.29",DIMENSIONS (UK) LTD,CARE ESTABLISHMENT,LD - City Locality,LD - City - Special Needs,Supported Living
Cambridgeshire County Council,20-Jul-18,51300237058,"-2,337.29",DIMENSIONS (UK) LTD,CARE ESTABLISHMENT,LD - City Locality,LD - City - Special Needs,Supported Living
Cambridgeshire County Council,20-Jul-18,51300237067,"-2,337.29",DIMENSIONS (UK) LTD,CARE ESTABLISHMENT,LD - City Locality,LD - City - Special Needs,Supported Living
Cambridgeshire County Council,20-Jul-18,51300237070,"-2,337.29",DIMENSIONS (UK) LTD,CARE ESTABLISHMENT,LD - City Locality,LD - City - Special Needs,Supported Living
Cambridgeshire County Council,20-Jul-18,51300237053,"-2,337.29",DIMENSIONS (UK) LTD,CARE ESTABLISHMENT,LD - City Locality,LD - City - Special Needs,Supported Living
Cambridgeshire County Council,20-Jul-18,51300237064,"-2,337.29",DIMENSIONS (UK) LTD,CARE ESTABLISHMENT,LD - City Locality,LD - City - Special Needs,Supported Living
Cambridgeshire County Council,20-Jul-18,51300237065,"-2,337.29",DIMENSIONS (UK) LTD,CARE ESTABLISHMENT,LD - City Locality,LD - City - Special Needs,Supported Living
Cambridgeshire County Council,20-Jul-18,51300258188,"-2,337.29",DIMENSIONS (UK) LTD,CARE ESTABLISHMENT,LD - South Locality,LD - South Cambs - Special Needs,Supported Living
Cambridgeshire County Council,20-Jul-18,51300258197,"-2,337.29",DIMENSIONS (UK) LTD,CARE ESTABLISHMENT,LD - South Locality,LD - South Cambs - Special Needs,Supported Living
Cambridgeshire County Council,20-Jul-18,51300237069,"-2,337.29",DIMENSIONS (UK) LTD,CARE ESTABLISHMENT,LD - South Locality,LD - South Cambs - Special Needs,Supported Living
Cambridgeshire County Council,20-Jul-18,51300258189,"-2,337.29",DIMENSIONS (UK) LTD,CARE ESTABLISHMENT,LD - South Locality,LD - South Cambs - Special Needs,Supported Living
Cambridgeshire County Council,20-Jul-18,51300258213,"-2,337.29",DIMENSIONS (UK) LTD,CARE ESTABLISHMENT,LD - South Locality,LD - South Cambs - Special Needs,Supported Living
Cambridgeshire County Council,20-Jul-18,51300258195,"-2,337.29",DIMENSIONS (UK) LTD,CARE ESTABLISHMENT,LD - South Locality,LD - South Cambs - Special Needs,Supported Living
Cambridgeshire County Council,09-Jul-18,51300205062,"-2,309.27",LCC SUPPORT SERVICES,TRADE SUPPLIER,BM - Corporate Offices,Building Maintenance,Cleaning and Domestic Supplies
Cambridgeshire County Council,26-Jul-18,51300270289,"-2,175.47",OAKLANDS,CARE ESTABLISHMENT,LD - Hunts Locality,LD - Huntigndonshire  - Special Needs,Residential Care
Cambridgeshire County Council,26-Jul-18,51300270335,"-2,175.47",OAKLANDS,CARE ESTABLISHMENT,LD - Hunts Locality,LD - Huntigndonshire  - Special Needs,Residential Care
Cambridgeshire County Council,26-Jul-18,51300270348,"-2,175.47",OAKLANDS,CARE ESTABLISHMENT,LD - Hunts Locality,LD - Huntigndonshire  - Special Needs,Residential Care
Cambridgeshire County Council,26-Jul-18,51300270316,"-2,175.47",OAKLANDS,CARE ESTABLISHMENT,LD - Hunts Locality,LD - Huntigndonshire  - Special Needs,Residential Care
Cambridgeshire County Council,26-Jul-18,51300270328,"-2,175.47",OAKLANDS,CARE ESTABLISHMENT,LD - Hunts Locality,LD - Huntigndonshire  - Special Needs,Residential Care
Cambridgeshire County Council,02-Jul-18,51300213040,"-2,142.86",SOHAM LODGE,CARE ESTABLISHMENT,Physical Disablity,Countywide PD Service - Care,Nursing Care
Cambridgeshire County Council,09-Jul-18,51300014530,"-2,100.67",BALFOUR BEATTY LIVING PLACES LIMITED,COMPANY,Control Accounts,Control Accounts - Payables,Migration Only - Marked as Do Not Use
Cambridgeshire County Council,20-Jul-18,51300227878,"-1,914.00",THE CARESTAFF CONSULTING,CARE ESTABLISHMENT,OP - City & South Locality,Older People - City & South,Domiciliary Care
Cambridgeshire County Council,20-Jul-18,51300227875,"-1,914.00",THE CARESTAFF CONSULTING,CARE ESTABLISHMENT,OP - City & South Locality,Older People - City & South,Domiciliary Care
Cambridgeshire County Council,02-Jul-18,51300221034,"-1,850.00",THE MARBROOK CENTRE,CARE ESTABLISHMENT,OPMH - Hunts & Fens,Older People Mental Health Hunts,Nursing Care
Cambridgeshire County Council,02-Jul-18,51300221035,"-1,850.00",THE MARBROOK CENTRE,CARE ESTABLISHMENT,OPMH - Hunts & Fens,Older People Mental Health Hunts,Nursing Care
Cambridgeshire County Council,02-Jul-18,51300221047,"-1,850.00",THE MARBROOK CENTRE,CARE ESTABLISHMENT,OPMH - Hunts & Fens,Older People Mental Health Hunts,Nursing Care
Cambridgeshire County Council,02-Jul-18,51300221056,"-1,850.00",THE MARBROOK CENTRE,CARE ESTABLISHMENT,OPMH - Hunts & Fens,Older People Mental Health Hunts,Nursing Care
Cambridgeshire County Council,02-Jul-18,51300221044,"-1,850.00",THE MARBROOK CENTRE,CARE ESTABLISHMENT,OPMH - Hunts & Fens,Older People Mental Health Hunts,Nursing Care
Cambridgeshire County Council,02-Jul-18,51300221051,"-1,850.00",THE MARBROOK CENTRE,CARE ESTABLISHMENT,OPMH - Hunts & Fens,Older People Mental Health Hunts,Nursing Care
Cambridgeshire County Council,02-Jul-18,51300221050,"-1,850.00",THE MARBROOK CENTRE,CARE ESTABLISHMENT,OPMH - Hunts & Fens,Older People Mental Health Hunts,Nursing Care
Cambridgeshire County Council,02-Jul-18,51300221052,"-1,850.00",THE MARBROOK CENTRE,CARE ESTABLISHMENT,OPMH - Hunts & Fens,Older People Mental Health Hunts,Nursing Care
Cambridgeshire County Council,02-Jul-18,51300221043,"-1,850.00",THE MARBROOK CENTRE,CARE ESTABLISHMENT,OPMH - Hunts & Fens,Older People Mental Health Hunts,Nursing Care
Cambridgeshire County Council,02-Jul-18,51300221033,"-1,850.00",THE MARBROOK CENTRE,CARE ESTABLISHMENT,OPMH - Hunts & Fens,Older People Mental Health Hunts,Nursing Care
Cambridgeshire County Council,02-Jul-18,51300221053,"-1,850.00",THE MARBROOK CENTRE,CARE ESTABLISHMENT,OPMH - Hunts & Fens,Older People Mental Health Hunts,Nursing Care
Cambridgeshire County Council,02-Jul-18,51300221045,"-1,850.00",THE MARBROOK CENTRE,CARE ESTABLISHMENT,OPMH - Hunts & Fens,Older People Mental Health Hunts,Nursing Care
Cambridgeshire County Council,02-Jul-18,51300221779,"-1,801.20",EAGLE WOOD NEUROLOGICAL CARE,CARE ESTABLISHMENT,OPMH - Hunts & Fens,Older People Mental Health Fenland,Nursing Care
Cambridgeshire County Council,02-Jul-18,51300221781,"-1,801.20",EAGLE WOOD NEUROLOGICAL CARE,CARE ESTABLISHMENT,OPMH - Hunts & Fens,Older People Mental Health Fenland,Nursing Care
Cambridgeshire County Council,02-Jul-18,51300221783,"-1,801.20",EAGLE WOOD NEUROLOGICAL CARE,CARE ESTABLISHMENT,OPMH - Hunts & Fens,Older People Mental Health Fenland,Nursing Care
Cambridgeshire County Council,02-Jul-18,51300221764,"-1,801.20",EAGLE WOOD NEUROLOGICAL CARE,CARE ESTABLISHMENT,OPMH - Hunts & Fens,Older People Mental Health Fenland,Nursing Care
Cambridgeshire County Council,02-Jul-18,51300221762,"-1,801.20",EAGLE WOOD NEUROLOGICAL CARE,CARE ESTABLISHMENT,OPMH - Hunts & Fens,Older People Mental Health Fenland,Nursing Care
Cambridgeshire County Council,02-Jul-18,51300221775,"-1,801.20",EAGLE WOOD NEUROLOGICAL CARE,CARE ESTABLISHMENT,OPMH - Hunts & Fens,Older People Mental Health Fenland,Nursing Care
Cambridgeshire County Council,02-Jul-18,51300221784,"-1,801.20",EAGLE WOOD NEUROLOGICAL CARE,CARE ESTABLISHMENT,OPMH - Hunts & Fens,Older People Mental Health Fenland,Nursing Care
Cambridgeshire County Council,02-Jul-18,51300221772,"-1,801.20",EAGLE WOOD NEUROLOGICAL CARE,CARE ESTABLISHMENT,OPMH - Hunts & Fens,Older People Mental Health Fenland,Nursing Care
Cambridgeshire County Council,02-Jul-18,51300221765,"-1,801.20",EAGLE WOOD NEUROLOGICAL CARE,CARE ESTABLISHMENT,OPMH - Hunts & Fens,Older People Mental Health Fenland,Nursing Care
Cambridgeshire County Council,02-Jul-18,51300221768,"-1,801.20",EAGLE WOOD NEUROLOGICAL CARE,CARE ESTABLISHMENT,OPMH - Hunts & Fens,Older People Mental Health Fenland,Nursing Care
Cambridgeshire County Council,02-Jul-18,51300221770,"-1,801.20",EAGLE WOOD NEUROLOGICAL CARE,CARE ESTABLISHMENT,OPMH - Hunts & Fens,Older People Mental Health Fenland,Nursing Care
Cambridgeshire County Council,02-Jul-18,51300221777,"-1,801.20",EAGLE WOOD NEUROLOGICAL CARE,CARE ESTABLISHMENT,OPMH - Hunts & Fens,Older People Mental Health Fenland,Nursing Care
Cambridgeshire County Council,20-Jul-18,51300256487,"-1,711.36",AFFINITY TRUST,CARE ESTABLISHMENT,LD - Fenland Locality,LD - Fenland  - Special Needs,Supported Living
Cambridgeshire County Council,20-Jul-18,51300256495,"-1,711.36",AFFINITY TRUST,CARE ESTABLISHMENT,LD - Fenland Locality,LD - Fenland  - Special Needs,Supported Living
Cambridgeshire County Council,20-Jul-18,51300256509,"-1,711.36",AFFINITY TRUST,CARE ESTABLISHMENT,LD - Fenland Locality,LD - Fenland  - Special Needs,Supported Living
Cambridgeshire County Council,20-Jul-18,51300215788,"-1,711.36",AFFINITY TRUST,CARE ESTABLISHMENT,LD - Fenland Locality,LD - Fenland  - Special Needs,Supported Living
Cambridgeshire County Council,20-Jul-18,51300215793,"-1,711.36",AFFINITY TRUST,CARE ESTABLISHMENT,LD - Fenland Locality,LD - Fenland  - Special Needs,Supported Living
Cambridgeshire County Council,20-Jul-18,51300215796,"-1,711.36",AFFINITY TRUST,CARE ESTABLISHMENT,LD - Fenland Locality,LD - Fenland  - Special Needs,Supported Living
Cambridgeshire County Council,20-Jul-18,51300236344,"-1,711.36",AFFINITY TRUST,CARE ESTABLISHMENT,LD - Fenland Locality,LD - Fenland  - Special Needs,Supported Living
Cambridgeshire County Council,20-Jul-18,51300215768,"-1,711.36",AFFINITY TRUST,CARE ESTABLISHMENT,LD - Fenland Locality,LD - Fenland  - Special Needs,Supported Living
Cambridgeshire County Council,20-Jul-18,51300215773,"-1,711.36",AFFINITY TRUST,CARE ESTABLISHMENT,LD - Fenland Locality,LD - Fenland  - Special Needs,Supported Living
Cambridgeshire County Council,20-Jul-18,51300236334,"-1,711.36",AFFINITY TRUST,CARE ESTABLISHMENT,LD - Fenland Locality,LD - Fenland  - Special Needs,Supported Living
Cambridgeshire County Council,20-Jul-18,51300236338,"-1,711.36",AFFINITY TRUST,CARE ESTABLISHMENT,LD - Fenland Locality,LD - Fenland  - Special Needs,Supported Living
Cambridgeshire County Council,20-Jul-18,51300256489,"-1,711.36",AFFINITY TRUST,CARE ESTABLISHMENT,LD - Fenland Locality,LD - Fenland  - Special Needs,Supported Living
Cambridgeshire County Council,20-Jul-18,51300256510,"-1,711.36",AFFINITY TRUST,CARE ESTABLISHMENT,LD - Fenland Locality,LD - Fenland  - Special Needs,Supported Living
Cambridgeshire County Council,20-Jul-18,51300256470,"-1,711.36",AFFINITY TRUST,CARE ESTABLISHMENT,LD - Fenland Locality,LD - Fenland  - Special Needs,Supported Living
Cambridgeshire County Council,20-Jul-18,51300236332,"-1,711.36",AFFINITY TRUST,CARE ESTABLISHMENT,LD - Fenland Locality,LD - Fenland  - Special Needs,Supported Living
Cambridgeshire County Council,20-Jul-18,51300215783,"-1,711.36",AFFINITY TRUST,CARE ESTABLISHMENT,LD - Fenland Locality,LD - Fenland  - Special Needs,Supported Living
Cambridgeshire County Council,20-Jul-18,51300215767,"-1,711.36",AFFINITY TRUST,CARE ESTABLISHMENT,LD - Fenland Locality,LD - Fenland  - Special Needs,Supported Living
Cambridgeshire County Council,20-Jul-18,51300256483,"-1,711.36",AFFINITY TRUST,CARE ESTABLISHMENT,LD - Fenland Locality,LD - Fenland  - Special Needs,Supported Living
Cambridgeshire County Council,20-Jul-18,51300256506,"-1,711.36",AFFINITY TRUST,CARE ESTABLISHMENT,LD - Fenland Locality,LD - Fenland  - Special Needs,Supported Living
Cambridgeshire County Council,20-Jul-18,51300227197,"-1,711.36",AFFINITY TRUST,CARE ESTABLISHMENT,LD - Fenland Locality,LD - Fenland  - Special Needs,Supported Living
Cambridgeshire County Council,20-Jul-18,51300236345,"-1,711.36",AFFINITY TRUST,CARE ESTABLISHMENT,LD - Fenland Locality,LD - Fenland  - Special Needs,Supported Living
Cambridgeshire County Council,20-Jul-18,51300227178,"-1,711.36",AFFINITY TRUST,CARE ESTABLISHMENT,LD - Fenland Locality,LD - Fenland  - Special Needs,Supported Living
Cambridgeshire County Council,20-Jul-18,51300215797,"-1,711.36",AFFINITY TRUST,CARE ESTABLISHMENT,LD - Fenland Locality,LD - Fenland  - Special Needs,Supported Living
Cambridgeshire County Council,20-Jul-18,51300227185,"-1,711.36",AFFINITY TRUST,CARE ESTABLISHMENT,LD - Fenland Locality,LD - Fenland  - Special Needs,Supported Living
Cambridgeshire County Council,20-Jul-18,51300227187,"-1,711.36",AFFINITY TRUST,CARE ESTABLISHMENT,LD - Fenland Locality,LD - Fenland  - Special Needs,Supported Living
Cambridgeshire County Council,20-Jul-18,51300215795,"-1,711.36",AFFINITY TRUST,CARE ESTABLISHMENT,LD - Fenland Locality,LD - Fenland  - Special Needs,Supported Living
Cambridgeshire County Council,20-Jul-18,51300236361,"-1,711.36",AFFINITY TRUST,CARE ESTABLISHMENT,LD - Fenland Locality,LD - Fenland  - Special Needs,Supported Living
Cambridgeshire County Council,20-Jul-18,51300236339,"-1,711.36",AFFINITY TRUST,CARE ESTABLISHMENT,LD - Fenland Locality,LD - Fenland  - Special Needs,Supported Living
Cambridgeshire County Council,20-Jul-18,51300236342,"-1,711.36",AFFINITY TRUST,CARE ESTABLISHMENT,LD - Fenland Locality,LD - Fenland  - Special Needs,Supported Living
Cambridgeshire County Council,20-Jul-18,51300236356,"-1,711.36",AFFINITY TRUST,CARE ESTABLISHMENT,LD - Fenland Locality,LD - Fenland  - Special Needs,Supported Living
Cambridgeshire County Council,20-Jul-18,51300236360,"-1,711.36",AFFINITY TRUST,CARE ESTABLISHMENT,LD - Fenland Locality,LD - Fenland  - Special Needs,Supported Living
Cambridgeshire County Council,20-Jul-18,51300227182,"-1,711.36",AFFINITY TRUST,CARE ESTABLISHMENT,LD - Fenland Locality,LD - Fenland  - Special Needs,Supported Living
Cambridgeshire County Council,20-Jul-18,51300236365,"-1,711.36",AFFINITY TRUST,CARE ESTABLISHMENT,LD - Fenland Locality,LD - Fenland  - Special Needs,Supported Living
Cambridgeshire County Council,20-Jul-18,51300215798,"-1,711.36",AFFINITY TRUST,CARE ESTABLISHMENT,LD - Fenland Locality,LD - Fenland  - Special Needs,Supported Living
Cambridgeshire County Council,20-Jul-18,51300227200,"-1,711.36",AFFINITY TRUST,CARE ESTABLISHMENT,LD - Fenland Locality,LD - Fenland  - Special Needs,Supported Living
Cambridgeshire County Council,20-Jul-18,51300227204,"-1,711.36",AFFINITY TRUST,CARE ESTABLISHMENT,LD - Fenland Locality,LD - Fenland  - Special Needs,Supported Living
Cambridgeshire County Council,20-Jul-18,51300215786,"-1,711.36",AFFINITY TRUST,CARE ESTABLISHMENT,LD - Fenland Locality,LD - Fenland  - Special Needs,Supported Living
Cambridgeshire County Council,20-Jul-18,51300227176,"-1,711.36",AFFINITY TRUST,CARE ESTABLISHMENT,LD - Fenland Locality,LD - Fenland  - Special Needs,Supported Living
Cambridgeshire County Council,20-Jul-18,51300236355,"-1,711.36",AFFINITY TRUST,CARE ESTABLISHMENT,LD - Fenland Locality,LD - Fenland  - Care,Supported Living
Cambridgeshire County Council,20-Jul-18,51300256475,"-1,711.36",AFFINITY TRUST,CARE ESTABLISHMENT,LD - Fenland Locality,LD - Fenland  - Care,Supported Living
Cambridgeshire County Council,20-Jul-18,51300227193,"-1,711.36",AFFINITY TRUST,CARE ESTABLISHMENT,LD - Fenland Locality,LD - Fenland  - Care,Supported Living
Cambridgeshire County Council,20-Jul-18,51300227202,"-1,711.36",AFFINITY TRUST,CARE ESTABLISHMENT,LD - Fenland Locality,LD - Fenland  - Care,Supported Living
Cambridgeshire County Council,20-Jul-18,51300227195,"-1,711.36",AFFINITY TRUST,CARE ESTABLISHMENT,LD - Fenland Locality,LD - Fenland  - Care,Supported Living
Cambridgeshire County Council,20-Jul-18,51300256502,"-1,711.36",AFFINITY TRUST,CARE ESTABLISHMENT,LD - Fenland Locality,LD - Fenland  - Care,Supported Living
Cambridgeshire County Council,20-Jul-18,51300236357,"-1,711.36",AFFINITY TRUST,CARE ESTABLISHMENT,LD - Fenland Locality,LD - Fenland  - Care,Supported Living
Cambridgeshire County Council,20-Jul-18,51300236337,"-1,711.36",AFFINITY TRUST,CARE ESTABLISHMENT,LD - Fenland Locality,LD - Fenland  - Care,Supported Living
Cambridgeshire County Council,20-Jul-18,51300256480,"-1,711.36",AFFINITY TRUST,CARE ESTABLISHMENT,LD - Fenland Locality,LD - Fenland  - Care,Supported Living
Cambridgeshire County Council,20-Jul-18,51300256474,"-1,711.36",AFFINITY TRUST,CARE ESTABLISHMENT,LD - Fenland Locality,LD - Fenland  - Care,Supported Living
Cambridgeshire County Council,20-Jul-18,51300256494,"-1,711.36",AFFINITY TRUST,CARE ESTABLISHMENT,LD - Fenland Locality,LD - Fenland  - Care,Supported Living
Cambridgeshire County Council,20-Jul-18,51300256497,"-1,711.36",AFFINITY TRUST,CARE ESTABLISHMENT,LD - Fenland Locality,LD - Fenland  - Care,Supported Living
Cambridgeshire County Council,20-Jul-18,51300256499,"-1,711.36",AFFINITY TRUST,CARE ESTABLISHMENT,LD - Fenland Locality,LD - Fenland  - Care,Supported Living
Cambridgeshire County Council,20-Jul-18,51300236358,"-1,711.36",AFFINITY TRUST,CARE ESTABLISHMENT,LD - Fenland Locality,LD - Fenland  - Care,Supported Living
Cambridgeshire County Council,20-Jul-18,51300215781,"-1,711.36",AFFINITY TRUST,CARE ESTABLISHMENT,LD - Fenland Locality,LD - Fenland  - Care,Supported Living
Cambridgeshire County Council,20-Jul-18,51300227179,"-1,711.36",AFFINITY TRUST,CARE ESTABLISHMENT,LD - Fenland Locality,LD - Fenland  - Care,Supported Living
Cambridgeshire County Council,20-Jul-18,51300227188,"-1,711.36",AFFINITY TRUST,CARE ESTABLISHMENT,LD - Fenland Locality,LD - Fenland  - Care,Supported Living
Cambridgeshire County Council,20-Jul-18,51300227189,"-1,711.36",AFFINITY TRUST,CARE ESTABLISHMENT,LD - Fenland Locality,LD - Fenland  - Care,Supported Living
Cambridgeshire County Council,20-Jul-18,51300236348,"-1,711.36",AFFINITY TRUST,CARE ESTABLISHMENT,LD - Fenland Locality,LD - Fenland  - Care,Supported Living
Cambridgeshire County Council,20-Jul-18,51300256493,"-1,711.36",AFFINITY TRUST,CARE ESTABLISHMENT,LD - Fenland Locality,LD - Fenland  - Care,Supported Living
Cambridgeshire County Council,20-Jul-18,51300227177,"-1,711.36",AFFINITY TRUST,CARE ESTABLISHMENT,LD - Fenland Locality,LD - Fenland  - Care,Supported Living
Cambridgeshire County Council,20-Jul-18,51300215770,"-1,711.36",AFFINITY TRUST,CARE ESTABLISHMENT,LD - Fenland Locality,LD - Fenland  - Care,Supported Living
Cambridgeshire County Council,20-Jul-18,51300215772,"-1,711.36",AFFINITY TRUST,CARE ESTABLISHMENT,LD - Fenland Locality,LD - Fenland  - Care,Supported Living
Cambridgeshire County Council,20-Jul-18,51300215775,"-1,711.36",AFFINITY TRUST,CARE ESTABLISHMENT,LD - Fenland Locality,LD - Fenland  - Care,Supported Living
Cambridgeshire County Council,20-Jul-18,51300215791,"-1,711.36",AFFINITY TRUST,CARE ESTABLISHMENT,LD - Fenland Locality,LD - Fenland  - Care,Supported Living
Cambridgeshire County Council,20-Jul-18,51300227198,"-1,711.36",AFFINITY TRUST,CARE ESTABLISHMENT,LD - Fenland Locality,LD - Fenland  - Care,Supported Living
Cambridgeshire County Council,09-Jul-18,51300014529,"-1,676.06",BALFOUR BEATTY LIVING PLACES LIMITED,COMPANY,Control Accounts,Control Accounts - Payables,Migration Only - Marked as Do Not Use
Cambridgeshire County Council,26-Jul-18,51300270273,"-1,553.91",OAKLANDS,CARE ESTABLISHMENT,LD - Hunts Locality,LD - Huntigndonshire  - Special Needs,Residential Care
Cambridgeshire County Council,26-Jul-18,51300274821,"-1,534.00",VOYAGE (LICHFIELD),CARE ESTABLISHMENT,LD - Fenland Locality,LD - Fenland  - Special Needs,Supported Living
Cambridgeshire County Council,26-Jul-18,51300274822,"-1,534.00",VOYAGE (LICHFIELD),CARE ESTABLISHMENT,LD - Fenland Locality,LD - Fenland  - Special Needs,Supported Living
Cambridgeshire County Council,05-Jul-18,51300010498,"-1,531.53",CARDINAL GATE 55,CARE ESTABLISHMENT,Control Accounts,Control Accounts - Payables,Migration Only - Marked as Do Not Use
Cambridgeshire County Council,05-Jul-18,51300010504,"-1,531.53",CARDINAL GATE 55,CARE ESTABLISHMENT,Control Accounts,Control Accounts - Payables,Migration Only - Marked as Do Not Use
Cambridgeshire County Council,05-Jul-18,51300010502,"-1,531.53",CARDINAL GATE 55,CARE ESTABLISHMENT,Control Accounts,Control Accounts - Payables,Migration Only - Marked as Do Not Use
Cambridgeshire County Council,05-Jul-18,51300010500,"-1,531.53",CARDINAL GATE 55,CARE ESTABLISHMENT,Control Accounts,Control Accounts - Payables,Migration Only - Marked as Do Not Use
Cambridgeshire County Council,20-Jul-18,51300227877,"-1,531.20",THE CARESTAFF CONSULTING,CARE ESTABLISHMENT,OP - City & South Locality,Older People - City & South,Domiciliary Care
Cambridgeshire County Council,02-Jul-18,51300218238,"-1,500.00",CAMBRIDGE MANOR CARE HOME (TLC),CARE ESTABLISHMENT,OPMH - City & South,Older People Mental Health City & South,Nursing Care
Cambridgeshire County Council,02-Jul-18,51300218247,"-1,500.00",CAMBRIDGE MANOR CARE HOME (TLC),CARE ESTABLISHMENT,OPMH - City & South,Older People Mental Health City & South,Nursing Care
Cambridgeshire County Council,02-Jul-18,51300223056,"-1,500.00",CAMBRIDGE MANOR CARE HOME (TLC),CARE ESTABLISHMENT,OPMH - City & South,Older People Mental Health City & South,Nursing Care
Cambridgeshire County Council,02-Jul-18,51300223064,"-1,500.00",CAMBRIDGE MANOR CARE HOME (TLC),CARE ESTABLISHMENT,OPMH - City & South,Older People Mental Health City & South,Nursing Care
Cambridgeshire County Council,02-Jul-18,51300223068,"-1,500.00",CAMBRIDGE MANOR CARE HOME (TLC),CARE ESTABLISHMENT,OPMH - City & South,Older People Mental Health City & South,Nursing Care
Cambridgeshire County Council,02-Jul-18,51300223059,"-1,500.00",CAMBRIDGE MANOR CARE HOME (TLC),CARE ESTABLISHMENT,OPMH - City & South,Older People Mental Health City & South,Nursing Care
Cambridgeshire County Council,02-Jul-18,51300218232,"-1,500.00",CAMBRIDGE MANOR CARE HOME (TLC),CARE ESTABLISHMENT,OPMH - City & South,Older People Mental Health City & South,Nursing Care
Cambridgeshire County Council,02-Jul-18,51300223070,"-1,500.00",CAMBRIDGE MANOR CARE HOME (TLC),CARE ESTABLISHMENT,OPMH - City & South,Older People Mental Health City & South,Nursing Care
Cambridgeshire County Council,02-Jul-18,51300218235,"-1,500.00",CAMBRIDGE MANOR CARE HOME (TLC),CARE ESTABLISHMENT,OPMH - City & South,Older People Mental Health City & South,Nursing Care
Cambridgeshire County Council,02-Jul-18,51300218237,"-1,500.00",CAMBRIDGE MANOR CARE HOME (TLC),CARE ESTABLISHMENT,OPMH - City & South,Older People Mental Health City & South,Nursing Care
Cambridgeshire County Council,02-Jul-18,51300223067,"-1,500.00",CAMBRIDGE MANOR CARE HOME (TLC),CARE ESTABLISHMENT,OPMH - City & South,Older People Mental Health City & South,Nursing Care
Cambridgeshire County Council,02-Jul-18,51300218246,"-1,500.00",CAMBRIDGE MANOR CARE HOME (TLC),CARE ESTABLISHMENT,OPMH - City & South,Older People Mental Health City & South,Nursing Care
Cambridgeshire County Council,02-Jul-18,51300218227,"-1,500.00",CAMBRIDGE MANOR CARE HOME (TLC),CARE ESTABLISHMENT,OPMH - City & South,Older People Mental Health City & South,Nursing Care
Cambridgeshire County Council,02-Jul-18,51300218248,"-1,500.00",CAMBRIDGE MANOR CARE HOME (TLC),CARE ESTABLISHMENT,OPMH - City & South,Older People Mental Health City & South,Nursing Care
Cambridgeshire County Council,02-Jul-18,51300218225,"-1,500.00",CAMBRIDGE MANOR CARE HOME (TLC),CARE ESTABLISHMENT,OPMH - City & South,Older People Mental Health City & South,Nursing Care
Cambridgeshire County Council,02-Jul-18,51300218241,"-1,500.00",CAMBRIDGE MANOR CARE HOME (TLC),CARE ESTABLISHMENT,OPMH - City & South,Older People Mental Health City & South,Nursing Care
Cambridgeshire County Council,02-Jul-18,51300218245,"-1,500.00",CAMBRIDGE MANOR CARE HOME (TLC),CARE ESTABLISHMENT,OPMH - City & South,Older People Mental Health City & South,Nursing Care
Cambridgeshire County Council,02-Jul-18,51300223071,"-1,500.00",CAMBRIDGE MANOR CARE HOME (TLC),CARE ESTABLISHMENT,OPMH - City & South,Older People Mental Health City & South,Nursing Care
Cambridgeshire County Council,02-Jul-18,51300218229,"-1,500.00",CAMBRIDGE MANOR CARE HOME (TLC),CARE ESTABLISHMENT,OPMH - City & South,Older People Mental Health City & South,Nursing Care
Cambridgeshire County Council,02-Jul-18,51300223065,"-1,500.00",CAMBRIDGE MANOR CARE HOME (TLC),CARE ESTABLISHMENT,OPMH - City & South,Older People Mental Health City & South,Nursing Care
Cambridgeshire County Council,02-Jul-18,51300218189,"-1,448.80",CAMBRIDGE MANOR CARE HOME (TLC),CARE ESTABLISHMENT,OP - City & South Locality,Older People - City & South,Nursing Care
Cambridgeshire County Council,02-Jul-18,51300218196,"-1,448.80",CAMBRIDGE MANOR CARE HOME (TLC),CARE ESTABLISHMENT,OP - City & South Locality,Older People - City & South,Nursing Care
Cambridgeshire County Council,02-Jul-18,51300218208,"-1,448.80",CAMBRIDGE MANOR CARE HOME (TLC),CARE ESTABLISHMENT,OP - City & South Locality,Older People - City & South,Nursing Care
Cambridgeshire County Council,02-Jul-18,51300218211,"-1,448.80",CAMBRIDGE MANOR CARE HOME (TLC),CARE ESTABLISHMENT,OP - City & South Locality,Older People - City & South,Nursing Care
Cambridgeshire County Council,02-Jul-18,51300218202,"-1,448.80",CAMBRIDGE MANOR CARE HOME (TLC),CARE ESTABLISHMENT,OP - City & South Locality,Older People - City & South,Nursing Care
Cambridgeshire County Council,02-Jul-18,51300218204,"-1,448.80",CAMBRIDGE MANOR CARE HOME (TLC),CARE ESTABLISHMENT,OP - City & South Locality,Older People - City & South,Nursing Care
Cambridgeshire County Council,02-Jul-18,51300218199,"-1,448.80",CAMBRIDGE MANOR CARE HOME (TLC),CARE ESTABLISHMENT,OP - City & South Locality,Older People - City & South,Nursing Care
Cambridgeshire County Council,02-Jul-18,51300218203,"-1,448.80",CAMBRIDGE MANOR CARE HOME (TLC),CARE ESTABLISHMENT,OP - City & South Locality,Older People - City & South,Nursing Care
Cambridgeshire County Council,02-Jul-18,51300218200,"-1,448.80",CAMBRIDGE MANOR CARE HOME (TLC),CARE ESTABLISHMENT,OP - City & South Locality,Older People - City & South,Nursing Care
Cambridgeshire County Council,02-Jul-18,51300218197,"-1,448.80",CAMBRIDGE MANOR CARE HOME (TLC),CARE ESTABLISHMENT,OP - City & South Locality,Older People - City & South,Nursing Care
Cambridgeshire County Council,02-Jul-18,51300218210,"-1,448.80",CAMBRIDGE MANOR CARE HOME (TLC),CARE ESTABLISHMENT,OP - City & South Locality,Older People - City & South,Nursing Care
Cambridgeshire County Council,02-Jul-18,51300218195,"-1,448.80",CAMBRIDGE MANOR CARE HOME (TLC),CARE ESTABLISHMENT,OP - City & South Locality,Older People - City & South,Nursing Care
Cambridgeshire County Council,02-Jul-18,51300221787,"-1,445.31",ETHELDRED HOUSE,CARE ESTABLISHMENT,OPMH - City & South,Older People Mental Health City & South,Nursing Care
Cambridgeshire County Council,27-Jul-18,51300278904,"-1,435.83",CONSENSUS (CROMER HOUSE),CARE ESTABLISHMENT,LD - South Locality,LD - South Cambs - Care,Residential Care
Cambridgeshire County Council,27-Jul-18,51300278909,"-1,435.83",CONSENSUS (CROMER HOUSE),CARE ESTABLISHMENT,LD - South Locality,LD - South Cambs - Care,Residential Care
Cambridgeshire County Council,27-Jul-18,51300278901,"-1,435.83",CONSENSUS (CROMER HOUSE),CARE ESTABLISHMENT,LD - South Locality,LD - South Cambs - Care,Residential Care
Cambridgeshire County Council,27-Jul-18,51300278915,"-1,435.83",CONSENSUS (CROMER HOUSE),CARE ESTABLISHMENT,LD - South Locality,LD - South Cambs - Care,Residential Care
Cambridgeshire County Council,27-Jul-18,51300278902,"-1,435.83",CONSENSUS (CROMER HOUSE),CARE ESTABLISHMENT,LD - South Locality,LD - South Cambs - Care,Residential Care
Cambridgeshire County Council,02-Jul-18,51300212794,"-1,400.00",WOODLANDS CARE CENTRE,CARE ESTABLISHMENT,OPMH - City & South,Older People Mental Health City & South,Nursing Care
Cambridgeshire County Council,02-Jul-18,51300212796,"-1,400.00",WOODLANDS CARE CENTRE,CARE ESTABLISHMENT,OPMH - City & South,Older People Mental Health City & South,Nursing Care
Cambridgeshire County Council,02-Jul-18,51300212788,"-1,400.00",WOODLANDS CARE CENTRE,CARE ESTABLISHMENT,OPMH - City & South,Older People Mental Health City & South,Nursing Care
Cambridgeshire County Council,02-Jul-18,51300212790,"-1,400.00",WOODLANDS CARE CENTRE,CARE ESTABLISHMENT,OPMH - City & South,Older People Mental Health City & South,Nursing Care
Cambridgeshire County Council,02-Jul-18,51300213367,"-1,400.00",WOODLANDS CARE CENTRE,CARE ESTABLISHMENT,OPMH - City & South,Older People Mental Health City & South,Nursing Care
Cambridgeshire County Council,02-Jul-18,51300213370,"-1,400.00",WOODLANDS CARE CENTRE,CARE ESTABLISHMENT,OPMH - City & South,Older People Mental Health City & South,Nursing Care
Cambridgeshire County Council,02-Jul-18,51300213372,"-1,400.00",WOODLANDS CARE CENTRE,CARE ESTABLISHMENT,OPMH - City & South,Older People Mental Health City & South,Nursing Care
Cambridgeshire County Council,02-Jul-18,51300213398,"-1,400.00",WOODLANDS CARE CENTRE,CARE ESTABLISHMENT,OPMH - City & South,Older People Mental Health City & South,Nursing Care
Cambridgeshire County Council,02-Jul-18,51300212782,"-1,400.00",WOODLANDS CARE CENTRE,CARE ESTABLISHMENT,OPMH - City & South,Older People Mental Health City & South,Nursing Care
Cambridgeshire County Council,02-Jul-18,51300212795,"-1,400.00",WOODLANDS CARE CENTRE,CARE ESTABLISHMENT,OPMH - City & South,Older People Mental Health City & South,Nursing Care
Cambridgeshire County Council,02-Jul-18,51300213397,"-1,400.00",WOODLANDS CARE CENTRE,CARE ESTABLISHMENT,OPMH - City & South,Older People Mental Health City & South,Nursing Care
Cambridgeshire County Council,02-Jul-18,51300213412,"-1,400.00",WOODLANDS CARE CENTRE,CARE ESTABLISHMENT,OPMH - City & South,Older People Mental Health City & South,Nursing Care
Cambridgeshire County Council,02-Jul-18,51300212777,"-1,400.00",WOODLANDS CARE CENTRE,CARE ESTABLISHMENT,OPMH - City & South,Older People Mental Health City & South,Nursing Care
Cambridgeshire County Council,02-Jul-18,51300212787,"-1,400.00",WOODLANDS CARE CENTRE,CARE ESTABLISHMENT,OPMH - City & South,Older People Mental Health City & South,Nursing Care
Cambridgeshire County Council,02-Jul-18,51300212791,"-1,400.00",WOODLANDS CARE CENTRE,CARE ESTABLISHMENT,OPMH - City & South,Older People Mental Health City & South,Nursing Care
Cambridgeshire County Council,02-Jul-18,51300213408,"-1,400.00",WOODLANDS CARE CENTRE,CARE ESTABLISHMENT,OPMH - City & South,Older People Mental Health City & South,Nursing Care
Cambridgeshire County Council,02-Jul-18,51300212789,"-1,400.00",WOODLANDS CARE CENTRE,CARE ESTABLISHMENT,OPMH - City & South,Older People Mental Health City & South,Nursing Care
Cambridgeshire County Council,02-Jul-18,51300212786,"-1,400.00",WOODLANDS CARE CENTRE,CARE ESTABLISHMENT,OPMH - City & South,Older People Mental Health City & South,Nursing Care
Cambridgeshire County Council,02-Jul-18,51300213383,"-1,400.00",WOODLANDS CARE CENTRE,CARE ESTABLISHMENT,OPMH - City & South,Older People Mental Health City & South,Nursing Care
Cambridgeshire County Council,02-Jul-18,51300212779,"-1,400.00",WOODLANDS CARE CENTRE,CARE ESTABLISHMENT,OPMH - City & South,Older People Mental Health City & South,Nursing Care
Cambridgeshire County Council,02-Jul-18,51300213381,"-1,400.00",WOODLANDS CARE CENTRE,CARE ESTABLISHMENT,OPMH - City & South,Older People Mental Health City & South,Nursing Care
Cambridgeshire County Council,02-Jul-18,51300212785,"-1,400.00",WOODLANDS CARE CENTRE,CARE ESTABLISHMENT,OPMH - City & South,Older People Mental Health City & South,Nursing Care
Cambridgeshire County Council,02-Jul-18,51300213379,"-1,400.00",WOODLANDS CARE CENTRE,CARE ESTABLISHMENT,OPMH - City & South,Older People Mental Health City & South,Nursing Care
Cambridgeshire County Council,02-Jul-18,51300213368,"-1,400.00",WOODLANDS CARE CENTRE,CARE ESTABLISHMENT,OPMH - City & South,Older People Mental Health City & South,Nursing Care
Cambridgeshire County Council,02-Jul-18,51300213392,"-1,400.00",WOODLANDS CARE CENTRE,CARE ESTABLISHMENT,OPMH - City & South,Older People Mental Health City & South,Nursing Care
Cambridgeshire County Council,02-Jul-18,51300213406,"-1,400.00",WOODLANDS CARE CENTRE,CARE ESTABLISHMENT,OPMH - City & South,Older People Mental Health City & South,Nursing Care
Cambridgeshire County Council,02-Jul-18,51300213410,"-1,400.00",WOODLANDS CARE CENTRE,CARE ESTABLISHMENT,OPMH - City & South,Older People Mental Health City & South,Nursing Care
Cambridgeshire County Council,02-Jul-18,51300213409,"-1,400.00",WOODLANDS CARE CENTRE,CARE ESTABLISHMENT,OPMH - City & South,Older People Mental Health City & South,Nursing Care
Cambridgeshire County Council,02-Jul-18,51300212767,"-1,400.00",WOODLANDS CARE CENTRE,CARE ESTABLISHMENT,OPMH - City & South,Older People Mental Health City & South,Nursing Care
Cambridgeshire County Council,02-Jul-18,51300212798,"-1,400.00",WOODLANDS CARE CENTRE,CARE ESTABLISHMENT,OPMH - City & South,Older People Mental Health City & South,Nursing Care
Cambridgeshire County Council,02-Jul-18,51300213374,"-1,400.00",WOODLANDS CARE CENTRE,CARE ESTABLISHMENT,OPMH - City & South,Older People Mental Health City & South,Nursing Care
Cambridgeshire County Council,02-Jul-18,51300209934,"-1,398.80",WOODLANDS CARE CENTRE,CARE ESTABLISHMENT,OPMH - City & South,Older People Mental Health City & South,Nursing Care
Cambridgeshire County Council,02-Jul-18,51300209904,"-1,398.80",WOODLANDS CARE CENTRE,CARE ESTABLISHMENT,OPMH - City & South,Older People Mental Health City & South,Nursing Care
Cambridgeshire County Council,02-Jul-18,51300209983,"-1,398.80",WOODLANDS CARE CENTRE,CARE ESTABLISHMENT,OPMH - City & South,Older People Mental Health City & South,Nursing Care
Cambridgeshire County Council,02-Jul-18,51300209922,"-1,398.80",WOODLANDS CARE CENTRE,CARE ESTABLISHMENT,OPMH - City & South,Older People Mental Health City & South,Nursing Care
Cambridgeshire County Council,02-Jul-18,51300209906,"-1,398.80",WOODLANDS CARE CENTRE,CARE ESTABLISHMENT,OPMH - City & South,Older People Mental Health City & South,Nursing Care
Cambridgeshire County Council,02-Jul-18,51300209946,"-1,398.80",WOODLANDS CARE CENTRE,CARE ESTABLISHMENT,OPMH - City & South,Older People Mental Health City & South,Nursing Care
Cambridgeshire County Council,02-Jul-18,51300209984,"-1,398.80",WOODLANDS CARE CENTRE,CARE ESTABLISHMENT,OPMH - City & South,Older People Mental Health City & South,Nursing Care
Cambridgeshire County Council,02-Jul-18,51300209913,"-1,398.80",WOODLANDS CARE CENTRE,CARE ESTABLISHMENT,OPMH - City & South,Older People Mental Health City & South,Nursing Care
Cambridgeshire County Council,02-Jul-18,51300209964,"-1,398.80",WOODLANDS CARE CENTRE,CARE ESTABLISHMENT,OPMH - City & South,Older People Mental Health City & South,Nursing Care
Cambridgeshire County Council,02-Jul-18,51300209953,"-1,398.80",WOODLANDS CARE CENTRE,CARE ESTABLISHMENT,OPMH - City & South,Older People Mental Health City & South,Nursing Care
Cambridgeshire County Council,02-Jul-18,51300209954,"-1,398.80",WOODLANDS CARE CENTRE,CARE ESTABLISHMENT,OPMH - City & South,Older People Mental Health City & South,Nursing Care
Cambridgeshire County Council,02-Jul-18,51300209965,"-1,398.80",WOODLANDS CARE CENTRE,CARE ESTABLISHMENT,OPMH - City & South,Older People Mental Health City & South,Nursing Care
Cambridgeshire County Council,02-Jul-18,51300209924,"-1,398.80",WOODLANDS CARE CENTRE,CARE ESTABLISHMENT,OPMH - City & South,Older People Mental Health City & South,Nursing Care
Cambridgeshire County Council,02-Jul-18,51300209941,"-1,398.80",WOODLANDS CARE CENTRE,CARE ESTABLISHMENT,OPMH - City & South,Older People Mental Health City & South,Nursing Care
Cambridgeshire County Council,02-Jul-18,51300209971,"-1,398.80",WOODLANDS CARE CENTRE,CARE ESTABLISHMENT,OPMH - City & South,Older People Mental Health City & South,Nursing Care
Cambridgeshire County Council,20-Jul-18,51300215734,"-1,350.00",OAKLANDS CARE HOME,CARE ESTABLISHMENT,OPMH - City & South,Older People Mental Health E Cambs,Nursing Care
Cambridgeshire County Council,20-Jul-18,51300215725,"-1,350.00",OAKLANDS CARE HOME,CARE ESTABLISHMENT,OPMH - City & South,Older People Mental Health E Cambs,Nursing Care
Cambridgeshire County Council,20-Jul-18,51300215718,"-1,350.00",OAKLANDS CARE HOME,CARE ESTABLISHMENT,OPMH - City & South,Older People Mental Health E Cambs,Nursing Care
Cambridgeshire County Council,20-Jul-18,51300215732,"-1,350.00",OAKLANDS CARE HOME,CARE ESTABLISHMENT,OPMH - City & South,Older People Mental Health E Cambs,Nursing Care
Cambridgeshire County Council,20-Jul-18,51300215735,"-1,350.00",OAKLANDS CARE HOME,CARE ESTABLISHMENT,OPMH - City & South,Older People Mental Health E Cambs,Nursing Care
Cambridgeshire County Council,20-Jul-18,51300215727,"-1,350.00",OAKLANDS CARE HOME,CARE ESTABLISHMENT,OPMH - City & South,Older People Mental Health E Cambs,Nursing Care
Cambridgeshire County Council,20-Jul-18,51300215739,"-1,350.00",OAKLANDS CARE HOME,CARE ESTABLISHMENT,OPMH - City & South,Older People Mental Health E Cambs,Nursing Care
Cambridgeshire County Council,20-Jul-18,51300215729,"-1,350.00",OAKLANDS CARE HOME,CARE ESTABLISHMENT,OPMH - City & South,Older People Mental Health E Cambs,Nursing Care
Cambridgeshire County Council,20-Jul-18,51300215740,"-1,350.00",OAKLANDS CARE HOME,CARE ESTABLISHMENT,OPMH - City & South,Older People Mental Health E Cambs,Nursing Care
Cambridgeshire County Council,20-Jul-18,51300215726,"-1,350.00",OAKLANDS CARE HOME,CARE ESTABLISHMENT,OPMH - City & South,Older People Mental Health E Cambs,Nursing Care
Cambridgeshire County Council,20-Jul-18,51300215722,"-1,350.00",OAKLANDS CARE HOME,CARE ESTABLISHMENT,OPMH - City & South,Older People Mental Health E Cambs,Nursing Care
Cambridgeshire County Council,20-Jul-18,51300215719,"-1,350.00",OAKLANDS CARE HOME,CARE ESTABLISHMENT,OPMH - City & South,Older People Mental Health E Cambs,Nursing Care
Cambridgeshire County Council,05-Jul-18,51300228572,"-1,328.44",CARE MANAGEMENT GROUP (64-66 CARLTON),CARE ESTABLISHMENT,LD - East Locality,LD - East Cambs - Special Needs,Residential Care
Cambridgeshire County Council,05-Jul-18,51300228576,"-1,328.44",CARE MANAGEMENT GROUP (64-66 CARLTON),CARE ESTABLISHMENT,LD - East Locality,LD - East Cambs - Special Needs,Residential Care
Cambridgeshire County Council,05-Jul-18,51300228594,"-1,328.44",CARE MANAGEMENT GROUP (64-66 CARLTON),CARE ESTABLISHMENT,LD - East Locality,LD - East Cambs - Special Needs,Residential Care
Cambridgeshire County Council,05-Jul-18,51300196535,"-1,328.44",CARE MANAGEMENT GROUP (64-66 CARLTON),CARE ESTABLISHMENT,LD - East Locality,LD - East Cambs - Special Needs,Residential Care
Cambridgeshire County Council,05-Jul-18,51300196539,"-1,328.44",CARE MANAGEMENT GROUP (64-66 CARLTON),CARE ESTABLISHMENT,LD - East Locality,LD - East Cambs - Special Needs,Residential Care
Cambridgeshire County Council,05-Jul-18,51300196542,"-1,328.44",CARE MANAGEMENT GROUP (64-66 CARLTON),CARE ESTABLISHMENT,LD - East Locality,LD - East Cambs - Special Needs,Residential Care
Cambridgeshire County Council,05-Jul-18,51300196545,"-1,328.44",CARE MANAGEMENT GROUP (64-66 CARLTON),CARE ESTABLISHMENT,LD - East Locality,LD - East Cambs - Special Needs,Residential Care
Cambridgeshire County Council,05-Jul-18,51300218975,"-1,328.44",CARE MANAGEMENT GROUP (64-66 CARLTON),CARE ESTABLISHMENT,LD - East Locality,LD - East Cambs - Special Needs,Residential Care
Cambridgeshire County Council,05-Jul-18,51300218989,"-1,328.44",CARE MANAGEMENT GROUP (64-66 CARLTON),CARE ESTABLISHMENT,LD - East Locality,LD - East Cambs - Special Needs,Residential Care
Cambridgeshire County Council,05-Jul-18,51300219018,"-1,328.44",CARE MANAGEMENT GROUP (64-66 CARLTON),CARE ESTABLISHMENT,LD - East Locality,LD - East Cambs - Special Needs,Residential Care
Cambridgeshire County Council,05-Jul-18,51300219033,"-1,328.44",CARE MANAGEMENT GROUP (64-66 CARLTON),CARE ESTABLISHMENT,LD - East Locality,LD - East Cambs - Special Needs,Residential Care
Cambridgeshire County Council,05-Jul-18,51300219001,"-1,328.44",CARE MANAGEMENT GROUP (64-66 CARLTON),CARE ESTABLISHMENT,LD - East Locality,LD - East Cambs - Special Needs,Residential Care
Cambridgeshire County Council,05-Jul-18,51300219055,"-1,328.44",CARE MANAGEMENT GROUP (64-66 CARLTON),CARE ESTABLISHMENT,LD - East Locality,LD - East Cambs - Special Needs,Residential Care
Cambridgeshire County Council,05-Jul-18,51300196609,"-1,328.44",CARE MANAGEMENT GROUP (64-66 CARLTON),CARE ESTABLISHMENT,LD - East Locality,LD - East Cambs - Special Needs,Residential Care
Cambridgeshire County Council,05-Jul-18,51300196623,"-1,328.44",CARE MANAGEMENT GROUP (64-66 CARLTON),CARE ESTABLISHMENT,LD - East Locality,LD - East Cambs - Special Needs,Residential Care
Cambridgeshire County Council,05-Jul-18,51300196624,"-1,328.44",CARE MANAGEMENT GROUP (64-66 CARLTON),CARE ESTABLISHMENT,LD - East Locality,LD - East Cambs - Special Needs,Residential Care
Cambridgeshire County Council,05-Jul-18,51300196594,"-1,328.44",CARE MANAGEMENT GROUP (64-66 CARLTON),CARE ESTABLISHMENT,LD - East Locality,LD - East Cambs - Special Needs,Residential Care
Cambridgeshire County Council,05-Jul-18,51300218979,"-1,328.44",CARE MANAGEMENT GROUP (64-66 CARLTON),CARE ESTABLISHMENT,LD - East Locality,LD - East Cambs - Special Needs,Residential Care
Cambridgeshire County Council,05-Jul-18,51300219065,"-1,328.44",CARE MANAGEMENT GROUP (64-66 CARLTON),CARE ESTABLISHMENT,LD - East Locality,LD - East Cambs - Special Needs,Residential Care
Cambridgeshire County Council,05-Jul-18,51300219067,"-1,328.44",CARE MANAGEMENT GROUP (64-66 CARLTON),CARE ESTABLISHMENT,LD - East Locality,LD - East Cambs - Special Needs,Residential Care
Cambridgeshire County Council,05-Jul-18,51300219069,"-1,328.44",CARE MANAGEMENT GROUP (64-66 CARLTON),CARE ESTABLISHMENT,LD - East Locality,LD - East Cambs - Special Needs,Residential Care
Cambridgeshire County Council,05-Jul-18,51300218991,"-1,328.44",CARE MANAGEMENT GROUP (64-66 CARLTON),CARE ESTABLISHMENT,LD - East Locality,LD - East Cambs - Special Needs,Residential Care
Cambridgeshire County Council,05-Jul-18,51300218996,"-1,328.44",CARE MANAGEMENT GROUP (64-66 CARLTON),CARE ESTABLISHMENT,LD - East Locality,LD - East Cambs - Special Needs,Residential Care
Cambridgeshire County Council,05-Jul-18,51300219076,"-1,328.44",CARE MANAGEMENT GROUP (64-66 CARLTON),CARE ESTABLISHMENT,LD - East Locality,LD - East Cambs - Special Needs,Residential Care
Cambridgeshire County Council,05-Jul-18,51300219106,"-1,328.44",CARE MANAGEMENT GROUP (64-66 CARLTON),CARE ESTABLISHMENT,LD - East Locality,LD - East Cambs - Special Needs,Residential Care
Cambridgeshire County Council,05-Jul-18,51300219112,"-1,328.44",CARE MANAGEMENT GROUP (64-66 CARLTON),CARE ESTABLISHMENT,LD - East Locality,LD - East Cambs - Special Needs,Residential Care
Cambridgeshire County Council,05-Jul-18,51300219093,"-1,328.44",CARE MANAGEMENT GROUP (64-66 CARLTON),CARE ESTABLISHMENT,LD - East Locality,LD - East Cambs - Special Needs,Residential Care
Cambridgeshire County Council,05-Jul-18,51300218982,"-1,328.44",CARE MANAGEMENT GROUP (64-66 CARLTON),CARE ESTABLISHMENT,LD - East Locality,LD - East Cambs - Special Needs,Residential Care
Cambridgeshire County Council,05-Jul-18,51300218992,"-1,328.44",CARE MANAGEMENT GROUP (64-66 CARLTON),CARE ESTABLISHMENT,LD - East Locality,LD - East Cambs - Special Needs,Residential Care
Cambridgeshire County Council,05-Jul-18,51300218999,"-1,328.44",CARE MANAGEMENT GROUP (64-66 CARLTON),CARE ESTABLISHMENT,LD - East Locality,LD - East Cambs - Special Needs,Residential Care
Cambridgeshire County Council,05-Jul-18,51300219004,"-1,328.44",CARE MANAGEMENT GROUP (64-66 CARLTON),CARE ESTABLISHMENT,LD - East Locality,LD - East Cambs - Special Needs,Residential Care
Cambridgeshire County Council,05-Jul-18,51300219011,"-1,328.44",CARE MANAGEMENT GROUP (64-66 CARLTON),CARE ESTABLISHMENT,LD - East Locality,LD - East Cambs - Special Needs,Residential Care
Cambridgeshire County Council,05-Jul-18,51300219017,"-1,328.44",CARE MANAGEMENT GROUP (64-66 CARLTON),CARE ESTABLISHMENT,LD - East Locality,LD - East Cambs - Special Needs,Residential Care
Cambridgeshire County Council,05-Jul-18,51300219119,"-1,328.44",CARE MANAGEMENT GROUP (64-66 CARLTON),CARE ESTABLISHMENT,LD - East Locality,LD - East Cambs - Special Needs,Residential Care
Cambridgeshire County Council,05-Jul-18,51300228558,"-1,328.44",CARE MANAGEMENT GROUP (64-66 CARLTON),CARE ESTABLISHMENT,LD - East Locality,LD - East Cambs - Special Needs,Residential Care
Cambridgeshire County Council,05-Jul-18,51300228561,"-1,328.44",CARE MANAGEMENT GROUP (64-66 CARLTON),CARE ESTABLISHMENT,LD - East Locality,LD - East Cambs - Special Needs,Residential Care
Cambridgeshire County Council,05-Jul-18,51300228569,"-1,328.44",CARE MANAGEMENT GROUP (64-66 CARLTON),CARE ESTABLISHMENT,LD - East Locality,LD - East Cambs - Special Needs,Residential Care
Cambridgeshire County Council,05-Jul-18,51300228590,"-1,328.44",CARE MANAGEMENT GROUP (64-66 CARLTON),CARE ESTABLISHMENT,LD - East Locality,LD - East Cambs - Special Needs,Residential Care
Cambridgeshire County Council,05-Jul-18,51300228597,"-1,328.44",CARE MANAGEMENT GROUP (64-66 CARLTON),CARE ESTABLISHMENT,LD - East Locality,LD - East Cambs - Special Needs,Residential Care
Cambridgeshire County Council,05-Jul-18,51300228605,"-1,328.44",CARE MANAGEMENT GROUP (64-66 CARLTON),CARE ESTABLISHMENT,LD - East Locality,LD - East Cambs - Special Needs,Residential Care
Cambridgeshire County Council,05-Jul-18,51300219028,"-1,328.44",CARE MANAGEMENT GROUP (64-66 CARLTON),CARE ESTABLISHMENT,LD - East Locality,LD - East Cambs - Special Needs,Residential Care
Cambridgeshire County Council,05-Jul-18,51300219068,"-1,328.44",CARE MANAGEMENT GROUP (64-66 CARLTON),CARE ESTABLISHMENT,LD - East Locality,LD - East Cambs - Special Needs,Residential Care
Cambridgeshire County Council,05-Jul-18,51300219079,"-1,328.44",CARE MANAGEMENT GROUP (64-66 CARLTON),CARE ESTABLISHMENT,LD - East Locality,LD - East Cambs - Special Needs,Residential Care
Cambridgeshire County Council,05-Jul-18,51300219086,"-1,328.44",CARE MANAGEMENT GROUP (64-66 CARLTON),CARE ESTABLISHMENT,LD - East Locality,LD - East Cambs - Special Needs,Residential Care
Cambridgeshire County Council,05-Jul-18,51300219089,"-1,328.44",CARE MANAGEMENT GROUP (64-66 CARLTON),CARE ESTABLISHMENT,LD - East Locality,LD - East Cambs - Special Needs,Residential Care
Cambridgeshire County Council,05-Jul-18,51300219052,"-1,328.44",CARE MANAGEMENT GROUP (64-66 CARLTON),CARE ESTABLISHMENT,LD - East Locality,LD - East Cambs - Special Needs,Residential Care
Cambridgeshire County Council,05-Jul-18,51300228628,"-1,328.44",CARE MANAGEMENT GROUP (64-66 CARLTON),CARE ESTABLISHMENT,LD - East Locality,LD - East Cambs - Special Needs,Residential Care
Cambridgeshire County Council,05-Jul-18,51300228629,"-1,328.44",CARE MANAGEMENT GROUP (64-66 CARLTON),CARE ESTABLISHMENT,LD - East Locality,LD - East Cambs - Special Needs,Residential Care
Cambridgeshire County Council,05-Jul-18,51300228633,"-1,328.44",CARE MANAGEMENT GROUP (64-66 CARLTON),CARE ESTABLISHMENT,LD - East Locality,LD - East Cambs - Special Needs,Residential Care
Cambridgeshire County Council,05-Jul-18,51300228647,"-1,328.44",CARE MANAGEMENT GROUP (64-66 CARLTON),CARE ESTABLISHMENT,LD - East Locality,LD - East Cambs - Special Needs,Residential Care
Cambridgeshire County Council,05-Jul-18,51300219115,"-1,328.44",CARE MANAGEMENT GROUP (64-66 CARLTON),CARE ESTABLISHMENT,LD - East Locality,LD - East Cambs - Special Needs,Residential Care
Cambridgeshire County Council,05-Jul-18,51300219118,"-1,328.44",CARE MANAGEMENT GROUP (64-66 CARLTON),CARE ESTABLISHMENT,LD - East Locality,LD - East Cambs - Special Needs,Residential Care
Cambridgeshire County Council,05-Jul-18,51300228557,"-1,328.44",CARE MANAGEMENT GROUP (64-66 CARLTON),CARE ESTABLISHMENT,LD - East Locality,LD - East Cambs - Special Needs,Residential Care
Cambridgeshire County Council,05-Jul-18,51300228591,"-1,328.44",CARE MANAGEMENT GROUP (64-66 CARLTON),CARE ESTABLISHMENT,LD - East Locality,LD - East Cambs - Special Needs,Residential Care
Cambridgeshire County Council,05-Jul-18,51300228602,"-1,328.44",CARE MANAGEMENT GROUP (64-66 CARLTON),CARE ESTABLISHMENT,LD - East Locality,LD - East Cambs - Special Needs,Residential Care
Cambridgeshire County Council,05-Jul-18,51300228626,"-1,328.44",CARE MANAGEMENT GROUP (64-66 CARLTON),CARE ESTABLISHMENT,LD - East Locality,LD - East Cambs - Special Needs,Residential Care
Cambridgeshire County Council,05-Jul-18,51300228623,"-1,328.44",CARE MANAGEMENT GROUP (64-66 CARLTON),CARE ESTABLISHMENT,LD - East Locality,LD - East Cambs - Special Needs,Residential Care
Cambridgeshire County Council,05-Jul-18,51300228643,"-1,328.44",CARE MANAGEMENT GROUP (64-66 CARLTON),CARE ESTABLISHMENT,LD - East Locality,LD - East Cambs - Special Needs,Residential Care
Cambridgeshire County Council,05-Jul-18,51300228674,"-1,328.44",CARE MANAGEMENT GROUP (64-66 CARLTON),CARE ESTABLISHMENT,LD - East Locality,LD - East Cambs - Special Needs,Residential Care
Cambridgeshire County Council,05-Jul-18,51300219007,"-1,328.44",CARE MANAGEMENT GROUP (64-66 CARLTON),CARE ESTABLISHMENT,LD - East Locality,LD - East Cambs - Special Needs,Residential Care
Cambridgeshire County Council,05-Jul-18,51300219014,"-1,328.44",CARE MANAGEMENT GROUP (64-66 CARLTON),CARE ESTABLISHMENT,LD - East Locality,LD - East Cambs - Special Needs,Residential Care
Cambridgeshire County Council,05-Jul-18,51300219020,"-1,328.44",CARE MANAGEMENT GROUP (64-66 CARLTON),CARE ESTABLISHMENT,LD - East Locality,LD - East Cambs - Special Needs,Residential Care
Cambridgeshire County Council,05-Jul-18,51300228659,"-1,328.44",CARE MANAGEMENT GROUP (64-66 CARLTON),CARE ESTABLISHMENT,LD - East Locality,LD - East Cambs - Special Needs,Residential Care
Cambridgeshire County Council,05-Jul-18,51300219032,"-1,328.44",CARE MANAGEMENT GROUP (64-66 CARLTON),CARE ESTABLISHMENT,LD - East Locality,LD - East Cambs - Special Needs,Residential Care
Cambridgeshire County Council,05-Jul-18,51300219038,"-1,328.44",CARE MANAGEMENT GROUP (64-66 CARLTON),CARE ESTABLISHMENT,LD - East Locality,LD - East Cambs - Special Needs,Residential Care
Cambridgeshire County Council,05-Jul-18,51300219044,"-1,328.44",CARE MANAGEMENT GROUP (64-66 CARLTON),CARE ESTABLISHMENT,LD - East Locality,LD - East Cambs - Special Needs,Residential Care
Cambridgeshire County Council,05-Jul-18,51300219050,"-1,328.44",CARE MANAGEMENT GROUP (64-66 CARLTON),CARE ESTABLISHMENT,LD - East Locality,LD - East Cambs - Special Needs,Residential Care
Cambridgeshire County Council,05-Jul-18,51300219053,"-1,328.44",CARE MANAGEMENT GROUP (64-66 CARLTON),CARE ESTABLISHMENT,LD - East Locality,LD - East Cambs - Special Needs,Residential Care
Cambridgeshire County Council,05-Jul-18,51300219078,"-1,328.44",CARE MANAGEMENT GROUP (64-66 CARLTON),CARE ESTABLISHMENT,LD - East Locality,LD - East Cambs - Special Needs,Residential Care
Cambridgeshire County Council,05-Jul-18,51300219081,"-1,328.44",CARE MANAGEMENT GROUP (64-66 CARLTON),CARE ESTABLISHMENT,LD - East Locality,LD - East Cambs - Special Needs,Residential Care
Cambridgeshire County Council,05-Jul-18,51300219087,"-1,328.44",CARE MANAGEMENT GROUP (64-66 CARLTON),CARE ESTABLISHMENT,LD - East Locality,LD - East Cambs - Special Needs,Residential Care
Cambridgeshire County Council,05-Jul-18,51300219102,"-1,328.44",CARE MANAGEMENT GROUP (64-66 CARLTON),CARE ESTABLISHMENT,LD - East Locality,LD - East Cambs - Special Needs,Residential Care
Cambridgeshire County Council,05-Jul-18,51300219113,"-1,328.44",CARE MANAGEMENT GROUP (64-66 CARLTON),CARE ESTABLISHMENT,LD - East Locality,LD - East Cambs - Special Needs,Residential Care
Cambridgeshire County Council,05-Jul-18,51300219125,"-1,328.44",CARE MANAGEMENT GROUP (64-66 CARLTON),CARE ESTABLISHMENT,LD - East Locality,LD - East Cambs - Special Needs,Residential Care
Cambridgeshire County Council,05-Jul-18,51300228553,"-1,328.44",CARE MANAGEMENT GROUP (64-66 CARLTON),CARE ESTABLISHMENT,LD - East Locality,LD - East Cambs - Special Needs,Residential Care
Cambridgeshire County Council,05-Jul-18,51300228559,"-1,328.44",CARE MANAGEMENT GROUP (64-66 CARLTON),CARE ESTABLISHMENT,LD - East Locality,LD - East Cambs - Special Needs,Residential Care
Cambridgeshire County Council,05-Jul-18,51300228564,"-1,328.44",CARE MANAGEMENT GROUP (64-66 CARLTON),CARE ESTABLISHMENT,LD - East Locality,LD - East Cambs - Special Needs,Residential Care
Cambridgeshire County Council,05-Jul-18,51300228565,"-1,328.44",CARE MANAGEMENT GROUP (64-66 CARLTON),CARE ESTABLISHMENT,LD - East Locality,LD - East Cambs - Special Needs,Residential Care
Cambridgeshire County Council,05-Jul-18,51300228575,"-1,328.44",CARE MANAGEMENT GROUP (64-66 CARLTON),CARE ESTABLISHMENT,LD - East Locality,LD - East Cambs - Special Needs,Residential Care
Cambridgeshire County Council,05-Jul-18,51300228611,"-1,328.44",CARE MANAGEMENT GROUP (64-66 CARLTON),CARE ESTABLISHMENT,LD - East Locality,LD - East Cambs - Special Needs,Residential Care
Cambridgeshire County Council,05-Jul-18,51300228618,"-1,328.44",CARE MANAGEMENT GROUP (64-66 CARLTON),CARE ESTABLISHMENT,LD - East Locality,LD - East Cambs - Special Needs,Residential Care
Cambridgeshire County Council,05-Jul-18,51300228621,"-1,328.44",CARE MANAGEMENT GROUP (64-66 CARLTON),CARE ESTABLISHMENT,LD - East Locality,LD - East Cambs - Special Needs,Residential Care
Cambridgeshire County Council,05-Jul-18,51300173820,"-1,328.44",CARE MANAGEMENT GROUP (64-66 CARLTON),CARE ESTABLISHMENT,LD - East Locality,LD - East Cambs - Special Needs,Residential Care
Cambridgeshire County Council,05-Jul-18,51300173826,"-1,328.44",CARE MANAGEMENT GROUP (64-66 CARLTON),CARE ESTABLISHMENT,LD - East Locality,LD - East Cambs - Special Needs,Residential Care
Cambridgeshire County Council,05-Jul-18,51300173829,"-1,328.44",CARE MANAGEMENT GROUP (64-66 CARLTON),CARE ESTABLISHMENT,LD - East Locality,LD - East Cambs - Special Needs,Residential Care
Cambridgeshire County Council,05-Jul-18,51300173830,"-1,328.44",CARE MANAGEMENT GROUP (64-66 CARLTON),CARE ESTABLISHMENT,LD - East Locality,LD - East Cambs - Special Needs,Residential Care
Cambridgeshire County Council,05-Jul-18,51300173854,"-1,328.44",CARE MANAGEMENT GROUP (64-66 CARLTON),CARE ESTABLISHMENT,LD - East Locality,LD - East Cambs - Special Needs,Residential Care
Cambridgeshire County Council,05-Jul-18,51300196560,"-1,328.44",CARE MANAGEMENT GROUP (64-66 CARLTON),CARE ESTABLISHMENT,LD - East Locality,LD - East Cambs - Special Needs,Residential Care
Cambridgeshire County Council,05-Jul-18,51300196569,"-1,328.44",CARE MANAGEMENT GROUP (64-66 CARLTON),CARE ESTABLISHMENT,LD - East Locality,LD - East Cambs - Special Needs,Residential Care
Cambridgeshire County Council,05-Jul-18,51300196607,"-1,328.44",CARE MANAGEMENT GROUP (64-66 CARLTON),CARE ESTABLISHMENT,LD - East Locality,LD - East Cambs - Special Needs,Residential Care
Cambridgeshire County Council,05-Jul-18,51300196595,"-1,328.44",CARE MANAGEMENT GROUP (64-66 CARLTON),CARE ESTABLISHMENT,LD - East Locality,LD - East Cambs - Special Needs,Residential Care
Cambridgeshire County Council,05-Jul-18,51300196602,"-1,328.44",CARE MANAGEMENT GROUP (64-66 CARLTON),CARE ESTABLISHMENT,LD - East Locality,LD - East Cambs - Special Needs,Residential Care
Cambridgeshire County Council,05-Jul-18,51300173870,"-1,328.44",CARE MANAGEMENT GROUP (64-66 CARLTON),CARE ESTABLISHMENT,LD - East Locality,LD - East Cambs - Special Needs,Residential Care
Cambridgeshire County Council,05-Jul-18,51300173878,"-1,328.44",CARE MANAGEMENT GROUP (64-66 CARLTON),CARE ESTABLISHMENT,LD - East Locality,LD - East Cambs - Special Needs,Residential Care
Cambridgeshire County Council,05-Jul-18,51300173891,"-1,328.44",CARE MANAGEMENT GROUP (64-66 CARLTON),CARE ESTABLISHMENT,LD - East Locality,LD - East Cambs - Special Needs,Residential Care
Cambridgeshire County Council,05-Jul-18,51300173912,"-1,328.44",CARE MANAGEMENT GROUP (64-66 CARLTON),CARE ESTABLISHMENT,LD - East Locality,LD - East Cambs - Special Needs,Residential Care
Cambridgeshire County Council,05-Jul-18,51300173916,"-1,328.44",CARE MANAGEMENT GROUP (64-66 CARLTON),CARE ESTABLISHMENT,LD - East Locality,LD - East Cambs - Special Needs,Residential Care
Cambridgeshire County Council,05-Jul-18,51300218993,"-1,328.44",CARE MANAGEMENT GROUP (64-66 CARLTON),CARE ESTABLISHMENT,LD - East Locality,LD - East Cambs - Special Needs,Residential Care
Cambridgeshire County Council,05-Jul-18,51300218981,"-1,328.44",CARE MANAGEMENT GROUP (64-66 CARLTON),CARE ESTABLISHMENT,LD - East Locality,LD - East Cambs - Special Needs,Residential Care
Cambridgeshire County Council,05-Jul-18,51300218986,"-1,328.44",CARE MANAGEMENT GROUP (64-66 CARLTON),CARE ESTABLISHMENT,LD - East Locality,LD - East Cambs - Special Needs,Residential Care
Cambridgeshire County Council,05-Jul-18,51300173897,"-1,328.44",CARE MANAGEMENT GROUP (64-66 CARLTON),CARE ESTABLISHMENT,LD - East Locality,LD - East Cambs - Special Needs,Residential Care
Cambridgeshire County Council,05-Jul-18,51300173905,"-1,328.44",CARE MANAGEMENT GROUP (64-66 CARLTON),CARE ESTABLISHMENT,LD - East Locality,LD - East Cambs - Special Needs,Residential Care
Cambridgeshire County Council,05-Jul-18,51300173908,"-1,328.44",CARE MANAGEMENT GROUP (64-66 CARLTON),CARE ESTABLISHMENT,LD - East Locality,LD - East Cambs - Special Needs,Residential Care
Cambridgeshire County Council,05-Jul-18,51300173911,"-1,328.44",CARE MANAGEMENT GROUP (64-66 CARLTON),CARE ESTABLISHMENT,LD - East Locality,LD - East Cambs - Special Needs,Residential Care
Cambridgeshire County Council,05-Jul-18,51300173914,"-1,328.44",CARE MANAGEMENT GROUP (64-66 CARLTON),CARE ESTABLISHMENT,LD - East Locality,LD - East Cambs - Special Needs,Residential Care
Cambridgeshire County Council,05-Jul-18,51300173925,"-1,328.44",CARE MANAGEMENT GROUP (64-66 CARLTON),CARE ESTABLISHMENT,LD - East Locality,LD - East Cambs - Special Needs,Residential Care
Cambridgeshire County Council,05-Jul-18,51300173931,"-1,328.44",CARE MANAGEMENT GROUP (64-66 CARLTON),CARE ESTABLISHMENT,LD - East Locality,LD - East Cambs - Special Needs,Residential Care
Cambridgeshire County Council,05-Jul-18,51300173940,"-1,328.44",CARE MANAGEMENT GROUP (64-66 CARLTON),CARE ESTABLISHMENT,LD - East Locality,LD - East Cambs - Special Needs,Residential Care
Cambridgeshire County Council,05-Jul-18,51300173942,"-1,328.44",CARE MANAGEMENT GROUP (64-66 CARLTON),CARE ESTABLISHMENT,LD - East Locality,LD - East Cambs - Special Needs,Residential Care
Cambridgeshire County Council,05-Jul-18,51300196479,"-1,328.44",CARE MANAGEMENT GROUP (64-66 CARLTON),CARE ESTABLISHMENT,LD - East Locality,LD - East Cambs - Special Needs,Residential Care
Cambridgeshire County Council,05-Jul-18,51300219049,"-1,328.44",CARE MANAGEMENT GROUP (64-66 CARLTON),CARE ESTABLISHMENT,LD - East Locality,LD - East Cambs - Special Needs,Residential Care
Cambridgeshire County Council,05-Jul-18,51300219054,"-1,328.44",CARE MANAGEMENT GROUP (64-66 CARLTON),CARE ESTABLISHMENT,LD - East Locality,LD - East Cambs - Special Needs,Residential Care
Cambridgeshire County Council,05-Jul-18,51300173955,"-1,328.44",CARE MANAGEMENT GROUP (64-66 CARLTON),CARE ESTABLISHMENT,LD - East Locality,LD - East Cambs - Special Needs,Residential Care
Cambridgeshire County Council,05-Jul-18,51300173960,"-1,328.44",CARE MANAGEMENT GROUP (64-66 CARLTON),CARE ESTABLISHMENT,LD - East Locality,LD - East Cambs - Special Needs,Residential Care
Cambridgeshire County Council,05-Jul-18,51300219083,"-1,328.44",CARE MANAGEMENT GROUP (64-66 CARLTON),CARE ESTABLISHMENT,LD - East Locality,LD - East Cambs - Special Needs,Residential Care
Cambridgeshire County Council,05-Jul-18,51300219097,"-1,328.44",CARE MANAGEMENT GROUP (64-66 CARLTON),CARE ESTABLISHMENT,LD - East Locality,LD - East Cambs - Special Needs,Residential Care
Cambridgeshire County Council,05-Jul-18,51300173963,"-1,328.44",CARE MANAGEMENT GROUP (64-66 CARLTON),CARE ESTABLISHMENT,LD - East Locality,LD - East Cambs - Special Needs,Residential Care
Cambridgeshire County Council,05-Jul-18,51300219109,"-1,328.44",CARE MANAGEMENT GROUP (64-66 CARLTON),CARE ESTABLISHMENT,LD - East Locality,LD - East Cambs - Special Needs,Residential Care
Cambridgeshire County Council,05-Jul-18,51300196582,"-1,328.44",CARE MANAGEMENT GROUP (64-66 CARLTON),CARE ESTABLISHMENT,LD - East Locality,LD - East Cambs - Special Needs,Residential Care
Cambridgeshire County Council,05-Jul-18,51300196588,"-1,328.44",CARE MANAGEMENT GROUP (64-66 CARLTON),CARE ESTABLISHMENT,LD - East Locality,LD - East Cambs - Special Needs,Residential Care
Cambridgeshire County Council,05-Jul-18,51300196600,"-1,328.44",CARE MANAGEMENT GROUP (64-66 CARLTON),CARE ESTABLISHMENT,LD - East Locality,LD - East Cambs - Special Needs,Residential Care
Cambridgeshire County Council,05-Jul-18,51300196603,"-1,328.44",CARE MANAGEMENT GROUP (64-66 CARLTON),CARE ESTABLISHMENT,LD - East Locality,LD - East Cambs - Special Needs,Residential Care
Cambridgeshire County Council,05-Jul-18,51300196616,"-1,328.44",CARE MANAGEMENT GROUP (64-66 CARLTON),CARE ESTABLISHMENT,LD - East Locality,LD - East Cambs - Special Needs,Residential Care
Cambridgeshire County Council,05-Jul-18,51300219105,"-1,328.44",CARE MANAGEMENT GROUP (64-66 CARLTON),CARE ESTABLISHMENT,LD - East Locality,LD - East Cambs - Special Needs,Residential Care
Cambridgeshire County Council,05-Jul-18,51300196480,"-1,328.44",CARE MANAGEMENT GROUP (64-66 CARLTON),CARE ESTABLISHMENT,LD - East Locality,LD - East Cambs - Special Needs,Residential Care
Cambridgeshire County Council,05-Jul-18,51300196488,"-1,328.44",CARE MANAGEMENT GROUP (64-66 CARLTON),CARE ESTABLISHMENT,LD - East Locality,LD - East Cambs - Special Needs,Residential Care
Cambridgeshire County Council,05-Jul-18,51300196489,"-1,328.44",CARE MANAGEMENT GROUP (64-66 CARLTON),CARE ESTABLISHMENT,LD - East Locality,LD - East Cambs - Special Needs,Residential Care
Cambridgeshire County Council,05-Jul-18,51300196494,"-1,328.44",CARE MANAGEMENT GROUP (64-66 CARLTON),CARE ESTABLISHMENT,LD - East Locality,LD - East Cambs - Special Needs,Residential Care
Cambridgeshire County Council,05-Jul-18,51300196499,"-1,328.44",CARE MANAGEMENT GROUP (64-66 CARLTON),CARE ESTABLISHMENT,LD - East Locality,LD - East Cambs - Special Needs,Residential Care
Cambridgeshire County Council,05-Jul-18,51300196504,"-1,328.44",CARE MANAGEMENT GROUP (64-66 CARLTON),CARE ESTABLISHMENT,LD - East Locality,LD - East Cambs - Special Needs,Residential Care
Cambridgeshire County Council,05-Jul-18,51300196522,"-1,328.44",CARE MANAGEMENT GROUP (64-66 CARLTON),CARE ESTABLISHMENT,LD - East Locality,LD - East Cambs - Special Needs,Residential Care
Cambridgeshire County Council,05-Jul-18,51300196530,"-1,328.44",CARE MANAGEMENT GROUP (64-66 CARLTON),CARE ESTABLISHMENT,LD - East Locality,LD - East Cambs - Special Needs,Residential Care
Cambridgeshire County Council,05-Jul-18,51300196482,"-1,328.44",CARE MANAGEMENT GROUP (64-66 CARLTON),CARE ESTABLISHMENT,LD - East Locality,LD - East Cambs - Special Needs,Residential Care
Cambridgeshire County Council,05-Jul-18,51300196564,"-1,328.44",CARE MANAGEMENT GROUP (64-66 CARLTON),CARE ESTABLISHMENT,LD - East Locality,LD - East Cambs - Special Needs,Residential Care
Cambridgeshire County Council,05-Jul-18,51300196606,"-1,328.44",CARE MANAGEMENT GROUP (64-66 CARLTON),CARE ESTABLISHMENT,LD - East Locality,LD - East Cambs - Special Needs,Residential Care
Cambridgeshire County Council,05-Jul-18,51300196578,"-1,328.44",CARE MANAGEMENT GROUP (64-66 CARLTON),CARE ESTABLISHMENT,LD - East Locality,LD - East Cambs - Special Needs,Residential Care
Cambridgeshire County Council,05-Jul-18,51300196621,"-1,328.44",CARE MANAGEMENT GROUP (64-66 CARLTON),CARE ESTABLISHMENT,LD - East Locality,LD - East Cambs - Special Needs,Residential Care
Cambridgeshire County Council,05-Jul-18,51300196590,"-1,328.44",CARE MANAGEMENT GROUP (64-66 CARLTON),CARE ESTABLISHMENT,LD - East Locality,LD - East Cambs - Special Needs,Residential Care
Cambridgeshire County Council,05-Jul-18,51300196596,"-1,328.44",CARE MANAGEMENT GROUP (64-66 CARLTON),CARE ESTABLISHMENT,LD - East Locality,LD - East Cambs - Special Needs,Residential Care
Cambridgeshire County Council,05-Jul-18,51300196597,"-1,328.44",CARE MANAGEMENT GROUP (64-66 CARLTON),CARE ESTABLISHMENT,LD - East Locality,LD - East Cambs - Special Needs,Residential Care
Cambridgeshire County Council,05-Jul-18,51300196598,"-1,328.44",CARE MANAGEMENT GROUP (64-66 CARLTON),CARE ESTABLISHMENT,LD - East Locality,LD - East Cambs - Special Needs,Residential Care
Cambridgeshire County Council,05-Jul-18,51300196531,"-1,328.44",CARE MANAGEMENT GROUP (64-66 CARLTON),CARE ESTABLISHMENT,LD - East Locality,LD - East Cambs - Special Needs,Residential Care
Cambridgeshire County Council,05-Jul-18,51300196501,"-1,328.44",CARE MANAGEMENT GROUP (64-66 CARLTON),CARE ESTABLISHMENT,LD - East Locality,LD - East Cambs - Special Needs,Residential Care
Cambridgeshire County Council,05-Jul-18,51300219107,"-1,328.44",CARE MANAGEMENT GROUP (64-66 CARLTON),CARE ESTABLISHMENT,LD - East Locality,LD - East Cambs - Special Needs,Residential Care
Cambridgeshire County Council,05-Jul-18,51300196519,"-1,328.44",CARE MANAGEMENT GROUP (64-66 CARLTON),CARE ESTABLISHMENT,LD - East Locality,LD - East Cambs - Special Needs,Residential Care
Cambridgeshire County Council,05-Jul-18,51300196490,"-1,328.44",CARE MANAGEMENT GROUP (64-66 CARLTON),CARE ESTABLISHMENT,LD - East Locality,LD - East Cambs - Special Needs,Residential Care
Cambridgeshire County Council,05-Jul-18,51300228656,"-1,328.44",CARE MANAGEMENT GROUP (64-66 CARLTON),CARE ESTABLISHMENT,LD - East Locality,LD - East Cambs - Special Needs,Residential Care
Cambridgeshire County Council,05-Jul-18,51300219041,"-1,328.44",CARE MANAGEMENT GROUP (64-66 CARLTON),CARE ESTABLISHMENT,LD - East Locality,LD - East Cambs - Special Needs,Residential Care
Cambridgeshire County Council,05-Jul-18,51300219040,"-1,328.44",CARE MANAGEMENT GROUP (64-66 CARLTON),CARE ESTABLISHMENT,LD - East Locality,LD - East Cambs - Special Needs,Residential Care
Cambridgeshire County Council,05-Jul-18,51300228668,"-1,328.44",CARE MANAGEMENT GROUP (64-66 CARLTON),CARE ESTABLISHMENT,LD - East Locality,LD - East Cambs - Special Needs,Residential Care
Cambridgeshire County Council,05-Jul-18,51300196549,"-1,328.44",CARE MANAGEMENT GROUP (64-66 CARLTON),CARE ESTABLISHMENT,LD - East Locality,LD - East Cambs - Special Needs,Residential Care
Cambridgeshire County Council,05-Jul-18,51300196496,"-1,328.44",CARE MANAGEMENT GROUP (64-66 CARLTON),CARE ESTABLISHMENT,LD - East Locality,LD - East Cambs - Special Needs,Residential Care
Cambridgeshire County Council,05-Jul-18,51300196554,"-1,328.44",CARE MANAGEMENT GROUP (64-66 CARLTON),CARE ESTABLISHMENT,LD - East Locality,LD - East Cambs - Special Needs,Residential Care
Cambridgeshire County Council,05-Jul-18,51300196529,"-1,328.44",CARE MANAGEMENT GROUP (64-66 CARLTON),CARE ESTABLISHMENT,LD - East Locality,LD - East Cambs - Special Needs,Residential Care
Cambridgeshire County Council,05-Jul-18,51300219025,"-1,328.44",CARE MANAGEMENT GROUP (64-66 CARLTON),CARE ESTABLISHMENT,LD - East Locality,LD - East Cambs - Special Needs,Residential Care
Cambridgeshire County Council,05-Jul-18,51300228664,"-1,328.44",CARE MANAGEMENT GROUP (64-66 CARLTON),CARE ESTABLISHMENT,LD - East Locality,LD - East Cambs - Special Needs,Residential Care
Cambridgeshire County Council,05-Jul-18,51300173836,"-1,328.44",CARE MANAGEMENT GROUP (64-66 CARLTON),CARE ESTABLISHMENT,LD - East Locality,LD - East Cambs - Special Needs,Residential Care
Cambridgeshire County Council,05-Jul-18,51300173816,"-1,328.44",CARE MANAGEMENT GROUP (64-66 CARLTON),CARE ESTABLISHMENT,LD - East Locality,LD - East Cambs - Special Needs,Residential Care
Cambridgeshire County Council,05-Jul-18,51300228644,"-1,328.44",CARE MANAGEMENT GROUP (64-66 CARLTON),CARE ESTABLISHMENT,LD - East Locality,LD - East Cambs - Special Needs,Residential Care
Cambridgeshire County Council,05-Jul-18,51300228600,"-1,328.44",CARE MANAGEMENT GROUP (64-66 CARLTON),CARE ESTABLISHMENT,LD - East Locality,LD - East Cambs - Special Needs,Residential Care
Cambridgeshire County Council,05-Jul-18,51300219072,"-1,328.44",CARE MANAGEMENT GROUP (64-66 CARLTON),CARE ESTABLISHMENT,LD - East Locality,LD - East Cambs - Special Needs,Residential Care
Cambridgeshire County Council,05-Jul-18,51300173953,"-1,328.44",CARE MANAGEMENT GROUP (64-66 CARLTON),CARE ESTABLISHMENT,LD - East Locality,LD - East Cambs - Special Needs,Residential Care
Cambridgeshire County Council,05-Jul-18,51300196520,"-1,328.44",CARE MANAGEMENT GROUP (64-66 CARLTON),CARE ESTABLISHMENT,LD - East Locality,LD - East Cambs - Special Needs,Residential Care
Cambridgeshire County Council,05-Jul-18,51300173866,"-1,328.44",CARE MANAGEMENT GROUP (64-66 CARLTON),CARE ESTABLISHMENT,LD - East Locality,LD - East Cambs - Special Needs,Residential Care
Cambridgeshire County Council,05-Jul-18,51300228556,"-1,328.44",CARE MANAGEMENT GROUP (64-66 CARLTON),CARE ESTABLISHMENT,LD - East Locality,LD - East Cambs - Special Needs,Residential Care
Cambridgeshire County Council,05-Jul-18,51300219058,"-1,328.44",CARE MANAGEMENT GROUP (64-66 CARLTON),CARE ESTABLISHMENT,LD - East Locality,LD - East Cambs - Special Needs,Residential Care
Cambridgeshire County Council,05-Jul-18,51300196516,"-1,328.44",CARE MANAGEMENT GROUP (64-66 CARLTON),CARE ESTABLISHMENT,LD - East Locality,LD - East Cambs - Special Needs,Residential Care
Cambridgeshire County Council,05-Jul-18,51300196547,"-1,328.44",CARE MANAGEMENT GROUP (64-66 CARLTON),CARE ESTABLISHMENT,LD - East Locality,LD - East Cambs - Special Needs,Residential Care
Cambridgeshire County Council,05-Jul-18,51300228640,"-1,328.44",CARE MANAGEMENT GROUP (64-66 CARLTON),CARE ESTABLISHMENT,LD - East Locality,LD - East Cambs - Special Needs,Residential Care
Cambridgeshire County Council,05-Jul-18,51300196525,"-1,328.44",CARE MANAGEMENT GROUP (64-66 CARLTON),CARE ESTABLISHMENT,LD - East Locality,LD - East Cambs - Special Needs,Residential Care
Cambridgeshire County Council,05-Jul-18,51300196538,"-1,328.44",CARE MANAGEMENT GROUP (64-66 CARLTON),CARE ESTABLISHMENT,LD - East Locality,LD - East Cambs - Special Needs,Residential Care
Cambridgeshire County Council,05-Jul-18,51300196558,"-1,328.44",CARE MANAGEMENT GROUP (64-66 CARLTON),CARE ESTABLISHMENT,LD - East Locality,LD - East Cambs - Special Needs,Residential Care
Cambridgeshire County Council,05-Jul-18,51300196497,"-1,328.44",CARE MANAGEMENT GROUP (64-66 CARLTON),CARE ESTABLISHMENT,LD - East Locality,LD - East Cambs - Special Needs,Residential Care
Cambridgeshire County Council,05-Jul-18,51300196506,"-1,328.44",CARE MANAGEMENT GROUP (64-66 CARLTON),CARE ESTABLISHMENT,LD - East Locality,LD - East Cambs - Special Needs,Residential Care
Cambridgeshire County Council,05-Jul-18,51300196508,"-1,328.44",CARE MANAGEMENT GROUP (64-66 CARLTON),CARE ESTABLISHMENT,LD - East Locality,LD - East Cambs - Special Needs,Residential Care
Cambridgeshire County Council,05-Jul-18,51300196511,"-1,328.44",CARE MANAGEMENT GROUP (64-66 CARLTON),CARE ESTABLISHMENT,LD - East Locality,LD - East Cambs - Special Needs,Residential Care
Cambridgeshire County Council,05-Jul-18,51300196523,"-1,328.44",CARE MANAGEMENT GROUP (64-66 CARLTON),CARE ESTABLISHMENT,LD - East Locality,LD - East Cambs - Special Needs,Residential Care
Cambridgeshire County Council,05-Jul-18,51300196526,"-1,328.44",CARE MANAGEMENT GROUP (64-66 CARLTON),CARE ESTABLISHMENT,LD - East Locality,LD - East Cambs - Special Needs,Residential Care
Cambridgeshire County Council,05-Jul-18,51300196527,"-1,328.44",CARE MANAGEMENT GROUP (64-66 CARLTON),CARE ESTABLISHMENT,LD - East Locality,LD - East Cambs - Special Needs,Residential Care
Cambridgeshire County Council,05-Jul-18,51300196533,"-1,328.44",CARE MANAGEMENT GROUP (64-66 CARLTON),CARE ESTABLISHMENT,LD - East Locality,LD - East Cambs - Special Needs,Residential Care
Cambridgeshire County Council,05-Jul-18,51300173910,"-1,328.44",CARE MANAGEMENT GROUP (64-66 CARLTON),CARE ESTABLISHMENT,LD - East Locality,LD - East Cambs - Special Needs,Residential Care
Cambridgeshire County Council,05-Jul-18,51300173922,"-1,328.44",CARE MANAGEMENT GROUP (64-66 CARLTON),CARE ESTABLISHMENT,LD - East Locality,LD - East Cambs - Special Needs,Residential Care
Cambridgeshire County Council,05-Jul-18,51300173923,"-1,328.44",CARE MANAGEMENT GROUP (64-66 CARLTON),CARE ESTABLISHMENT,LD - East Locality,LD - East Cambs - Special Needs,Residential Care
Cambridgeshire County Council,05-Jul-18,51300173947,"-1,328.44",CARE MANAGEMENT GROUP (64-66 CARLTON),CARE ESTABLISHMENT,LD - East Locality,LD - East Cambs - Special Needs,Residential Care
Cambridgeshire County Council,05-Jul-18,51300173950,"-1,328.44",CARE MANAGEMENT GROUP (64-66 CARLTON),CARE ESTABLISHMENT,LD - East Locality,LD - East Cambs - Special Needs,Residential Care
Cambridgeshire County Council,05-Jul-18,51300173954,"-1,328.44",CARE MANAGEMENT GROUP (64-66 CARLTON),CARE ESTABLISHMENT,LD - East Locality,LD - East Cambs - Special Needs,Residential Care
Cambridgeshire County Council,05-Jul-18,51300196475,"-1,328.44",CARE MANAGEMENT GROUP (64-66 CARLTON),CARE ESTABLISHMENT,LD - East Locality,LD - East Cambs - Special Needs,Residential Care
Cambridgeshire County Council,05-Jul-18,51300196507,"-1,328.44",CARE MANAGEMENT GROUP (64-66 CARLTON),CARE ESTABLISHMENT,LD - East Locality,LD - East Cambs - Special Needs,Residential Care
Cambridgeshire County Council,05-Jul-18,51300196517,"-1,328.44",CARE MANAGEMENT GROUP (64-66 CARLTON),CARE ESTABLISHMENT,LD - East Locality,LD - East Cambs - Special Needs,Residential Care
Cambridgeshire County Council,05-Jul-18,51300196518,"-1,328.44",CARE MANAGEMENT GROUP (64-66 CARLTON),CARE ESTABLISHMENT,LD - East Locality,LD - East Cambs - Special Needs,Residential Care
Cambridgeshire County Council,05-Jul-18,51300228696,"-1,328.44",CARE MANAGEMENT GROUP (64-66 CARLTON),CARE ESTABLISHMENT,LD - East Locality,LD - East Cambs - Special Needs,Residential Care
Cambridgeshire County Council,05-Jul-18,51300173833,"-1,328.44",CARE MANAGEMENT GROUP (64-66 CARLTON),CARE ESTABLISHMENT,LD - East Locality,LD - East Cambs - Special Needs,Residential Care
Cambridgeshire County Council,05-Jul-18,51300173838,"-1,328.44",CARE MANAGEMENT GROUP (64-66 CARLTON),CARE ESTABLISHMENT,LD - East Locality,LD - East Cambs - Special Needs,Residential Care
Cambridgeshire County Council,05-Jul-18,51300228710,"-1,328.44",CARE MANAGEMENT GROUP (64-66 CARLTON),CARE ESTABLISHMENT,LD - East Locality,LD - East Cambs - Special Needs,Residential Care
Cambridgeshire County Council,05-Jul-18,51300219114,"-1,328.44",CARE MANAGEMENT GROUP (64-66 CARLTON),CARE ESTABLISHMENT,LD - East Locality,LD - East Cambs - Special Needs,Residential Care
Cambridgeshire County Council,05-Jul-18,51300196566,"-1,328.44",CARE MANAGEMENT GROUP (64-66 CARLTON),CARE ESTABLISHMENT,LD - East Locality,LD - East Cambs - Special Needs,Residential Care
Cambridgeshire County Council,05-Jul-18,51300173846,"-1,328.44",CARE MANAGEMENT GROUP (64-66 CARLTON),CARE ESTABLISHMENT,LD - East Locality,LD - East Cambs - Special Needs,Residential Care
Cambridgeshire County Council,05-Jul-18,51300173849,"-1,328.44",CARE MANAGEMENT GROUP (64-66 CARLTON),CARE ESTABLISHMENT,LD - East Locality,LD - East Cambs - Special Needs,Residential Care
Cambridgeshire County Council,05-Jul-18,51300173874,"-1,328.44",CARE MANAGEMENT GROUP (64-66 CARLTON),CARE ESTABLISHMENT,LD - East Locality,LD - East Cambs - Special Needs,Residential Care
Cambridgeshire County Council,05-Jul-18,51300173879,"-1,328.44",CARE MANAGEMENT GROUP (64-66 CARLTON),CARE ESTABLISHMENT,LD - East Locality,LD - East Cambs - Special Needs,Residential Care
Cambridgeshire County Council,05-Jul-18,51300173893,"-1,328.44",CARE MANAGEMENT GROUP (64-66 CARLTON),CARE ESTABLISHMENT,LD - East Locality,LD - East Cambs - Special Needs,Residential Care
Cambridgeshire County Council,05-Jul-18,51300173817,"-1,328.44",CARE MANAGEMENT GROUP (64-66 CARLTON),CARE ESTABLISHMENT,LD - East Locality,LD - East Cambs - Special Needs,Residential Care
Cambridgeshire County Council,05-Jul-18,51300173821,"-1,328.44",CARE MANAGEMENT GROUP (64-66 CARLTON),CARE ESTABLISHMENT,LD - East Locality,LD - East Cambs - Special Needs,Residential Care
Cambridgeshire County Council,05-Jul-18,51300219098,"-1,328.44",CARE MANAGEMENT GROUP (64-66 CARLTON),CARE ESTABLISHMENT,LD - East Locality,LD - East Cambs - Special Needs,Residential Care
Cambridgeshire County Council,05-Jul-18,51300173843,"-1,328.44",CARE MANAGEMENT GROUP (64-66 CARLTON),CARE ESTABLISHMENT,LD - East Locality,LD - East Cambs - Special Needs,Residential Care
Cambridgeshire County Council,05-Jul-18,51300219088,"-1,328.44",CARE MANAGEMENT GROUP (64-66 CARLTON),CARE ESTABLISHMENT,LD - East Locality,LD - East Cambs - Special Needs,Residential Care
Cambridgeshire County Council,05-Jul-18,51300228631,"-1,328.44",CARE MANAGEMENT GROUP (64-66 CARLTON),CARE ESTABLISHMENT,LD - East Locality,LD - East Cambs - Special Needs,Residential Care
Cambridgeshire County Council,05-Jul-18,51300228589,"-1,328.44",CARE MANAGEMENT GROUP (64-66 CARLTON),CARE ESTABLISHMENT,LD - East Locality,LD - East Cambs - Special Needs,Residential Care
Cambridgeshire County Council,05-Jul-18,51300219101,"-1,328.44",CARE MANAGEMENT GROUP (64-66 CARLTON),CARE ESTABLISHMENT,LD - East Locality,LD - East Cambs - Special Needs,Residential Care
Cambridgeshire County Council,05-Jul-18,51300173936,"-1,328.44",CARE MANAGEMENT GROUP (64-66 CARLTON),CARE ESTABLISHMENT,LD - East Locality,LD - East Cambs - Special Needs,Residential Care
Cambridgeshire County Council,05-Jul-18,51300173869,"-1,328.44",CARE MANAGEMENT GROUP (64-66 CARLTON),CARE ESTABLISHMENT,LD - East Locality,LD - East Cambs - Special Needs,Residential Care
Cambridgeshire County Council,05-Jul-18,51300173834,"-1,328.44",CARE MANAGEMENT GROUP (64-66 CARLTON),CARE ESTABLISHMENT,LD - East Locality,LD - East Cambs - Special Needs,Residential Care
Cambridgeshire County Council,05-Jul-18,51300173842,"-1,328.44",CARE MANAGEMENT GROUP (64-66 CARLTON),CARE ESTABLISHMENT,LD - East Locality,LD - East Cambs - Special Needs,Residential Care
Cambridgeshire County Council,05-Jul-18,51300173848,"-1,328.44",CARE MANAGEMENT GROUP (64-66 CARLTON),CARE ESTABLISHMENT,LD - East Locality,LD - East Cambs - Special Needs,Residential Care
Cambridgeshire County Council,05-Jul-18,51300173867,"-1,328.44",CARE MANAGEMENT GROUP (64-66 CARLTON),CARE ESTABLISHMENT,LD - East Locality,LD - East Cambs - Special Needs,Residential Care
Cambridgeshire County Council,05-Jul-18,51300173900,"-1,328.44",CARE MANAGEMENT GROUP (64-66 CARLTON),CARE ESTABLISHMENT,LD - East Locality,LD - East Cambs - Special Needs,Residential Care
Cambridgeshire County Council,05-Jul-18,51300173924,"-1,328.44",CARE MANAGEMENT GROUP (64-66 CARLTON),CARE ESTABLISHMENT,LD - East Locality,LD - East Cambs - Special Needs,Residential Care
Cambridgeshire County Council,05-Jul-18,51300173934,"-1,328.44",CARE MANAGEMENT GROUP (64-66 CARLTON),CARE ESTABLISHMENT,LD - East Locality,LD - East Cambs - Special Needs,Residential Care
Cambridgeshire County Council,05-Jul-18,51300173948,"-1,328.44",CARE MANAGEMENT GROUP (64-66 CARLTON),CARE ESTABLISHMENT,LD - East Locality,LD - East Cambs - Special Needs,Residential Care
Cambridgeshire County Council,05-Jul-18,51300173964,"-1,328.44",CARE MANAGEMENT GROUP (64-66 CARLTON),CARE ESTABLISHMENT,LD - East Locality,LD - East Cambs - Special Needs,Residential Care
Cambridgeshire County Council,05-Jul-18,51300228707,"-1,328.44",CARE MANAGEMENT GROUP (64-66 CARLTON),CARE ESTABLISHMENT,LD - East Locality,LD - East Cambs - Special Needs,Residential Care
Cambridgeshire County Council,05-Jul-18,51300228708,"-1,328.44",CARE MANAGEMENT GROUP (64-66 CARLTON),CARE ESTABLISHMENT,LD - East Locality,LD - East Cambs - Special Needs,Residential Care
Cambridgeshire County Council,05-Jul-18,51300228684,"-1,328.44",CARE MANAGEMENT GROUP (64-66 CARLTON),CARE ESTABLISHMENT,LD - East Locality,LD - East Cambs - Special Needs,Residential Care
Cambridgeshire County Council,05-Jul-18,51300228585,"-1,328.44",CARE MANAGEMENT GROUP (64-66 CARLTON),CARE ESTABLISHMENT,LD - East Locality,LD - East Cambs - Special Needs,Residential Care
Cambridgeshire County Council,05-Jul-18,51300228606,"-1,328.44",CARE MANAGEMENT GROUP (64-66 CARLTON),CARE ESTABLISHMENT,LD - East Locality,LD - East Cambs - Special Needs,Residential Care
Cambridgeshire County Council,05-Jul-18,51300228613,"-1,328.44",CARE MANAGEMENT GROUP (64-66 CARLTON),CARE ESTABLISHMENT,LD - East Locality,LD - East Cambs - Special Needs,Residential Care
Cambridgeshire County Council,05-Jul-18,51300228615,"-1,328.44",CARE MANAGEMENT GROUP (64-66 CARLTON),CARE ESTABLISHMENT,LD - East Locality,LD - East Cambs - Special Needs,Residential Care
Cambridgeshire County Council,05-Jul-18,51300228630,"-1,328.44",CARE MANAGEMENT GROUP (64-66 CARLTON),CARE ESTABLISHMENT,LD - East Locality,LD - East Cambs - Special Needs,Residential Care
Cambridgeshire County Council,05-Jul-18,51300228667,"-1,328.44",CARE MANAGEMENT GROUP (64-66 CARLTON),CARE ESTABLISHMENT,LD - East Locality,LD - East Cambs - Special Needs,Residential Care
Cambridgeshire County Council,05-Jul-18,51300228673,"-1,328.44",CARE MANAGEMENT GROUP (64-66 CARLTON),CARE ESTABLISHMENT,LD - East Locality,LD - East Cambs - Special Needs,Residential Care
Cambridgeshire County Council,05-Jul-18,51300228675,"-1,328.44",CARE MANAGEMENT GROUP (64-66 CARLTON),CARE ESTABLISHMENT,LD - East Locality,LD - East Cambs - Special Needs,Residential Care
Cambridgeshire County Council,05-Jul-18,51300228653,"-1,328.44",CARE MANAGEMENT GROUP (64-66 CARLTON),CARE ESTABLISHMENT,LD - East Locality,LD - East Cambs - Special Needs,Residential Care
Cambridgeshire County Council,05-Jul-18,51300228682,"-1,328.44",CARE MANAGEMENT GROUP (64-66 CARLTON),CARE ESTABLISHMENT,LD - East Locality,LD - East Cambs - Special Needs,Residential Care
Cambridgeshire County Council,05-Jul-18,51300228683,"-1,328.44",CARE MANAGEMENT GROUP (64-66 CARLTON),CARE ESTABLISHMENT,LD - East Locality,LD - East Cambs - Special Needs,Residential Care
Cambridgeshire County Council,05-Jul-18,51300228688,"-1,328.44",CARE MANAGEMENT GROUP (64-66 CARLTON),CARE ESTABLISHMENT,LD - East Locality,LD - East Cambs - Special Needs,Residential Care
Cambridgeshire County Council,05-Jul-18,51300228695,"-1,328.44",CARE MANAGEMENT GROUP (64-66 CARLTON),CARE ESTABLISHMENT,LD - East Locality,LD - East Cambs - Special Needs,Residential Care
Cambridgeshire County Council,05-Jul-18,51300228666,"-1,328.44",CARE MANAGEMENT GROUP (64-66 CARLTON),CARE ESTABLISHMENT,LD - East Locality,LD - East Cambs - Special Needs,Residential Care
Cambridgeshire County Council,05-Jul-18,51300228700,"-1,328.44",CARE MANAGEMENT GROUP (64-66 CARLTON),CARE ESTABLISHMENT,LD - East Locality,LD - East Cambs - Special Needs,Residential Care
Cambridgeshire County Council,05-Jul-18,51300228704,"-1,328.44",CARE MANAGEMENT GROUP (64-66 CARLTON),CARE ESTABLISHMENT,LD - East Locality,LD - East Cambs - Special Needs,Residential Care
Cambridgeshire County Council,05-Jul-18,51300173813,"-1,328.44",CARE MANAGEMENT GROUP (64-66 CARLTON),CARE ESTABLISHMENT,LD - East Locality,LD - East Cambs - Special Needs,Residential Care
Cambridgeshire County Council,05-Jul-18,51300173819,"-1,328.44",CARE MANAGEMENT GROUP (64-66 CARLTON),CARE ESTABLISHMENT,LD - East Locality,LD - East Cambs - Special Needs,Residential Care
Cambridgeshire County Council,05-Jul-18,51300173840,"-1,328.44",CARE MANAGEMENT GROUP (64-66 CARLTON),CARE ESTABLISHMENT,LD - East Locality,LD - East Cambs - Special Needs,Residential Care
Cambridgeshire County Council,05-Jul-18,51300173853,"-1,328.44",CARE MANAGEMENT GROUP (64-66 CARLTON),CARE ESTABLISHMENT,LD - East Locality,LD - East Cambs - Special Needs,Residential Care
Cambridgeshire County Council,05-Jul-18,51300173871,"-1,328.44",CARE MANAGEMENT GROUP (64-66 CARLTON),CARE ESTABLISHMENT,LD - East Locality,LD - East Cambs - Special Needs,Residential Care
Cambridgeshire County Council,05-Jul-18,51300173872,"-1,328.44",CARE MANAGEMENT GROUP (64-66 CARLTON),CARE ESTABLISHMENT,LD - East Locality,LD - East Cambs - Special Needs,Residential Care
Cambridgeshire County Council,05-Jul-18,51300173886,"-1,328.44",CARE MANAGEMENT GROUP (64-66 CARLTON),CARE ESTABLISHMENT,LD - East Locality,LD - East Cambs - Special Needs,Residential Care
Cambridgeshire County Council,05-Jul-18,51300173889,"-1,328.44",CARE MANAGEMENT GROUP (64-66 CARLTON),CARE ESTABLISHMENT,LD - East Locality,LD - East Cambs - Special Needs,Residential Care
Cambridgeshire County Council,05-Jul-18,51300173890,"-1,328.44",CARE MANAGEMENT GROUP (64-66 CARLTON),CARE ESTABLISHMENT,LD - East Locality,LD - East Cambs - Special Needs,Residential Care
Cambridgeshire County Council,05-Jul-18,51300196583,"-1,328.44",CARE MANAGEMENT GROUP (64-66 CARLTON),CARE ESTABLISHMENT,LD - East Locality,LD - East Cambs - Special Needs,Residential Care
Cambridgeshire County Council,05-Jul-18,51300219073,"-1,328.44",CARE MANAGEMENT GROUP (64-66 CARLTON),CARE ESTABLISHMENT,LD - East Locality,LD - East Cambs - Special Needs,Residential Care
Cambridgeshire County Council,05-Jul-18,51300196498,"-1,328.44",CARE MANAGEMENT GROUP (64-66 CARLTON),CARE ESTABLISHMENT,LD - East Locality,LD - East Cambs - Special Needs,Residential Care
Cambridgeshire County Council,05-Jul-18,51300219027,"-1,328.44",CARE MANAGEMENT GROUP (64-66 CARLTON),CARE ESTABLISHMENT,LD - East Locality,LD - East Cambs - Special Needs,Residential Care
Cambridgeshire County Council,05-Jul-18,51300219071,"-1,328.44",CARE MANAGEMENT GROUP (64-66 CARLTON),CARE ESTABLISHMENT,LD - East Locality,LD - East Cambs - Special Needs,Residential Care
Cambridgeshire County Council,05-Jul-18,51300228661,"-1,328.44",CARE MANAGEMENT GROUP (64-66 CARLTON),CARE ESTABLISHMENT,LD - East Locality,LD - East Cambs - Special Needs,Residential Care
Cambridgeshire County Council,05-Jul-18,51300228686,"-1,328.44",CARE MANAGEMENT GROUP (64-66 CARLTON),CARE ESTABLISHMENT,LD - East Locality,LD - East Cambs - Special Needs,Residential Care
Cambridgeshire County Council,05-Jul-18,51300228697,"-1,328.44",CARE MANAGEMENT GROUP (64-66 CARLTON),CARE ESTABLISHMENT,LD - East Locality,LD - East Cambs - Special Needs,Residential Care
Cambridgeshire County Council,05-Jul-18,51300196536,"-1,328.44",CARE MANAGEMENT GROUP (64-66 CARLTON),CARE ESTABLISHMENT,LD - East Locality,LD - East Cambs - Special Needs,Residential Care
Cambridgeshire County Council,05-Jul-18,51300228665,"-1,328.44",CARE MANAGEMENT GROUP (64-66 CARLTON),CARE ESTABLISHMENT,LD - East Locality,LD - East Cambs - Special Needs,Residential Care
Cambridgeshire County Council,05-Jul-18,51300219034,"-1,328.44",CARE MANAGEMENT GROUP (64-66 CARLTON),CARE ESTABLISHMENT,LD - East Locality,LD - East Cambs - Special Needs,Residential Care
Cambridgeshire County Council,05-Jul-18,51300196551,"-1,328.44",CARE MANAGEMENT GROUP (64-66 CARLTON),CARE ESTABLISHMENT,LD - East Locality,LD - East Cambs - Special Needs,Residential Care
Cambridgeshire County Council,05-Jul-18,51300196543,"-1,328.44",CARE MANAGEMENT GROUP (64-66 CARLTON),CARE ESTABLISHMENT,LD - East Locality,LD - East Cambs - Special Needs,Residential Care
Cambridgeshire County Council,05-Jul-18,51300173888,"-1,328.44",CARE MANAGEMENT GROUP (64-66 CARLTON),CARE ESTABLISHMENT,LD - East Locality,LD - East Cambs - Special Needs,Residential Care
Cambridgeshire County Council,05-Jul-18,51300228567,"-1,328.44",CARE MANAGEMENT GROUP (64-66 CARLTON),CARE ESTABLISHMENT,LD - East Locality,LD - East Cambs - Special Needs,Residential Care
Cambridgeshire County Council,05-Jul-18,51300196495,"-1,328.44",CARE MANAGEMENT GROUP (64-66 CARLTON),CARE ESTABLISHMENT,LD - East Locality,LD - East Cambs - Special Needs,Residential Care
Cambridgeshire County Council,05-Jul-18,51300228625,"-1,328.44",CARE MANAGEMENT GROUP (64-66 CARLTON),CARE ESTABLISHMENT,LD - East Locality,LD - East Cambs - Special Needs,Residential Care
Cambridgeshire County Council,05-Jul-18,51300173858,"-1,328.44",CARE MANAGEMENT GROUP (64-66 CARLTON),CARE ESTABLISHMENT,LD - East Locality,LD - East Cambs - Special Needs,Residential Care
Cambridgeshire County Council,05-Jul-18,51300173915,"-1,328.44",CARE MANAGEMENT GROUP (64-66 CARLTON),CARE ESTABLISHMENT,LD - East Locality,LD - East Cambs - Special Needs,Residential Care
Cambridgeshire County Council,05-Jul-18,51300228692,"-1,328.44",CARE MANAGEMENT GROUP (64-66 CARLTON),CARE ESTABLISHMENT,LD - East Locality,LD - East Cambs - Special Needs,Residential Care
Cambridgeshire County Council,05-Jul-18,51300173932,"-1,328.44",CARE MANAGEMENT GROUP (64-66 CARLTON),CARE ESTABLISHMENT,LD - East Locality,LD - East Cambs - Special Needs,Residential Care
Cambridgeshire County Council,05-Jul-18,51300228669,"-1,328.44",CARE MANAGEMENT GROUP (64-66 CARLTON),CARE ESTABLISHMENT,LD - East Locality,LD - East Cambs - Special Needs,Residential Care
Cambridgeshire County Council,05-Jul-18,51300173906,"-1,328.44",CARE MANAGEMENT GROUP (64-66 CARLTON),CARE ESTABLISHMENT,LD - East Locality,LD - East Cambs - Special Needs,Residential Care
Cambridgeshire County Council,05-Jul-18,51300228645,"-1,328.44",CARE MANAGEMENT GROUP (64-66 CARLTON),CARE ESTABLISHMENT,LD - East Locality,LD - East Cambs - Special Needs,Residential Care
Cambridgeshire County Council,05-Jul-18,51300228701,"-1,328.44",CARE MANAGEMENT GROUP (64-66 CARLTON),CARE ESTABLISHMENT,LD - East Locality,LD - East Cambs - Special Needs,Residential Care
Cambridgeshire County Council,05-Jul-18,51300228577,"-1,328.44",CARE MANAGEMENT GROUP (64-66 CARLTON),CARE ESTABLISHMENT,LD - East Locality,LD - East Cambs - Special Needs,Residential Care
Cambridgeshire County Council,05-Jul-18,51300196615,"-1,328.44",CARE MANAGEMENT GROUP (64-66 CARLTON),CARE ESTABLISHMENT,LD - East Locality,LD - East Cambs - Special Needs,Residential Care
Cambridgeshire County Council,05-Jul-18,51300173896,"-1,328.44",CARE MANAGEMENT GROUP (64-66 CARLTON),CARE ESTABLISHMENT,LD - East Locality,LD - East Cambs - Special Needs,Residential Care
Cambridgeshire County Council,05-Jul-18,51300228637,"-1,328.44",CARE MANAGEMENT GROUP (64-66 CARLTON),CARE ESTABLISHMENT,LD - East Locality,LD - East Cambs - Special Needs,Residential Care
Cambridgeshire County Council,05-Jul-18,51300173926,"-1,328.44",CARE MANAGEMENT GROUP (64-66 CARLTON),CARE ESTABLISHMENT,LD - East Locality,LD - East Cambs - Special Needs,Residential Care
Cambridgeshire County Council,05-Jul-18,51300196574,"-1,328.44",CARE MANAGEMENT GROUP (64-66 CARLTON),CARE ESTABLISHMENT,LD - East Locality,LD - East Cambs - Special Needs,Residential Care
Cambridgeshire County Council,05-Jul-18,51300219003,"-1,328.44",CARE MANAGEMENT GROUP (64-66 CARLTON),CARE ESTABLISHMENT,LD - East Locality,LD - East Cambs - Special Needs,Residential Care
Cambridgeshire County Council,05-Jul-18,51300219005,"-1,328.44",CARE MANAGEMENT GROUP (64-66 CARLTON),CARE ESTABLISHMENT,LD - East Locality,LD - East Cambs - Special Needs,Residential Care
Cambridgeshire County Council,05-Jul-18,51300196553,"-1,328.44",CARE MANAGEMENT GROUP (64-66 CARLTON),CARE ESTABLISHMENT,LD - East Locality,LD - East Cambs - Special Needs,Residential Care
Cambridgeshire County Council,05-Jul-18,51300219057,"-1,328.44",CARE MANAGEMENT GROUP (64-66 CARLTON),CARE ESTABLISHMENT,LD - East Locality,LD - East Cambs - Special Needs,Residential Care
Cambridgeshire County Council,05-Jul-18,51300228560,"-1,328.44",CARE MANAGEMENT GROUP (64-66 CARLTON),CARE ESTABLISHMENT,LD - East Locality,LD - East Cambs - Special Needs,Residential Care
Cambridgeshire County Council,05-Jul-18,51300173927,"-1,328.44",CARE MANAGEMENT GROUP (64-66 CARLTON),CARE ESTABLISHMENT,LD - East Locality,LD - East Cambs - Special Needs,Residential Care
Cambridgeshire County Council,05-Jul-18,51300219074,"-1,328.44",CARE MANAGEMENT GROUP (64-66 CARLTON),CARE ESTABLISHMENT,LD - East Locality,LD - East Cambs - Special Needs,Residential Care
Cambridgeshire County Council,05-Jul-18,51300173857,"-1,328.44",CARE MANAGEMENT GROUP (64-66 CARLTON),CARE ESTABLISHMENT,LD - East Locality,LD - East Cambs - Special Needs,Residential Care
Cambridgeshire County Council,05-Jul-18,51300173862,"-1,328.44",CARE MANAGEMENT GROUP (64-66 CARLTON),CARE ESTABLISHMENT,LD - East Locality,LD - East Cambs - Special Needs,Residential Care
Cambridgeshire County Council,05-Jul-18,51300228678,"-1,328.44",CARE MANAGEMENT GROUP (64-66 CARLTON),CARE ESTABLISHMENT,LD - East Locality,LD - East Cambs - Special Needs,Residential Care
Cambridgeshire County Council,05-Jul-18,51300173937,"-1,328.44",CARE MANAGEMENT GROUP (64-66 CARLTON),CARE ESTABLISHMENT,LD - East Locality,LD - East Cambs - Special Needs,Residential Care
Cambridgeshire County Council,05-Jul-18,51300219121,"-1,328.44",CARE MANAGEMENT GROUP (64-66 CARLTON),CARE ESTABLISHMENT,LD - East Locality,LD - East Cambs - Special Needs,Residential Care
Cambridgeshire County Council,05-Jul-18,51300196540,"-1,328.44",CARE MANAGEMENT GROUP (64-66 CARLTON),CARE ESTABLISHMENT,LD - East Locality,LD - East Cambs - Special Needs,Residential Care
Cambridgeshire County Council,05-Jul-18,51300210953,"-1,317.11",ALDERTON HOUSE,CARE ESTABLISHMENT,LD - East Locality,LD - East Cambs - Special Needs,Residential Care
Cambridgeshire County Council,05-Jul-18,51300211000,"-1,317.11",ALDERTON HOUSE,CARE ESTABLISHMENT,LD - East Locality,LD - East Cambs - Special Needs,Residential Care
Cambridgeshire County Council,05-Jul-18,51300225519,"-1,317.11",ALDERTON HOUSE,CARE ESTABLISHMENT,LD - East Locality,LD - East Cambs - Special Needs,Residential Care
Cambridgeshire County Council,05-Jul-18,51300210961,"-1,317.11",ALDERTON HOUSE,CARE ESTABLISHMENT,LD - East Locality,LD - East Cambs - Special Needs,Residential Care
Cambridgeshire County Council,05-Jul-18,51300225479,"-1,317.11",ALDERTON HOUSE,CARE ESTABLISHMENT,LD - East Locality,LD - East Cambs - Special Needs,Residential Care
Cambridgeshire County Council,05-Jul-18,51300225536,"-1,317.11",ALDERTON HOUSE,CARE ESTABLISHMENT,LD - East Locality,LD - East Cambs - Special Needs,Residential Care
Cambridgeshire County Council,05-Jul-18,51300225542,"-1,317.11",ALDERTON HOUSE,CARE ESTABLISHMENT,LD - East Locality,LD - East Cambs - Special Needs,Residential Care
Cambridgeshire County Council,05-Jul-18,51300225543,"-1,317.11",ALDERTON HOUSE,CARE ESTABLISHMENT,LD - East Locality,LD - East Cambs - Special Needs,Residential Care
Cambridgeshire County Council,05-Jul-18,51300225560,"-1,317.11",ALDERTON HOUSE,CARE ESTABLISHMENT,LD - East Locality,LD - East Cambs - Special Needs,Residential Care
Cambridgeshire County Council,05-Jul-18,51300210952,"-1,317.11",ALDERTON HOUSE,CARE ESTABLISHMENT,LD - East Locality,LD - East Cambs - Special Needs,Residential Care
Cambridgeshire County Council,05-Jul-18,51300210964,"-1,317.11",ALDERTON HOUSE,CARE ESTABLISHMENT,LD - East Locality,LD - East Cambs - Special Needs,Residential Care
Cambridgeshire County Council,05-Jul-18,51300210943,"-1,317.11",ALDERTON HOUSE,CARE ESTABLISHMENT,LD - East Locality,LD - East Cambs - Special Needs,Residential Care
Cambridgeshire County Council,05-Jul-18,51300210951,"-1,317.11",ALDERTON HOUSE,CARE ESTABLISHMENT,LD - East Locality,LD - East Cambs - Special Needs,Residential Care
Cambridgeshire County Council,05-Jul-18,51300210974,"-1,317.11",ALDERTON HOUSE,CARE ESTABLISHMENT,LD - East Locality,LD - East Cambs - Special Needs,Residential Care
Cambridgeshire County Council,05-Jul-18,51300211019,"-1,317.11",ALDERTON HOUSE,CARE ESTABLISHMENT,LD - East Locality,LD - East Cambs - Special Needs,Residential Care
Cambridgeshire County Council,05-Jul-18,51300211024,"-1,317.11",ALDERTON HOUSE,CARE ESTABLISHMENT,LD - East Locality,LD - East Cambs - Special Needs,Residential Care
Cambridgeshire County Council,05-Jul-18,51300211048,"-1,317.11",ALDERTON HOUSE,CARE ESTABLISHMENT,LD - East Locality,LD - East Cambs - Special Needs,Residential Care
Cambridgeshire County Council,05-Jul-18,51300225502,"-1,317.11",ALDERTON HOUSE,CARE ESTABLISHMENT,LD - East Locality,LD - East Cambs - Special Needs,Residential Care
Cambridgeshire County Council,05-Jul-18,51300211078,"-1,317.11",ALDERTON HOUSE,CARE ESTABLISHMENT,LD - East Locality,LD - East Cambs - Special Needs,Residential Care
Cambridgeshire County Council,05-Jul-18,51300210984,"-1,317.11",ALDERTON HOUSE,CARE ESTABLISHMENT,LD - East Locality,LD - East Cambs - Special Needs,Residential Care
Cambridgeshire County Council,05-Jul-18,51300211062,"-1,317.11",ALDERTON HOUSE,CARE ESTABLISHMENT,LD - East Locality,LD - East Cambs - Special Needs,Residential Care
Cambridgeshire County Council,05-Jul-18,51300211090,"-1,317.11",ALDERTON HOUSE,CARE ESTABLISHMENT,LD - East Locality,LD - East Cambs - Special Needs,Residential Care
Cambridgeshire County Council,05-Jul-18,51300211093,"-1,317.11",ALDERTON HOUSE,CARE ESTABLISHMENT,LD - East Locality,LD - East Cambs - Special Needs,Residential Care
Cambridgeshire County Council,05-Jul-18,51300225447,"-1,317.11",ALDERTON HOUSE,CARE ESTABLISHMENT,LD - East Locality,LD - East Cambs - Special Needs,Residential Care
Cambridgeshire County Council,05-Jul-18,51300225462,"-1,317.11",ALDERTON HOUSE,CARE ESTABLISHMENT,LD - East Locality,LD - East Cambs - Special Needs,Residential Care
Cambridgeshire County Council,05-Jul-18,51300211016,"-1,317.11",ALDERTON HOUSE,CARE ESTABLISHMENT,LD - East Locality,LD - East Cambs - Special Needs,Residential Care
Cambridgeshire County Council,05-Jul-18,51300211039,"-1,317.11",ALDERTON HOUSE,CARE ESTABLISHMENT,LD - East Locality,LD - East Cambs - Special Needs,Residential Care
Cambridgeshire County Council,05-Jul-18,51300211061,"-1,317.11",ALDERTON HOUSE,CARE ESTABLISHMENT,LD - East Locality,LD - East Cambs - Special Needs,Residential Care
Cambridgeshire County Council,05-Jul-18,51300225454,"-1,317.11",ALDERTON HOUSE,CARE ESTABLISHMENT,LD - East Locality,LD - East Cambs - Special Needs,Residential Care
Cambridgeshire County Council,05-Jul-18,51300225518,"-1,317.11",ALDERTON HOUSE,CARE ESTABLISHMENT,LD - East Locality,LD - East Cambs - Special Needs,Residential Care
Cambridgeshire County Council,05-Jul-18,51300225523,"-1,317.11",ALDERTON HOUSE,CARE ESTABLISHMENT,LD - East Locality,LD - East Cambs - Special Needs,Residential Care
Cambridgeshire County Council,05-Jul-18,51300225535,"-1,317.11",ALDERTON HOUSE,CARE ESTABLISHMENT,LD - East Locality,LD - East Cambs - Special Needs,Residential Care
Cambridgeshire County Council,05-Jul-18,51300225559,"-1,317.11",ALDERTON HOUSE,CARE ESTABLISHMENT,LD - East Locality,LD - East Cambs - Special Needs,Residential Care
Cambridgeshire County Council,05-Jul-18,51300225567,"-1,317.11",ALDERTON HOUSE,CARE ESTABLISHMENT,LD - East Locality,LD - East Cambs - Special Needs,Residential Care
Cambridgeshire County Council,05-Jul-18,51300225445,"-1,317.11",ALDERTON HOUSE,CARE ESTABLISHMENT,LD - East Locality,LD - East Cambs - Special Needs,Residential Care
Cambridgeshire County Council,05-Jul-18,51300225499,"-1,317.11",ALDERTON HOUSE,CARE ESTABLISHMENT,LD - East Locality,LD - East Cambs - Special Needs,Residential Care
Cambridgeshire County Council,05-Jul-18,51300225558,"-1,317.11",ALDERTON HOUSE,CARE ESTABLISHMENT,LD - East Locality,LD - East Cambs - Special Needs,Residential Care
Cambridgeshire County Council,05-Jul-18,51300225472,"-1,317.11",ALDERTON HOUSE,CARE ESTABLISHMENT,LD - East Locality,LD - East Cambs - Special Needs,Residential Care
Cambridgeshire County Council,05-Jul-18,51300225529,"-1,317.11",ALDERTON HOUSE,CARE ESTABLISHMENT,LD - East Locality,LD - East Cambs - Special Needs,Residential Care
Cambridgeshire County Council,05-Jul-18,51300210923,"-1,317.11",ALDERTON HOUSE,CARE ESTABLISHMENT,LD - East Locality,LD - East Cambs - Special Needs,Residential Care
Cambridgeshire County Council,05-Jul-18,51300210990,"-1,317.11",ALDERTON HOUSE,CARE ESTABLISHMENT,LD - East Locality,LD - East Cambs - Special Needs,Residential Care
Cambridgeshire County Council,05-Jul-18,51300210994,"-1,317.11",ALDERTON HOUSE,CARE ESTABLISHMENT,LD - East Locality,LD - East Cambs - Special Needs,Residential Care
Cambridgeshire County Council,05-Jul-18,51300211094,"-1,317.11",ALDERTON HOUSE,CARE ESTABLISHMENT,LD - East Locality,LD - East Cambs - Special Needs,Residential Care
Cambridgeshire County Council,05-Jul-18,51300210981,"-1,317.11",ALDERTON HOUSE,CARE ESTABLISHMENT,LD - East Locality,LD - East Cambs - Special Needs,Residential Care
Cambridgeshire County Council,05-Jul-18,51300211047,"-1,317.11",ALDERTON HOUSE,CARE ESTABLISHMENT,LD - East Locality,LD - East Cambs - Special Needs,Residential Care
Cambridgeshire County Council,05-Jul-18,51300225516,"-1,317.11",ALDERTON HOUSE,CARE ESTABLISHMENT,LD - East Locality,LD - East Cambs - Special Needs,Residential Care
Cambridgeshire County Council,05-Jul-18,51300225469,"-1,317.11",ALDERTON HOUSE,CARE ESTABLISHMENT,LD - East Locality,LD - East Cambs - Special Needs,Residential Care
Cambridgeshire County Council,05-Jul-18,51300225451,"-1,317.11",ALDERTON HOUSE,CARE ESTABLISHMENT,LD - East Locality,LD - East Cambs - Special Needs,Residential Care
Cambridgeshire County Council,05-Jul-18,51300225528,"-1,317.11",ALDERTON HOUSE,CARE ESTABLISHMENT,LD - East Locality,LD - East Cambs - Special Needs,Residential Care
Cambridgeshire County Council,05-Jul-18,51300225496,"-1,317.11",ALDERTON HOUSE,CARE ESTABLISHMENT,LD - East Locality,LD - East Cambs - Special Needs,Residential Care
Cambridgeshire County Council,05-Jul-18,51300211083,"-1,317.11",ALDERTON HOUSE,CARE ESTABLISHMENT,LD - East Locality,LD - East Cambs - Special Needs,Residential Care
Cambridgeshire County Council,05-Jul-18,51300225555,"-1,317.11",ALDERTON HOUSE,CARE ESTABLISHMENT,LD - East Locality,LD - East Cambs - Special Needs,Residential Care
Cambridgeshire County Council,05-Jul-18,51300225493,"-1,317.11",ALDERTON HOUSE,CARE ESTABLISHMENT,LD - East Locality,LD - East Cambs - Special Needs,Residential Care
Cambridgeshire County Council,05-Jul-18,51300210931,"-1,317.11",ALDERTON HOUSE,CARE ESTABLISHMENT,LD - East Locality,LD - East Cambs - Special Needs,Residential Care
Cambridgeshire County Council,05-Jul-18,51300225539,"-1,317.11",ALDERTON HOUSE,CARE ESTABLISHMENT,LD - East Locality,LD - East Cambs - Special Needs,Residential Care
Cambridgeshire County Council,05-Jul-18,51300210933,"-1,317.11",ALDERTON HOUSE,CARE ESTABLISHMENT,LD - East Locality,LD - East Cambs - Care,Residential Care
Cambridgeshire County Council,05-Jul-18,51300225515,"-1,317.11",ALDERTON HOUSE,CARE ESTABLISHMENT,LD - East Locality,LD - East Cambs - Care,Residential Care
Cambridgeshire County Council,05-Jul-18,51300225468,"-1,317.11",ALDERTON HOUSE,CARE ESTABLISHMENT,LD - East Locality,LD - East Cambs - Care,Residential Care
Cambridgeshire County Council,05-Jul-18,51300210955,"-1,317.11",ALDERTON HOUSE,CARE ESTABLISHMENT,LD - East Locality,LD - East Cambs - Care,Residential Care
Cambridgeshire County Council,05-Jul-18,51300225500,"-1,317.11",ALDERTON HOUSE,CARE ESTABLISHMENT,LD - East Locality,LD - East Cambs - Care,Residential Care
Cambridgeshire County Council,05-Jul-18,51300225488,"-1,317.11",ALDERTON HOUSE,CARE ESTABLISHMENT,LD - East Locality,LD - East Cambs - Care,Residential Care
Cambridgeshire County Council,05-Jul-18,51300225520,"-1,317.11",ALDERTON HOUSE,CARE ESTABLISHMENT,LD - East Locality,LD - East Cambs - Care,Residential Care
Cambridgeshire County Council,05-Jul-18,51300225521,"-1,317.11",ALDERTON HOUSE,CARE ESTABLISHMENT,LD - East Locality,LD - East Cambs - Care,Residential Care
Cambridgeshire County Council,05-Jul-18,51300225495,"-1,317.11",ALDERTON HOUSE,CARE ESTABLISHMENT,LD - East Locality,LD - East Cambs - Care,Residential Care
Cambridgeshire County Council,05-Jul-18,51300210982,"-1,317.11",ALDERTON HOUSE,CARE ESTABLISHMENT,LD - East Locality,LD - East Cambs - Care,Residential Care
Cambridgeshire County Council,05-Jul-18,51300211104,"-1,317.11",ALDERTON HOUSE,CARE ESTABLISHMENT,LD - East Locality,LD - East Cambs - Care,Residential Care
Cambridgeshire County Council,05-Jul-18,51300211106,"-1,317.11",ALDERTON HOUSE,CARE ESTABLISHMENT,LD - East Locality,LD - East Cambs - Care,Residential Care
Cambridgeshire County Council,05-Jul-18,51300225550,"-1,317.11",ALDERTON HOUSE,CARE ESTABLISHMENT,LD - East Locality,LD - East Cambs - Care,Residential Care
Cambridgeshire County Council,05-Jul-18,51300225553,"-1,317.11",ALDERTON HOUSE,CARE ESTABLISHMENT,LD - East Locality,LD - East Cambs - Care,Residential Care
Cambridgeshire County Council,05-Jul-18,51300211009,"-1,317.11",ALDERTON HOUSE,CARE ESTABLISHMENT,LD - East Locality,LD - East Cambs - Care,Residential Care
Cambridgeshire County Council,05-Jul-18,51300211030,"-1,317.11",ALDERTON HOUSE,CARE ESTABLISHMENT,LD - East Locality,LD - East Cambs - Care,Residential Care
Cambridgeshire County Council,05-Jul-18,51300210962,"-1,317.11",ALDERTON HOUSE,CARE ESTABLISHMENT,LD - East Locality,LD - East Cambs - Care,Residential Care
Cambridgeshire County Council,05-Jul-18,51300211089,"-1,317.11",ALDERTON HOUSE,CARE ESTABLISHMENT,LD - East Locality,LD - East Cambs - Care,Residential Care
Cambridgeshire County Council,05-Jul-18,51300211038,"-1,317.11",ALDERTON HOUSE,CARE ESTABLISHMENT,LD - East Locality,LD - East Cambs - Care,Residential Care
Cambridgeshire County Council,05-Jul-18,51300210926,"-1,317.11",ALDERTON HOUSE,CARE ESTABLISHMENT,LD - East Locality,LD - East Cambs - Care,Residential Care
Cambridgeshire County Council,05-Jul-18,51300210942,"-1,317.11",ALDERTON HOUSE,CARE ESTABLISHMENT,LD - East Locality,LD - East Cambs - Care,Residential Care
Cambridgeshire County Council,05-Jul-18,51300211100,"-1,317.11",ALDERTON HOUSE,CARE ESTABLISHMENT,LD - East Locality,LD - East Cambs - Care,Residential Care
Cambridgeshire County Council,05-Jul-18,51300225444,"-1,317.11",ALDERTON HOUSE,CARE ESTABLISHMENT,LD - East Locality,LD - East Cambs - Care,Residential Care
Cambridgeshire County Council,05-Jul-18,51300225463,"-1,317.11",ALDERTON HOUSE,CARE ESTABLISHMENT,LD - East Locality,LD - East Cambs - Care,Residential Care
Cambridgeshire County Council,05-Jul-18,51300225492,"-1,317.11",ALDERTON HOUSE,CARE ESTABLISHMENT,LD - East Locality,LD - East Cambs - Care,Residential Care
Cambridgeshire County Council,05-Jul-18,51300225532,"-1,317.11",ALDERTON HOUSE,CARE ESTABLISHMENT,LD - East Locality,LD - East Cambs - Care,Residential Care
Cambridgeshire County Council,05-Jul-18,51300225548,"-1,317.11",ALDERTON HOUSE,CARE ESTABLISHMENT,LD - East Locality,LD - East Cambs - Care,Residential Care
Cambridgeshire County Council,05-Jul-18,51300225554,"-1,317.11",ALDERTON HOUSE,CARE ESTABLISHMENT,LD - East Locality,LD - East Cambs - Care,Residential Care
Cambridgeshire County Council,05-Jul-18,51300225464,"-1,317.11",ALDERTON HOUSE,CARE ESTABLISHMENT,LD - East Locality,LD - East Cambs - Care,Residential Care
Cambridgeshire County Council,05-Jul-18,51300225475,"-1,317.11",ALDERTON HOUSE,CARE ESTABLISHMENT,LD - East Locality,LD - East Cambs - Care,Residential Care
Cambridgeshire County Council,05-Jul-18,51300225545,"-1,317.11",ALDERTON HOUSE,CARE ESTABLISHMENT,LD - East Locality,LD - East Cambs - Care,Residential Care
Cambridgeshire County Council,05-Jul-18,51300211088,"-1,317.11",ALDERTON HOUSE,CARE ESTABLISHMENT,LD - East Locality,LD - East Cambs - Care,Residential Care
Cambridgeshire County Council,05-Jul-18,51300211095,"-1,317.11",ALDERTON HOUSE,CARE ESTABLISHMENT,LD - East Locality,LD - East Cambs - Care,Residential Care
Cambridgeshire County Council,05-Jul-18,51300225452,"-1,317.11",ALDERTON HOUSE,CARE ESTABLISHMENT,LD - East Locality,LD - East Cambs - Care,Residential Care
Cambridgeshire County Council,05-Jul-18,51300225512,"-1,317.11",ALDERTON HOUSE,CARE ESTABLISHMENT,LD - East Locality,LD - East Cambs - Care,Residential Care
Cambridgeshire County Council,05-Jul-18,51300210912,"-1,317.11",ALDERTON HOUSE,CARE ESTABLISHMENT,LD - East Locality,LD - East Cambs - Care,Residential Care
Cambridgeshire County Council,05-Jul-18,51300211008,"-1,317.11",ALDERTON HOUSE,CARE ESTABLISHMENT,LD - East Locality,LD - East Cambs - Care,Residential Care
Cambridgeshire County Council,05-Jul-18,51300225510,"-1,317.11",ALDERTON HOUSE,CARE ESTABLISHMENT,LD - East Locality,LD - East Cambs - Care,Residential Care
Cambridgeshire County Council,05-Jul-18,51300210954,"-1,317.11",ALDERTON HOUSE,CARE ESTABLISHMENT,LD - East Locality,LD - East Cambs - Care,Residential Care
Cambridgeshire County Council,05-Jul-18,51300225504,"-1,317.11",ALDERTON HOUSE,CARE ESTABLISHMENT,LD - East Locality,LD - East Cambs - Care,Residential Care
Cambridgeshire County Council,05-Jul-18,51300225514,"-1,317.11",ALDERTON HOUSE,CARE ESTABLISHMENT,LD - East Locality,LD - East Cambs - Care,Residential Care
Cambridgeshire County Council,05-Jul-18,51300210956,"-1,317.11",ALDERTON HOUSE,CARE ESTABLISHMENT,LD - East Locality,LD - East Cambs - Care,Residential Care
Cambridgeshire County Council,05-Jul-18,51300225498,"-1,317.11",ALDERTON HOUSE,CARE ESTABLISHMENT,LD - East Locality,LD - East Cambs - Care,Residential Care
Cambridgeshire County Council,05-Jul-18,51300225477,"-1,317.11",ALDERTON HOUSE,CARE ESTABLISHMENT,LD - East Locality,LD - East Cambs - Care,Residential Care
Cambridgeshire County Council,05-Jul-18,51300210940,"-1,317.11",ALDERTON HOUSE,CARE ESTABLISHMENT,LD - East Locality,LD - East Cambs - Care,Residential Care
Cambridgeshire County Council,05-Jul-18,51300210966,"-1,317.11",ALDERTON HOUSE,CARE ESTABLISHMENT,LD - East Locality,LD - East Cambs - Care,Residential Care
Cambridgeshire County Council,05-Jul-18,51300210971,"-1,317.11",ALDERTON HOUSE,CARE ESTABLISHMENT,LD - East Locality,LD - East Cambs - Care,Residential Care
Cambridgeshire County Council,05-Jul-18,51300210972,"-1,317.11",ALDERTON HOUSE,CARE ESTABLISHMENT,LD - East Locality,LD - East Cambs - Care,Residential Care
Cambridgeshire County Council,05-Jul-18,51300210976,"-1,317.11",ALDERTON HOUSE,CARE ESTABLISHMENT,LD - East Locality,LD - East Cambs - Care,Residential Care
Cambridgeshire County Council,05-Jul-18,51300211018,"-1,317.11",ALDERTON HOUSE,CARE ESTABLISHMENT,LD - East Locality,LD - East Cambs - Care,Residential Care
Cambridgeshire County Council,05-Jul-18,51300211015,"-1,317.11",ALDERTON HOUSE,CARE ESTABLISHMENT,LD - East Locality,LD - East Cambs - Care,Residential Care
Cambridgeshire County Council,12-Jul-18,51300234619,"-1,317.11",ALDERTON HOUSE,CARE ESTABLISHMENT,LD - East Locality,LD - East Cambs - Special Needs,Residential Care
Cambridgeshire County Council,12-Jul-18,51300234577,"-1,317.11",ALDERTON HOUSE,CARE ESTABLISHMENT,LD - East Locality,LD - East Cambs - Special Needs,Residential Care
Cambridgeshire County Council,12-Jul-18,51300234518,"-1,317.11",ALDERTON HOUSE,CARE ESTABLISHMENT,LD - East Locality,LD - East Cambs - Special Needs,Residential Care
Cambridgeshire County Council,12-Jul-18,51300234525,"-1,317.11",ALDERTON HOUSE,CARE ESTABLISHMENT,LD - East Locality,LD - East Cambs - Special Needs,Residential Care
Cambridgeshire County Council,12-Jul-18,51300234561,"-1,317.11",ALDERTON HOUSE,CARE ESTABLISHMENT,LD - East Locality,LD - East Cambs - Special Needs,Residential Care
Cambridgeshire County Council,12-Jul-18,51300234550,"-1,317.11",ALDERTON HOUSE,CARE ESTABLISHMENT,LD - East Locality,LD - East Cambs - Special Needs,Residential Care
Cambridgeshire County Council,12-Jul-18,51300234601,"-1,317.11",ALDERTON HOUSE,CARE ESTABLISHMENT,LD - East Locality,LD - East Cambs - Special Needs,Residential Care
Cambridgeshire County Council,12-Jul-18,51300234554,"-1,317.11",ALDERTON HOUSE,CARE ESTABLISHMENT,LD - East Locality,LD - East Cambs - Special Needs,Residential Care
Cambridgeshire County Council,12-Jul-18,51300234555,"-1,317.11",ALDERTON HOUSE,CARE ESTABLISHMENT,LD - East Locality,LD - East Cambs - Special Needs,Residential Care
Cambridgeshire County Council,12-Jul-18,51300234571,"-1,317.11",ALDERTON HOUSE,CARE ESTABLISHMENT,LD - East Locality,LD - East Cambs - Special Needs,Residential Care
Cambridgeshire County Council,12-Jul-18,51300234588,"-1,317.11",ALDERTON HOUSE,CARE ESTABLISHMENT,LD - East Locality,LD - East Cambs - Special Needs,Residential Care
Cambridgeshire County Council,12-Jul-18,51300234611,"-1,317.11",ALDERTON HOUSE,CARE ESTABLISHMENT,LD - East Locality,LD - East Cambs - Special Needs,Residential Care
Cambridgeshire County Council,12-Jul-18,51300234618,"-1,317.11",ALDERTON HOUSE,CARE ESTABLISHMENT,LD - East Locality,LD - East Cambs - Special Needs,Residential Care
Cambridgeshire County Council,12-Jul-18,51300234624,"-1,317.11",ALDERTON HOUSE,CARE ESTABLISHMENT,LD - East Locality,LD - East Cambs - Special Needs,Residential Care
Cambridgeshire County Council,12-Jul-18,51300234579,"-1,317.11",ALDERTON HOUSE,CARE ESTABLISHMENT,LD - East Locality,LD - East Cambs - Special Needs,Residential Care
Cambridgeshire County Council,12-Jul-18,51300234583,"-1,317.11",ALDERTON HOUSE,CARE ESTABLISHMENT,LD - East Locality,LD - East Cambs - Special Needs,Residential Care
Cambridgeshire County Council,12-Jul-18,51300234517,"-1,317.11",ALDERTON HOUSE,CARE ESTABLISHMENT,LD - East Locality,LD - East Cambs - Special Needs,Residential Care
Cambridgeshire County Council,12-Jul-18,51300234522,"-1,317.11",ALDERTON HOUSE,CARE ESTABLISHMENT,LD - East Locality,LD - East Cambs - Special Needs,Residential Care
Cambridgeshire County Council,12-Jul-18,51300234526,"-1,317.11",ALDERTON HOUSE,CARE ESTABLISHMENT,LD - East Locality,LD - East Cambs - Special Needs,Residential Care
Cambridgeshire County Council,12-Jul-18,51300234537,"-1,317.11",ALDERTON HOUSE,CARE ESTABLISHMENT,LD - East Locality,LD - East Cambs - Special Needs,Residential Care
Cambridgeshire County Council,12-Jul-18,51300234538,"-1,317.11",ALDERTON HOUSE,CARE ESTABLISHMENT,LD - East Locality,LD - East Cambs - Special Needs,Residential Care
Cambridgeshire County Council,12-Jul-18,51300234543,"-1,317.11",ALDERTON HOUSE,CARE ESTABLISHMENT,LD - East Locality,LD - East Cambs - Special Needs,Residential Care
Cambridgeshire County Council,12-Jul-18,51300234528,"-1,317.11",ALDERTON HOUSE,CARE ESTABLISHMENT,LD - East Locality,LD - East Cambs - Special Needs,Residential Care
Cambridgeshire County Council,12-Jul-18,51300234534,"-1,317.11",ALDERTON HOUSE,CARE ESTABLISHMENT,LD - East Locality,LD - East Cambs - Special Needs,Residential Care
Cambridgeshire County Council,12-Jul-18,51300234602,"-1,317.11",ALDERTON HOUSE,CARE ESTABLISHMENT,LD - East Locality,LD - East Cambs - Special Needs,Residential Care
Cambridgeshire County Council,12-Jul-18,51300234621,"-1,317.11",ALDERTON HOUSE,CARE ESTABLISHMENT,LD - East Locality,LD - East Cambs - Care,Residential Care
Cambridgeshire County Council,12-Jul-18,51300234545,"-1,317.11",ALDERTON HOUSE,CARE ESTABLISHMENT,LD - East Locality,LD - East Cambs - Care,Residential Care
Cambridgeshire County Council,12-Jul-18,51300234587,"-1,317.11",ALDERTON HOUSE,CARE ESTABLISHMENT,LD - East Locality,LD - East Cambs - Care,Residential Care
Cambridgeshire County Council,12-Jul-18,51300234627,"-1,317.11",ALDERTON HOUSE,CARE ESTABLISHMENT,LD - East Locality,LD - East Cambs - Care,Residential Care
Cambridgeshire County Council,12-Jul-18,51300234607,"-1,317.11",ALDERTON HOUSE,CARE ESTABLISHMENT,LD - East Locality,LD - East Cambs - Care,Residential Care
Cambridgeshire County Council,12-Jul-18,51300234612,"-1,317.11",ALDERTON HOUSE,CARE ESTABLISHMENT,LD - East Locality,LD - East Cambs - Care,Residential Care
Cambridgeshire County Council,12-Jul-18,51300234593,"-1,317.11",ALDERTON HOUSE,CARE ESTABLISHMENT,LD - East Locality,LD - East Cambs - Care,Residential Care
Cambridgeshire County Council,12-Jul-18,51300234536,"-1,317.11",ALDERTON HOUSE,CARE ESTABLISHMENT,LD - East Locality,LD - East Cambs - Care,Residential Care
Cambridgeshire County Council,12-Jul-18,51300234559,"-1,317.11",ALDERTON HOUSE,CARE ESTABLISHMENT,LD - East Locality,LD - East Cambs - Care,Residential Care
Cambridgeshire County Council,12-Jul-18,51300234592,"-1,317.11",ALDERTON HOUSE,CARE ESTABLISHMENT,LD - East Locality,LD - East Cambs - Care,Residential Care
Cambridgeshire County Council,12-Jul-18,51300234594,"-1,317.11",ALDERTON HOUSE,CARE ESTABLISHMENT,LD - East Locality,LD - East Cambs - Care,Residential Care
Cambridgeshire County Council,12-Jul-18,51300234597,"-1,317.11",ALDERTON HOUSE,CARE ESTABLISHMENT,LD - East Locality,LD - East Cambs - Care,Residential Care
Cambridgeshire County Council,12-Jul-18,51300234616,"-1,317.11",ALDERTON HOUSE,CARE ESTABLISHMENT,LD - East Locality,LD - East Cambs - Care,Residential Care
Cambridgeshire County Council,12-Jul-18,51300234623,"-1,317.11",ALDERTON HOUSE,CARE ESTABLISHMENT,LD - East Locality,LD - East Cambs - Care,Residential Care
Cambridgeshire County Council,12-Jul-18,51300234572,"-1,317.11",ALDERTON HOUSE,CARE ESTABLISHMENT,LD - East Locality,LD - East Cambs - Care,Residential Care
Cambridgeshire County Council,12-Jul-18,51300234566,"-1,317.11",ALDERTON HOUSE,CARE ESTABLISHMENT,LD - East Locality,LD - East Cambs - Care,Residential Care
Cambridgeshire County Council,12-Jul-18,51300234567,"-1,317.11",ALDERTON HOUSE,CARE ESTABLISHMENT,LD - East Locality,LD - East Cambs - Care,Residential Care
Cambridgeshire County Council,12-Jul-18,51300234595,"-1,317.11",ALDERTON HOUSE,CARE ESTABLISHMENT,LD - East Locality,LD - East Cambs - Care,Residential Care
Cambridgeshire County Council,12-Jul-18,51300234600,"-1,317.11",ALDERTON HOUSE,CARE ESTABLISHMENT,LD - East Locality,LD - East Cambs - Care,Residential Care
Cambridgeshire County Council,12-Jul-18,51300234544,"-1,317.11",ALDERTON HOUSE,CARE ESTABLISHMENT,LD - East Locality,LD - East Cambs - Care,Residential Care
Cambridgeshire County Council,12-Jul-18,51300234614,"-1,317.11",ALDERTON HOUSE,CARE ESTABLISHMENT,LD - East Locality,LD - East Cambs - Care,Residential Care
Cambridgeshire County Council,12-Jul-18,51300234533,"-1,317.11",ALDERTON HOUSE,CARE ESTABLISHMENT,LD - East Locality,LD - East Cambs - Care,Residential Care
Cambridgeshire County Council,12-Jul-18,51300234551,"-1,317.11",ALDERTON HOUSE,CARE ESTABLISHMENT,LD - East Locality,LD - East Cambs - Care,Residential Care
Cambridgeshire County Council,12-Jul-18,51300234564,"-1,317.11",ALDERTON HOUSE,CARE ESTABLISHMENT,LD - East Locality,LD - East Cambs - Care,Residential Care
Cambridgeshire County Council,12-Jul-18,51300234575,"-1,317.11",ALDERTON HOUSE,CARE ESTABLISHMENT,LD - East Locality,LD - East Cambs - Care,Residential Care
Cambridgeshire County Council,12-Jul-18,51300234552,"-1,317.11",ALDERTON HOUSE,CARE ESTABLISHMENT,LD - East Locality,LD - East Cambs - Care,Residential Care
Cambridgeshire County Council,12-Jul-18,51300234563,"-1,317.11",ALDERTON HOUSE,CARE ESTABLISHMENT,LD - East Locality,LD - East Cambs - Care,Residential Care
Cambridgeshire County Council,12-Jul-18,51300234574,"-1,317.11",ALDERTON HOUSE,CARE ESTABLISHMENT,LD - East Locality,LD - East Cambs - Care,Residential Care
Cambridgeshire County Council,20-Jul-18,51300249276,"-1,317.11",ALDERTON HOUSE,CARE ESTABLISHMENT,LD - East Locality,LD - East Cambs - Special Needs,Residential Care
Cambridgeshire County Council,20-Jul-18,51300249340,"-1,317.11",ALDERTON HOUSE,CARE ESTABLISHMENT,LD - East Locality,LD - East Cambs - Special Needs,Residential Care
Cambridgeshire County Council,20-Jul-18,51300249332,"-1,317.11",ALDERTON HOUSE,CARE ESTABLISHMENT,LD - East Locality,LD - East Cambs - Special Needs,Residential Care
Cambridgeshire County Council,20-Jul-18,51300249162,"-1,317.11",ALDERTON HOUSE,CARE ESTABLISHMENT,LD - East Locality,LD - East Cambs - Special Needs,Residential Care
Cambridgeshire County Council,20-Jul-18,51300249197,"-1,317.11",ALDERTON HOUSE,CARE ESTABLISHMENT,LD - East Locality,LD - East Cambs - Special Needs,Residential Care
Cambridgeshire County Council,20-Jul-18,51300249210,"-1,317.11",ALDERTON HOUSE,CARE ESTABLISHMENT,LD - East Locality,LD - East Cambs - Special Needs,Residential Care
Cambridgeshire County Council,20-Jul-18,51300249307,"-1,317.11",ALDERTON HOUSE,CARE ESTABLISHMENT,LD - East Locality,LD - East Cambs - Special Needs,Residential Care
Cambridgeshire County Council,20-Jul-18,51300249305,"-1,317.11",ALDERTON HOUSE,CARE ESTABLISHMENT,LD - East Locality,LD - East Cambs - Special Needs,Residential Care
Cambridgeshire County Council,20-Jul-18,51300249326,"-1,317.11",ALDERTON HOUSE,CARE ESTABLISHMENT,LD - East Locality,LD - East Cambs - Special Needs,Residential Care
Cambridgeshire County Council,20-Jul-18,51300249331,"-1,317.11",ALDERTON HOUSE,CARE ESTABLISHMENT,LD - East Locality,LD - East Cambs - Special Needs,Residential Care
Cambridgeshire County Council,20-Jul-18,51300249158,"-1,317.11",ALDERTON HOUSE,CARE ESTABLISHMENT,LD - East Locality,LD - East Cambs - Special Needs,Residential Care
Cambridgeshire County Council,20-Jul-18,51300249172,"-1,317.11",ALDERTON HOUSE,CARE ESTABLISHMENT,LD - East Locality,LD - East Cambs - Special Needs,Residential Care
Cambridgeshire County Council,20-Jul-18,51300249245,"-1,317.11",ALDERTON HOUSE,CARE ESTABLISHMENT,LD - East Locality,LD - East Cambs - Special Needs,Residential Care
Cambridgeshire County Council,20-Jul-18,51300249250,"-1,317.11",ALDERTON HOUSE,CARE ESTABLISHMENT,LD - East Locality,LD - East Cambs - Special Needs,Residential Care
Cambridgeshire County Council,20-Jul-18,51300249181,"-1,317.11",ALDERTON HOUSE,CARE ESTABLISHMENT,LD - East Locality,LD - East Cambs - Special Needs,Residential Care
Cambridgeshire County Council,20-Jul-18,51300249198,"-1,317.11",ALDERTON HOUSE,CARE ESTABLISHMENT,LD - East Locality,LD - East Cambs - Special Needs,Residential Care
Cambridgeshire County Council,20-Jul-18,51300249282,"-1,317.11",ALDERTON HOUSE,CARE ESTABLISHMENT,LD - East Locality,LD - East Cambs - Special Needs,Residential Care
Cambridgeshire County Council,20-Jul-18,51300249283,"-1,317.11",ALDERTON HOUSE,CARE ESTABLISHMENT,LD - East Locality,LD - East Cambs - Special Needs,Residential Care
Cambridgeshire County Council,20-Jul-18,51300249292,"-1,317.11",ALDERTON HOUSE,CARE ESTABLISHMENT,LD - East Locality,LD - East Cambs - Special Needs,Residential Care
Cambridgeshire County Council,20-Jul-18,51300249214,"-1,317.11",ALDERTON HOUSE,CARE ESTABLISHMENT,LD - East Locality,LD - East Cambs - Special Needs,Residential Care
Cambridgeshire County Council,20-Jul-18,51300249237,"-1,317.11",ALDERTON HOUSE,CARE ESTABLISHMENT,LD - East Locality,LD - East Cambs - Special Needs,Residential Care
Cambridgeshire County Council,20-Jul-18,51300249239,"-1,317.11",ALDERTON HOUSE,CARE ESTABLISHMENT,LD - East Locality,LD - East Cambs - Special Needs,Residential Care
Cambridgeshire County Council,20-Jul-18,51300249352,"-1,317.11",ALDERTON HOUSE,CARE ESTABLISHMENT,LD - East Locality,LD - East Cambs - Special Needs,Residential Care
Cambridgeshire County Council,20-Jul-18,51300249304,"-1,317.11",ALDERTON HOUSE,CARE ESTABLISHMENT,LD - East Locality,LD - East Cambs - Special Needs,Residential Care
Cambridgeshire County Council,20-Jul-18,51300249189,"-1,317.11",ALDERTON HOUSE,CARE ESTABLISHMENT,LD - East Locality,LD - East Cambs - Special Needs,Residential Care
Cambridgeshire County Council,20-Jul-18,51300249349,"-1,317.11",ALDERTON HOUSE,CARE ESTABLISHMENT,LD - East Locality,LD - East Cambs - Special Needs,Residential Care
Cambridgeshire County Council,20-Jul-18,51300249285,"-1,317.11",ALDERTON HOUSE,CARE ESTABLISHMENT,LD - East Locality,LD - East Cambs - Special Needs,Residential Care
Cambridgeshire County Council,20-Jul-18,51300249164,"-1,317.11",ALDERTON HOUSE,CARE ESTABLISHMENT,LD - East Locality,LD - East Cambs - Special Needs,Residential Care
Cambridgeshire County Council,20-Jul-18,51300249342,"-1,317.11",ALDERTON HOUSE,CARE ESTABLISHMENT,LD - East Locality,LD - East Cambs - Care,Residential Care
Cambridgeshire County Council,20-Jul-18,51300249300,"-1,317.11",ALDERTON HOUSE,CARE ESTABLISHMENT,LD - East Locality,LD - East Cambs - Care,Residential Care
Cambridgeshire County Council,20-Jul-18,51300249246,"-1,317.11",ALDERTON HOUSE,CARE ESTABLISHMENT,LD - East Locality,LD - East Cambs - Care,Residential Care
Cambridgeshire County Council,20-Jul-18,51300249317,"-1,317.11",ALDERTON HOUSE,CARE ESTABLISHMENT,LD - East Locality,LD - East Cambs - Care,Residential Care
Cambridgeshire County Council,20-Jul-18,51300249156,"-1,317.11",ALDERTON HOUSE,CARE ESTABLISHMENT,LD - East Locality,LD - East Cambs - Care,Residential Care
Cambridgeshire County Council,20-Jul-18,51300249157,"-1,317.11",ALDERTON HOUSE,CARE ESTABLISHMENT,LD - East Locality,LD - East Cambs - Care,Residential Care
Cambridgeshire County Council,20-Jul-18,51300249150,"-1,317.11",ALDERTON HOUSE,CARE ESTABLISHMENT,LD - East Locality,LD - East Cambs - Care,Residential Care
Cambridgeshire County Council,20-Jul-18,51300249165,"-1,317.11",ALDERTON HOUSE,CARE ESTABLISHMENT,LD - East Locality,LD - East Cambs - Care,Residential Care
Cambridgeshire County Council,20-Jul-18,51300249183,"-1,317.11",ALDERTON HOUSE,CARE ESTABLISHMENT,LD - East Locality,LD - East Cambs - Care,Residential Care
Cambridgeshire County Council,20-Jul-18,51300249323,"-1,317.11",ALDERTON HOUSE,CARE ESTABLISHMENT,LD - East Locality,LD - East Cambs - Care,Residential Care
Cambridgeshire County Council,20-Jul-18,51300249190,"-1,317.11",ALDERTON HOUSE,CARE ESTABLISHMENT,LD - East Locality,LD - East Cambs - Care,Residential Care
Cambridgeshire County Council,20-Jul-18,51300249182,"-1,317.11",ALDERTON HOUSE,CARE ESTABLISHMENT,LD - East Locality,LD - East Cambs - Care,Residential Care
Cambridgeshire County Council,20-Jul-18,51300249215,"-1,317.11",ALDERTON HOUSE,CARE ESTABLISHMENT,LD - East Locality,LD - East Cambs - Care,Residential Care
Cambridgeshire County Council,20-Jul-18,51300249249,"-1,317.11",ALDERTON HOUSE,CARE ESTABLISHMENT,LD - East Locality,LD - East Cambs - Care,Residential Care
Cambridgeshire County Council,20-Jul-18,51300249173,"-1,317.11",ALDERTON HOUSE,CARE ESTABLISHMENT,LD - East Locality,LD - East Cambs - Care,Residential Care
Cambridgeshire County Council,20-Jul-18,51300249206,"-1,317.11",ALDERTON HOUSE,CARE ESTABLISHMENT,LD - East Locality,LD - East Cambs - Care,Residential Care
Cambridgeshire County Council,20-Jul-18,51300249236,"-1,317.11",ALDERTON HOUSE,CARE ESTABLISHMENT,LD - East Locality,LD - East Cambs - Care,Residential Care
Cambridgeshire County Council,20-Jul-18,51300249309,"-1,317.11",ALDERTON HOUSE,CARE ESTABLISHMENT,LD - East Locality,LD - East Cambs - Care,Residential Care
Cambridgeshire County Council,20-Jul-18,51300249338,"-1,317.11",ALDERTON HOUSE,CARE ESTABLISHMENT,LD - East Locality,LD - East Cambs - Care,Residential Care
Cambridgeshire County Council,20-Jul-18,51300249270,"-1,317.11",ALDERTON HOUSE,CARE ESTABLISHMENT,LD - East Locality,LD - East Cambs - Care,Residential Care
Cambridgeshire County Council,20-Jul-18,51300249163,"-1,317.11",ALDERTON HOUSE,CARE ESTABLISHMENT,LD - East Locality,LD - East Cambs - Care,Residential Care
Cambridgeshire County Council,20-Jul-18,51300249286,"-1,317.11",ALDERTON HOUSE,CARE ESTABLISHMENT,LD - East Locality,LD - East Cambs - Care,Residential Care
Cambridgeshire County Council,20-Jul-18,51300249318,"-1,317.11",ALDERTON HOUSE,CARE ESTABLISHMENT,LD - East Locality,LD - East Cambs - Care,Residential Care
Cambridgeshire County Council,20-Jul-18,51300249354,"-1,317.11",ALDERTON HOUSE,CARE ESTABLISHMENT,LD - East Locality,LD - East Cambs - Care,Residential Care
Cambridgeshire County Council,20-Jul-18,51300249297,"-1,317.11",ALDERTON HOUSE,CARE ESTABLISHMENT,LD - East Locality,LD - East Cambs - Care,Residential Care
Cambridgeshire County Council,02-Jul-18,51300213332,"-1,300.00",WOODLANDS CARE CENTRE,CARE ESTABLISHMENT,Physical Disablity,Countywide PD Service - Care,Nursing Care
Cambridgeshire County Council,02-Jul-18,51300213330,"-1,300.00",WOODLANDS CARE CENTRE,CARE ESTABLISHMENT,Physical Disablity,Countywide PD Service - Care,Nursing Care
Cambridgeshire County Council,02-Jul-18,51300213336,"-1,300.00",WOODLANDS CARE CENTRE,CARE ESTABLISHMENT,Physical Disablity,Countywide PD Service - Care,Nursing Care
Cambridgeshire County Council,02-Jul-18,51300213337,"-1,300.00",WOODLANDS CARE CENTRE,CARE ESTABLISHMENT,Physical Disablity,Countywide PD Service - Care,Nursing Care
Cambridgeshire County Council,02-Jul-18,51300213350,"-1,300.00",WOODLANDS CARE CENTRE,CARE ESTABLISHMENT,Physical Disablity,Countywide PD Service - Care,Nursing Care
Cambridgeshire County Council,02-Jul-18,51300213354,"-1,300.00",WOODLANDS CARE CENTRE,CARE ESTABLISHMENT,Physical Disablity,Countywide PD Service - Care,Nursing Care
Cambridgeshire County Council,02-Jul-18,51300213355,"-1,300.00",WOODLANDS CARE CENTRE,CARE ESTABLISHMENT,Physical Disablity,Countywide PD Service - Care,Nursing Care
